{"text_format":"1","workbook":"xlsx","n_sheets":14,"sheets":["Saisie des données + guide","Bulletin n°1","Bulletin n°2","Bulletin n°3","Bulletin n°4","Bulletin n°5","Bulletin n°6","Bulletin n°7","Bulletin n°8","Bulletin n°9","Bulletin n°10","Fiche récapitulative","Modalités de versement","Autres fonds"],"not_rendered":{"charts":0,"images":6,"macros":1,"external_links":0,"defined_names":72,"comments":11,"pivot_tables":0},"unopened":[],"bounds":{"document_bytes":16777216,"sheet_cells":100000,"rows_first":2000,"rows_last":500,"rows_between":2000,"halvings":0,"cell_chars":16384,"cell_head_chars":4096},"cells_cut":0,"cells_raw":0,"read":"whole","date_system":"1900"}

{"sheet":"Saisie des données + guide","index":0,"n_rows":121,"n_cols":63,"rows_kept":121,"cut":false,"hidden":false,"merged":[[94,47,94,56],[90,47,90,57],[93,47,93,57],[91,47,91,56],[79,4,79,58],[109,26,109,29],[32,13,32,17],[68,5,68,59],[32,18,32,24],[43,54,43,55],[33,18,33,59],[47,32,47,53],[43,25,43,53],[34,18,34,59],[32,26,32,30],[32,36,32,42],[36,4,36,14],[37,4,37,58],[47,21,47,30],[47,2,47,20],[32,31,32,35],[73,5,73,56],[114,12,114,16],[89,32,89,41],[107,14,107,18],[93,20,93,29],[98,16,98,20],[113,19,113,21],[94,32,94,42],[94,20,94,29],[113,12,113,16],[98,24,98,29],[111,14,111,17],[91,8,91,19],[109,14,109,17],[91,32,91,42],[98,2,98,15],[54,28,54,41],[109,36,109,39],[82,27,82,53],[63,25,63,58],[91,20,91,29],[89,19,89,30],[98,21,98,23],[90,20,90,29],[77,5,77,56],[94,8,94,19],[107,25,107,29],[93,32,93,42],[90,32,90,42],[106,25,106,29],[106,14,106,18],[82,54,82,55],[30,13,30,56],[6,26,6,31],[1,46,1,56],[1,57,1,59],[75,5,75,57],[32,44,32,50],[28,13,28,17],[24,20,24,29],[8,26,8,31],[15,10,15,34],[71,5,71,57],[29,13,29,58],[11,28,11,34],[20,20,20,29],[28,25,28,31],[28,18,28,24],[21,31,22,58],[21,20,22,29],[11,10,11,15],[28,32,28,35],[13,10,13,34],[28,36,28,42],[28,43,28,50],[17,10,17,34],[26,13,26,56]]}
[]
[null,"Comment remplir le bulletin individuel de versements ?",null,null,null,null,null,null,null,null,null,null,null,null,null,null,null,null,null,null,null,null,null,null,null,null,null,null,null,null,null,null,null,null,null,null,null,null,null,null,null,null,null,null,null,null,"Version PERCOL",null,null,null,null,null,null,null,null,null,null,2024]
[]
[]
[null,"Pour l'Entreprise"]
[]
[null,null,null,null,null,null,null,null,null,null,null,null,null,null,null,null,null,null,null,null,null,null,null,null,null,null,"zones en vert",null,null,null,null,null,"à remplir par l'entreprise"]
[]
[null,null,null,null,null,null,null,null,null,null,null,null,null,null,null,null,null,null,null,null,null,null,null,null,null,null,"zones en blanc",null,null,null,null,null,"à remplir par l'épargnant"]
[null,null,null,null,"Identification :"]
[]
[null,null,null,null,"Code entreprise"]
[]
[null,null,null,null,"Raison sociale"]
[]
[null,null,null,null,"Contact"]
[]
[null,null,null,null,"E-mail"]
[null,null,null,null,null,null,null,null,null,null,null,null,null,null,null,null,null,null,null,null,null,null,null,null,null,null,null,null,null,null,null,null,null,null,null,null,null,null,null,null,null,null,null,null,null,null,null,null,null,null,null,null,null,null,null,null,null,null,null,null,null,null,"X"]
[]
[null,null,null,null,"Origine des versements : ",null,null,null,null,null,null,null,null,null,null,null,null,null,null,null,"Versements volontaires",null,null,null,null,null,null,null,null,null,null,"Cliquez sur la cellule pour afficher les autres origines de versements"]
[null,null,null,null,null,null,null,null,null,null,null,null,null,null,null,null,null,null,null,null,null,null,null,null,null,null,null,null,null,null,null,{"$f":"+IF($U$21=\"Intéressement\",\"La prime d'intéressement, versée en 2024 sur l'exercice fiscal 2023, est limitée à 75% du PASS 2023 (soit 32 994 €).\",IF($U$21=\"Participation\",\"La prime de participation, versée en 2024 sur l'exercice fiscal 2023, est limitée à 75% du PASS 2023 (soit 32 994 €).\",IF($U$21=\"Abondement unilatéral\",\"Le versement de l'abondement unilatéral est limité à 2% du PASS 2024 (soit 927,36€).\",IF($U$21=\"Versements volontaires\",\"Les versements volontaires du PEE sont plafonnés à 25% de votre rémunération brute annuelle.\",IF($U$21=\"Jours de repos non pris / CET\",\"La monétisation est limitée à 10 jours par an sauf accord CET plus restrictif.\",\"\")))))","v":"Les versements volontaires du PEE sont plafonnés à 25% de votre rémunération brute annuelle."}]
[]
[]
[null,null,null,null,"Gamme de fonds :",null,null,null,null,null,null,null,null,null,null,null,null,null,null,null,"Gamme GER",null,null,null,null,null,null,null,null,null,null,"Cliquez sur la cellule pour afficher les autres gammes de fonds"]
[]
[null,null,null,null,"Taux d'abondement : ",null,null,null,null,null,null,null,null,"Les taux d'abondement pour le calcul de l’abondement sont ceux qui figurent dans l’accord de l’entreprise ou sur le bulletin d’adhésion au PESI."]
[]
[null,null,null,null,null,null,null,null,null,null,null,null,null,"PEE ",null,null,null,null,null,null,null,null,null,null,null,{"$f":"IF(S29>300%,\"ERREUR TAUX\",\"\")","v":""},null,null,null,null,null,null,"PERCOL ",null,null,null,null,null,null,null,null,null,null,{"$f":"IF(AK29>300%,\"ERREUR TAUX\",\"\")","v":""}]
[null,null,null,null,null,null,null,null,null,null,null,null,null,{"$f":"+IF($Z$29=\"ERREUR TAUX\",\"ATTENTION : Le taux d'abondement doit être supérieur à 0% et inférieur à 300% par tranche de 5%\",IF($AR$29=\"ERREUR TAUX\",\"ATTENTION : Le taux d'abondement doit être supérieur à 0% et inférieur à 300% par tranche de 5%\",\"\"))","v":""}]
[null,null,null,null,"Plafond d'abondement : ",null,null,null,null,null,null,null,null,"Les plafonds de l’abondement sont ceux qui figurent dans l’accord de l’entreprise ou sur le bulletin d’adhésion au PESI."]
[]
[null,null,null,null,null,null,null,null,null,null,null,null,null,"PEE  ",null,null,null,null,null,null,null,null,null,null,null,"€",{"$f":"IF(S33>U95,\"ERREUR PLAFOND\",\"\")","v":""},null,null,null,null,"PERCOL ",null,null,null,null,null,null,null,null,null,null,null,"€",{"$f":"IF(AK33>AG95,\"ERREUR PLAFOND\",\"\")","v":""}]
[null,null,null,null,null,null,null,null,null,null,null,null,null,null,null,null,null,null,{"$f":"+IF($AA$33=\"ERREUR PLAFOND\",\"ATTENTION : Le plafond d'abondement PEE doit être inférieur à 3 709,44 €\",\"\")","v":""}]
[null,null,null,null,null,null,null,null,null,null,null,null,null,null,null,null,null,null,{"$f":"+IF($AS$33=\"ERREUR PLAFOND\",\"ATTENTION : Le plafond d'abondement PERCOL doit être inférieur à 7 418,88 €\",\"\")","v":""}]
[null,null,null,null,"Si CSG-CRDS non précomptées pour le salarié, cochez la case :",null,null,null,null,null,null,null,null,null,null,null,null,null,null,null,null,null,null,null,null,null,null,null,null,null,null,null,null,"¡","Cliquez sur la cellule pour cocher la case"]
[null,null,null,null,"À savoir :"]
[null,null,null,null,"Le montant que Groupama Épargne Salariale doit investir est le montant net de CSG-CRDS (les prélèvements sociaux étant payés directement par vos soins).  Si vous cochez la case, cela signifie que vous souhaitez par dérogation nous adresser un montant brut de CSG-CRDS et que vous aurez prélevé sur la fiche de paie de chacun des salariés concernés la CSG-CRDS relative à l'opération réalisée. Cette dérogation n'est pas possible si l'abondement est à calculer par Groupama Épargne Salariale."]
[]
[null,null,null,null,"La fiche récapitulative"]
[null,null,null,null,"Elle s'incrémente automatiquement et reprend les montants des versements."]
[]
[]
[null,null,null,null,null,null,null,null,null,null,null,null,null,null,null,null,null,null,null,null,null,null,null,null,null,"Pour aller directement à la fiche récapitulative cliquez",null,null,null,null,null,null,null,null,null,null,null,null,null,null,null,null,null,null,null,null,null,null,null,null,null,null,null,null,"ici"]
[]
[null,"Informations complémentaires"]
[]
[null,null,"Exercice fiscal de référence\n(obligatoire pour la participation ou l'intéressement)",null,null,null,null,null,null,null,null,null,null,null,null,null,null,null,null,null,null,null,null,null,null,null,null,null,null,null,null,null," format mmaaaa exemple : 122024 pour décembre 2024"]
[]
[]
[]
[null,"Pour chaque Épargnant"]
[]
[null,null,null,"1.","Etat civil : ",null,null,null,null,"[informations obligatoires à des fins réglementaires]"]
[null,null,null,null,"Ê"," Nom, prénom"]
[null,null,null,null,"Ê"," N° Sécurité Sociale"]
[null,null,null,null,"Ê"," L'adresse postale"]
[null,null,null,null,"Ê"," L'adresse e-mail et le numéro de téléphone"]
[null,null,null,null,"Ê"," Informations de naissance : Date, département, ville et pays"]
[null,null,null,null,"Ê"," Statut : le calcul des taxes liées à l'abondement est déterminé par le statut de l'épargnant (salarié ou non salarié)"]
[]
[]
[]
[null,null,null,"2.","Montants à investir :"]
[null,null,null,null,"Ê"," Dans les cases A et B, inscrire le montant du versement personnel investi dans PEE et/ou PERCOL"]
[]
[]
[]
[null,null,null,null,"Ê"," L'abondement sera investi sur les mêmes placements que les versements personnels.\n Exemple : 500€ sur le fonds monétaire et 500€ sur le fonds dynamique, l'abondement sera de 50% monétaire et 50% dynamique sur les même fonds"]
[]
[null,null,null,"3.","Répartition de l'épargne :"]
[null,null,null,null,null,"Vous pouvez choisir les 2 modes de gestion pour votre épargne :"]
[]
[null,null,null,null,"Ê","La Gestion Libre (pour le PEE et le PERCOL) : vous choisissez les supports d'investissement sur lesquels investir.\nPour cela, répartissez votre investissement sur un ou plusieurs fonds de votre choix.\nVous pouvez changer la répartition des montants sur les fonds disponibles à tout moment sur votre espace personnel épargnant.\n\n"]
[]
[null,null,null,null,"Ê","La Gestion Pilotée (uniquement pour le PERCOL) : elle permet la répartition du versement selon une grille d’allocation. Elle consiste à bénéficier d'arbitrages automatiques en fonction de l'âge théorique du départ en retraite (par défaut 67 ans) vers des fonds de plus en plus sécurisés. "]
[]
[null,null,null,null,null,"Si vous choisissez l'option gestion pilotée, indiquez \"oui\" dans la case dédiée et choisissez l'un des 3 profils de gestion.\nDès lors que cette option est choisie, elle perdurera jusqu'à la fin de votre contrat sauf si vous décidez de changer d'avis, il vous suffira de contacter le Service Clients."]
[]
[null,null,null,null,"En l'absence de choix de fonds, l'épargne sera investie :\n- sur le fonds par défaut dans le PEE\n- selon le mode de gestion pilotée dans le PERCOL : \n          - soit le profil Équilibre Horizon Retraite, s'il s'agit de votre premier versement ou si vous aviez opté pour la gestion libre lors de précédent versement,\n          - soit avec le profil de gestion pilotée précédemment choisi."]
[]
[]
[]
[]
[]
[]
[null,"Comment est calculé l'abondement ?"]
[]
[]
[null,null,null,null,null,null,null,null,null,null,null,null,null,null,null,null,null,null,null,"PEE",null,null,null,null,null,null,null,null,null,null,null,null,"PERCOL",null,null,null,null,null,null,null,null,null,null,null,null,null,null,"PERCOL abondement unilatéral"]
[null,null,"Pour un Travailleur Salarié (TS)",null,null,null,null,null,null,null,null,null,null,null,null,null,null,null,null,null,"A' = (A x T) x 90,3%",null,null,null,null,null,null,null,null,null,null,null,"B' = (B x T') x 90,3%",null,null,null,null,null,null,null,null,null,null,null,null,null,null,"C' = C x 90,3%"]
[null,null,null,null,null,null,null,null,"Plafonds maximum :",null,null,null,null,null,null,null,null,null,null,null,{"$f":"+'Saisie des données + guide'!Z107","v":3349.62},null,null,null,null,null,null,null,null,null,null,null,{"$f":"+'Saisie des données + guide'!Z108","v":6699.25},null,null,null,null,null,null,null,null,null,null,null,null,null,null,{"$f":"PASS*0.02*0.907","v":841.11552000000006}]
[]
[null,null,"Pour un Travailleur Non Salarié (TNS)",null,null,null,null,null,null,null,null,null,null,null,null,null,null,null,null,null,"A' = (A x T) x 100%",null,null,null,null,null,null,null,null,null,null,null,"B' = (B x T') x 100%",null,null,null,null,null,null,null,null,null,null,null,null,null,null,"C' = C x 100%"]
[null,null,null,null,null,null,null,null,"Plafonds maximum :",null,null,null,null,null,null,null,null,null,null,null,{"$f":"+'Saisie des données + guide'!O107","v":3709.44},null,null,null,null,null,null,null,null,null,null,null,{"$f":"+'Saisie des données + guide'!O108","v":7418.88},null,null,null,null,null,null,null,null,null,null,null,null,null,null,{"$f":"PASS*0.02","v":927.36}]
[]
[null,"Attention les plafonds d'abondement changent chaque année car ils sont calculés en fonction du PASS (Plafond Annuel de la Sécurité Sociale)"]
[]
[null,null,"Le PASS pour l'année  ",null,null,null,null,null,null,null,null,null,null,null,null,null,{"$f":"BF2","v":2024},null,null,null,null,"est de",null,null,46368]
[]
[]
[]
[null,null,null,null,"DONNEES INTERVENANT DANS LES FEUILLES DE CALCUL :"]
[]
[]
[null,null,null,null,null,"Montant maximum d'abondement :"]
[null,null,null,null,null,null,null,null,"-  pour le PEE",null,null,null,null,null,{"$f":"MIN(ROUND(8%*PASS,2),$S$33)","v":3709.44},null,null,null,null,"d’où un net salarié",null,null,null,null,null,{"$f":"ROUND(Plafond_PEE*(1-CSG_CRDS),2)","v":3349.62}]
[null,null,null,null,null,null,null,null,"-  pour le PERCO",null,null,null,null,null,{"$f":"MIN(ROUND(16%*PASS,2),$AK$33)","v":7418.88},null,null,null,null,"d’où un net salarié",null,null,null,null,null,{"$f":"ROUND(Plafond_PERCO*(1-CSG_CRDS),2)","v":6699.25}]
[]
[null,null,null,null,null,"CSG-CRDS (salarié)",null,null,null,null,null,null,null,null,{"$f":"9.7%","v":9.6999999999999989E-2},null,null,null,"sur une base de ",null,null,null,null,null,null,null,1,null,null,null,null,"soit un taux de",null,null,null,null,{"$f":"O110*AA110","v":9.6999999999999989E-2}]
[]
[null,null,null,null,null,"CSG-CRDS (TNS)",null,null,null,null,null,null,null,null,{"$f":"9.7%","v":9.6999999999999989E-2}]
[]
[null,null,null,null,null,"Forfait social PEE",null,null,null,null,null,null,0.2]
[null,null,null,null,null,"Forfait social PER",null,null,null,null,null,null,0.16]
[null,null,null,null,null,"Origine des versements :",null,null,null,null,null,null,null,null,null,null,null,null,null,null,null,null,null,null,null,null,null,null,null,null,null,null,null,null,null,null,null,null,null,null,"Gamme GER"]
[null,null,null,null,null,null,null,null,null,null,null,null,null,null,null,null,null,null,null,null,null,null,"Versements volontaires",null,null,null,null,null,null,null,null,null,null,null,null,null,null,null,null,null,"Gamme TESORUS"]
[null,null,null,null,null,null,null,null,null,null,null,null,null,null,null,null,null,null,null,null,null,null,"Jours de repos non pris / CET",null,null,null,null,null,null,null,null,null,null,null,null,null,null,null,null,null,"Gamme Fonds Directs"]
[null,null,null,null,null,null,null,null,null,null,null,null,null,null,null,null,null,null,null,null,null,null,"Intéressement"]
[null,null,null,null,null,null,null,null,null,null,null,null,null,null,null,null,null,null,null,null,null,null,"Participation"]
[null,null,null,null,null,null,null,null,null,null,null,null,null,null,null,null,null,null,null,null,null,null,"Abondement unilatéral"]

{"sheet":"Bulletin n°1","index":1,"n_rows":115,"n_cols":70,"rows_kept":115,"cut":false,"hidden":false,"merged":[[5,22,5,35],[9,22,9,35],[35,41,35,46],[24,39,24,48],[22,39,22,43],[5,45,5,50],[7,45,7,69],[9,45,9,69],[11,45,11,69],[32,51,33,54],[15,39,18,69],[15,22,15,35],[11,22,11,35],[32,55,32,69],[30,39,30,56],[25,58,25,68],[28,58,28,68],[46,2,47,13],[48,2,49,13],[24,4,24,5],[48,17,49,24],[46,16,47,16],[29,3,31,35],[11,6,11,16],[66,28,67,35],[62,27,63,27],[66,27,67,27],[64,28,65,35],[62,28,63,35],[62,2,63,13],[64,2,65,13],[56,16,57,16],[58,28,59,35],[64,27,65,27],[62,25,63,26],[50,2,51,13],[52,2,53,13],[54,16,55,16],[56,27,57,27],[58,27,59,27],[56,28,57,35],[60,2,61,13],[58,16,59,16],[56,14,57,15],[58,14,59,15],[66,2,67,13],[68,2,69,13],[62,16,63,16],[68,16,69,16],[68,17,69,24],[66,14,67,15],[66,16,67,16],[58,17,59,24],[25,2,25,3],[25,27,25,35],[54,25,55,26],[56,25,57,26],[62,17,63,24],[64,17,65,24],[64,25,65,26],[54,14,55,15],[54,2,55,13],[54,17,55,24],[64,14,65,15],[64,16,65,16],[60,28,61,35],[46,28,47,35],[45,28,45,35],[42,25,42,35],[42,14,42,24],[46,27,47,27],[25,17,25,18],[42,2,45,13],[43,25,44,35],[60,27,61,27],[58,25,59,26],[60,14,61,15],[93,10,93,15],[93,16,93,22],[93,23,93,28],[74,16,75,16],[78,11,78,16],[68,28,69,35],[68,25,69,26],[74,27,75,27],[72,25,73,26],[68,27,69,27],[72,14,73,15],[70,16,71,16],[70,17,71,24],[72,17,73,24],[74,2,75,13],[84,3,85,23],[77,17,78,23],[70,28,71,35],[70,27,71,27],[70,2,71,13],[72,2,73,13],[68,14,69,15],[87,2,87,4],[78,3,79,10],[74,14,75,15],[87,13,87,15],[77,28,78,35],[74,28,75,35],[74,17,75,24],[81,2,82,35],[87,20,87,22],[85,25,87,35],[74,25,75,26],[77,25,78,26],[77,27,78,27],[80,17,80,24],[77,11,77,12],[18,89,18,107],[45,14,45,15],[48,14,49,15],[52,14,53,15],[46,25,47,26],[48,25,49,26],[34,5,34,26],[52,17,53,24],[48,16,49,16],[50,14,51,15],[50,16,51,16],[52,16,53,16],[46,14,47,15],[50,17,51,24],[50,28,51,35],[24,51,24,54],[26,23,27,35],[43,53,43,57],[25,23,25,26],[22,23,22,29],[22,30,22,31],[22,32,22,35],[24,13,24,14],[24,23,24,35],[85,46,88,71],[60,25,61,26],[50,25,51,26],[25,51,25,54],[32,5,32,26],[26,58,26,68],[52,27,53,27],[52,28,53,35],[70,25,71,26],[72,28,73,35],[70,14,71,15],[72,27,73,27],[72,16,73,16],[87,5,87,11],[54,27,55,27],[56,17,57,24],[54,28,55,35],[66,25,67,26],[66,17,67,24],[60,16,61,16],[60,17,61,24],[62,14,63,15],[56,2,57,13],[58,2,59,13],[5,6,5,10],[5,13,5,16],[9,6,9,10],[9,15,9,16],[13,22,13,35],[81,39,83,71],[35,5,35,29],[35,30,35,35],[7,6,7,16],[7,22,7,35],[25,4,25,5],[25,11,25,12],[25,13,25,14],[40,39,42,53],[47,38,53,71],[15,6,16,16],[39,54,39,57],[39,58,39,68],[30,58,30,68],[50,27,51,27],[43,14,44,24],[13,6,13,10],[13,11,13,12],[13,13,13,16],[0,69,0,71],[2,1,3,36],[2,39,3,71],[84,25,84,35],[0,1,0,52],[48,28,49,35],[52,25,53,26],[35,51,35,54],[46,17,47,24],[45,25,45,26],[25,41,25,46],[26,51,26,54],[26,41,26,46],[34,51,34,54],[45,17,45,24],[34,48,34,49],[34,41,34,46],[32,39,32,48],[48,27,49,27],[43,58,43,68],[35,58,35,68],[34,58,34,68],[25,48,25,49],[0,59,0,68]]}
[null,"BULLETIN INDIVIDUEL DE VERSEMENTS SUR VOTRE PLAN D’ÉPARGNE SALARIALE",null,null,null,null,null,null,null,null,null,null,null,null,null,null,null,null,null,null,null,null,null,null,null,null,null,null,null,null,null,null,null,null,null,null,null,null,null,null,null,null,null,null,null,null,null,null,null,null,null,null,null,null,null,null,null,null,null," Version PERCOL",null,null,null,null,null,null,null,null,null,{"$f":"'Saisie des données + guide'!BF2","v":2024}]
[]
[null,"VERSEMENT DE L'ÉPARGNANT",null,null,null,null,null,null,null,null,null,null,null,null,null,null,null,null,null,null,null,null,null,null,null,null,null,null,null,null,null,null,null,null,null,null,null,null,null,"VERSEMENT COMPLÉMENTAIRE (ABONDEMENT) DE L'ENTREPRISE"]
[]
[]
[null,null,"Civilité ",null,null,null,null,null,null,null,null,null,"Nom",null,null,null,null,null,"Prénom",null,null,null,null,null,null,null,null,null,null,null,null,null,null,null,null,null,null,null,null,"Code entreprise",null,null,null,null,null,{"$f":"'Saisie des données + guide'!K12","v":0},null,null,null,null,null,null,null,null,null,null,null,null,null,null,null,null,null,null,null,null,null,null,"Exercice fiscal de référence :",{"$f":"'Saisie des données + guide'!V$48","v":0}]
[]
[null,null,"N° Sécurité sociale",null,null,null,null,null,null,null,null,null,null,null,null,null,null,null,"Nom de naissance",null,null,null,null,null,null,null,null,null,null,null,null,null,null,null,null,null,null,null,null,"Raison sociale",null,null,null,null,null,{"$f":"'Saisie des données + guide'!K14","v":0}]
[]
[null,null,"Date de naissance",null,null,null,null,null,null,null,null,"Département de naissance",null,null,null,null,null,null,"Ville de naissance",null,null,null,null,null,null,null,null,null,null,null,null,null,null,null,null,null,null,null,null,"Contact",null,null,null,null,null,{"$f":"'Saisie des données + guide'!K16","v":0}]
[]
[null,null,"Adresse ",null,null,null,null,null,null,null,null,null,null,null,null,null,null,null,"Pays de naissance",null,null,null,null,null,null,null,null,null,null,null,null,null,null,null,null,null,null,null,null,"Email",null,null,null,null,null,{"$f":"'Saisie des données + guide'!K18","v":0}]
[]
[null,null,"Code postal",null,null,null,null,null,null,null,null,"Ville",null,null,null,null,null,null,"E-mail",null,null,null,null,null,null,null,null,null,null,null,null,null,null,null,null,null,null,null,null,"Si CSG-CRDS non précomptées pour le salarié",null,null,null,null,null,null,null,null,null,null,null,null,null,null,null,null,{"$f":"+'Saisie des données + guide'!AG36","v":0},null,null,null,null,null,null,null,null,null,null,null,"Le PASS* pour l'année 2024 est de :",{"$f":"PASS","v":46368}]
[]
[null,null,"Statut",null,null,null,"Salarié",null,null,null,null,null,null,null,null,null,null,null,"Téléphone",null,null,null,null,null,null,null,null,null,null,null,null,null,null,null,null,null,null,null,null,{"$f":"+'Saisie des données + guide'!E38","v":"Le montant que Groupama Épargne Salariale doit investir est le montant net de CSG-CRDS (les prélèvements sociaux étant payés directement par vos soins).  Si vous cochez la case, cela signifie que vous souhaitez par dérogation nous adresser un montant brut de CSG-CRDS et que vous aurez prélevé sur la fiche de paie de chacun des salariés concernés la CSG-CRDS relative à l'opération réalisée. Cette dérogation n'est pas possible si l'abondement est à calculer par Groupama Épargne Salariale."}]
[]
[]
[]
[null,null,null,null,null,null,null,null,null,null,null,null,null,null,null,null,null,null,null,null,null,null,null,null,null,null,null,null,null,null,null,null,null,null,null,null,null,null,null,null,null,null,null,null,null,null,null,null,null,null,null,null,null,null,null,null,null,null,null,"* PASS : Plafond Annuel de la Sécurité Sociale"]
[]
[]
[null,null,"MONTANTS À INVESTIR",null,null,null,null,null,null,null,null,null,null,null,null,null,null,null,"Origine des versements ",null,null,null,null,{"$f":"'Saisie des données + guide'!U21","v":"Versements volontaires"},null,null,null,null,null,null,{"$f":"IF(X23=\"Abondement unilatéral\", \" C =\", \"\")","v":""},null,null,null,null,null,null,null,null,"PEE"]
[null,null,null,null,null,null,null,null,null,null,null,null,null,null,null,null,null,null,{"$f":"+IF($X$23=\"Abondement unilatéral\",\"Le versement de l'abondement unilatéral est limité à 2% du PASS 2024 (soit 927,36€)\",\"\")","v":""}]
[null,null,null,null,"PEE",null,null,null,null,null,null,null,null,"PERCOL",null,null,null,null,null,null,null,null,null,"MONTANT TOTAL",null,null,null,null,null,null,null,null,null,null,null,null,null,null,null,{"$f":"X23","v":"Versements volontaires"},null,null,null,null,null,null,null,null,null,null,null,"Taux",null,null,null,null,null,null,{"$f":"\"Abondement sur \"&X23&\"\"","v":"Abondement sur Versements volontaires"}]
[null,null,"A =",null,null,null,null,null,null,"+",null,"B =",null,null,null,null,null,null,null,"=",null,null,null,"A + B =",null,null,null,{"$f":"$E$26+$N$26","v":0},null,null,null,null,null,null,null,null,null,null,null,null,null,{"$f":"E$26","v":0},null,null,null,null,null,null,"x",null,null,{"$f":"+'Saisie des données + guide'!S$29","v":0},null,null,null,null,null,"A' =",{"$f":"IF(ISBLANK(E26),\"\",IF(AND(G16=J105,ISBLANK('Saisie des données + guide'!AG36)),MIN(Plafond_PEE_net,E26*AZ26*(1-CSG_CRDS)),IF(AND(G16=J106,ISBLANK('Saisie des données + guide'!AG36)),MIN(Plafond_PEE,E26*AZ26),IF(AND(G16=J105,'Saisie des données + guide'!AG36=\"X\"),MIN(Plafond_PEE,E26*AZ26),IF(AND(G16=J106,'Saisie des données + guide'!AG36=\"X\"),MIN(Plafond_PEE,E26*AZ26))))))","v":""}]
[null,null,null,null,null,null,null,null,null,null,null,null,null,null,null,null,null,null,null,null,null,null,null,null,null,null,null,null,null,null,null,null,null,null,null,null,null,null,null,null,null,"A",null,null,null,null,null,null,null,null,null,"T",null,null,null,null,null,null,{"$f":"IF(AND(G16=J105,ISBLANK('Saisie des données + guide'!AG$36)),\"plafonné à \" &Plafond_PEE_net&\" € pour \"&J$105,IF(AND(G16=J105,'Saisie des données + guide'!AG$36=\"X\"),\"plafonné à \" &Plafond_PEE&\" € pour \"&J$105,\"plafonné à \" &Plafond_PEE&\" € pour \"&J$106))","v":"plafonné à 3349,62 € pour Salarié"}]
[]
[]
[null,null,null,"UNIQUEMENT PERCOL : Vous pouvez déduire de vos revenus imposables les versements volontaires effectués dans le PERCOL.  \nLes sommes seront alors fiscalisées au moment du retrait selon la réglementation en vigueur."]
[null,null,null,null,null,null,null,null,null,null,null,null,null,null,null,null,null,null,null,null,null,null,null,null,null,null,null,null,null,null,null,null,null,null,null,null,null,null,null,"PERCOL"]
[]
[null,null,null,null,null,"Je choisis de bénéficier des versements déductibles dans le PERCOL      ",null,null,null,null,null,null,null,null,null,null,null,null,null,null,null,null,null,null,null,null,null,null,null,null,null,null,null,null,null,null,null,null,null,{"$f":"X23","v":"Versements volontaires"},null,null,null,null,null,null,null,null,null,null,null,"Taux",null,null,null,{"$f":" IF($X$23=\"Versements volontaires\",\"Abondement sur Versements volontaires\",IF($X$23=\"Intéressement\",\"Abondement sur Intéressement\",IF($X$23=\"Participation\",\"Abondement sur Participation\",IF($X$23=\"Jours de repos non pris / CET\",\"Abondement sur Jours de repos non pris / CET\",IF($X$23=\"Prime de partage de la valeur\",\"Abondement sur Prime de partage de la valeur\",IF($X$23=\"Abondement unilatéral\",\" Montant total investi pour l'abondement unilatéral\"))))))","v":"Abondement sur Versements volontaires"}]
[]
[null,null,null,null,null,"Je renonce aux versements déductibles",null,null,null,null,null,null,null,null,null,null,null,null,null,null,null,null,null,null,null,null,null,null,null,null,null,null,null,null,null,null,null,null,null,null,null,{"$f":"$N$26","v":0},null,null,null,null,null,null,"x",null,null,{"$f":"+'Saisie des données + guide'!AK29","v":0},null,null,null,null,null,{"$f":"IF(X23=\"abondement unilatéral\",\"C'=\", \"B' =\")","v":"B' ="},{"$f":"IF(AND(ISBLANK(N26),ISBLANK(AG23)),\"\",IF(AND(X23=\"Abondement unilatéral\",G16=J105,ISBLANK('Saisie des données + guide'!AG36)),MIN(Plafond_uni_TS,AG23*0.903),IF(AND(X23=\"Abondement unilatéral\",G16=J106),MIN(Plafond_uni_TNS,AG23),IF(AND(X23<>\"Abondement unilatéral\",G16=J105,ISBLANK('Saisie des données + guide'!AG36)),MIN(Plafond_PERCO_net,(1-CSG_CRDS)*AZ35*N26),IF(AND(X23<>\"Abondement unilatéral\",G16=J106,ISBLANK('Saisie des données + guide'!AG36)),MIN(Plafond_PERCO,AZ35*N26),IF(AND(X23<>\"Abondement unilatéral\",G16=J105,'Saisie des données + guide'!AG36=\"X\"),MIN(Plafond_PERCO,AZ35*N26),IF(AND(X23<>\"Abondement unilatéral\",G16=J106,'Saisie des données + guide'!AG36=\"X\"),MIN(Plafond_PERCO,AZ35*N26),IF(AND(X23=\"Abondement unilatéral\",G16=J106,'Saisie des données + guide'!AG36=\"X\"),MIN(Plafond_uni_TNS,AG23),IF(AND(X23=\"Abondement unilatéral\",G16=J105,'Saisie des données + guide'!AG36=\"X\"),MIN(Plafond_uni_TNS,AG23))))))))))","v":""}]
[null,null,null,null,null,"Attention : Votre choix est irrévocable. En l'absence de choix, les versements volontaires dans le PERCOL seront déductibles.",null,null,null,null,null,null,null,null,null,null,null,null,null,null,null,null,null,null,null,null,null,null,null,null,"> Plus de détails",null,null,null,null,null,null,null,null,null,null,"B",null,null,null,null,null,null,null,null,null,"T",null,null,null,null,null,null,{"$f":"IF(AND(ISBLANK(N26),ISBLANK(AG23)),\"\",IF(AND(X23=\"Abondement unilatéral\",G16=J105,ISBLANK('Saisie des données + guide'!AG36)),\"plafonné à \"&Plafond_uni_TS&\" € pour \"&J105,IF(AND(X23=\"Abondement unilatéral\",G16=J106),\"plafonné à \"&Plafond_uni_TNS&\" € pour \"&J106,IF(AND(X23<>\"Abondement unilatéral\",G16=J105,ISBLANK('Saisie des données + guide'!AG36)),\"plafonné à \"&Plafond_PERCO_net&\" € pour \"&J105,IF(AND(X23<>\"Abondement unilatéral\",G16=J106,ISBLANK('Saisie des données + guide'!AG36)),\"plafonné à \"&Plafond_PERCO&\" € pour \"&J106,IF(AND(X23<>\"Abondement unilatéral\",G16=J105,'Saisie des données + guide'!AG36=\"X\"),\"plafonné à \"&Plafond_PERCO&\" € pour \"&J105,IF(AND(X23<>\"Abondement unilatéral\",G16=J106,'Saisie des données + guide'!AG36=\"X\"),\"plafonné à \"&Plafond_PERCO&\" € pour \"&J106,IF(AND(X23=\"Abondement unilatéral\",G16=J106,'Saisie des données + guide'!AG36=\"X\"),\"plafonné à \"&Plafond_uni_TNS&\" € pour \"&J106,IF(AND(X23=\"Abondement unilatéral\",G16=J105,'Saisie des données + guide'!AG36=\"X\"),\"plafonné à \"&Plafond_uni_TNS&\" € pour \"&J105)))))))))","v":""}]
[]
[]
[]
[null,null,"RÉPARTITION DE L'ÉPARGNE",null,null,null,null,null,null,null,null,null,null,null,null,"N'hésitez pas à consulter l'onglet \"Autres fonds\" pour ajouter d'autres supports de placement.",null,null,null,null,null,null,null,null,null,null,null,null,null,null,null,null,null,null,null,null,null,null,null,"VERSEMENT TOTAL DE L'ENTREPRISE",null,null,null,null,null,null,null,null,null,null,null,null,null,null,"(A' + B')",null,null,null,{"$f":"MAX($BG$26,0)+MAX($BG$35,0)","v":0}]
[null,null,null,"A. Gestion Libre",null,null,null,null,null,null,null,null,null,null,null,null,null,null,null,null,null,null,null,null,null,null,null,null,null,null,null,null,null,null,null,null,null,null,null,"Le versement de l'abondement s'effectue sur les mêmes fonds que le versement personnel."]
[]
[null,null,"CODE ET NOM DES FONDS",null,null,null,null,null,null,null,null,null,null,null,"PEE",null,null,null,null,null,null,null,null,null,null,"PERCOL"]
[null,null,null,null,null,null,null,null,null,null,null,null,null,null,{"$f":"+IF(SUM(R47:Y76)>E26,\"ERREUR SAISIE\",IF(R46=0,\"\",\"Reste à répartir sur les fonds suivants\"))","v":""},null,null,null,null,null,null,null,null,null,null,{"$f":"+IF(SUM(AC47:AJ79)>(N26+AG23),\"ERREUR SAISIE\",IF(AC46=0,\"\",\"Reste à répartir sur les fonds suivants\"))","v":""},null,null,null,null,null,null,null,null,null,null,null,null,null,"VERSEMENT TOTAL INVESTI",null,null,null,null,null,null,null,null,null,null,null,null,null,"(A + B) + (A' + B')",null,null,null,null,{"$f":"+$AB$26+$BG$40","v":0}]
[]
[null,null,null,null,null,null,null,null,null,null,null,null,null,null,{"$f":"IF(E26>0,100-(SUM(O47:P76)),\"\")","v":""},null,{"$f":"IF(O46<>0, \"%\", \"\")","v":"%"},{"$f":"E26-SUM(R47:Y76)","v":0},null,null,null,null,null,null,null,{"$f":"IF((N26+AG23)>0,100-(SUM(Z47:AA79)),\"\")","v":""},null,{"$f":"IF(Z46<>0, \"%\", \"\")","v":"%"},{"$f":"(N26+AG23)-SUM(AC47:AJ79)","v":0}]
[null,null,{"$f":"+IF('Saisie des données + guide'!U25=\"Gamme GER\",\"84289 - GER Monétaire\",IF('Saisie des données + guide'!U25=\"Gamme TESORUS\",\"82659 - TESORUS Monétaire\",IF('Saisie des données + guide'!U25=\"Gamme Fonds Directs\",\"15719 - Oblifonds\",IF('Saisie des données + guide'!U25=\"Gamme Finama\",\"\",\"\"))))","v":"84289 - GER Monétaire"},null,null,null,null,null,null,null,null,null,null,null,null,null,"%",{"$f":"IF(O47=\"\",\"--------------\",+E$26*O47/100)","v":"--------------"},null,null,null,null,null,null,null,null,null,"%",{"$f":"IF(Z47=\"\",\"--------------\",+(N$26+$AG$23)*Z47/100)","v":"--------------"}]
[null,null,null,null,null,null,null,null,null,null,null,null,null,null,null,null,null,null,null,null,null,null,null,null,null,null,null,null,null,null,null,null,null,null,null,null,null,null,"ATTENTION : Si plusieurs épargnants effectuent des versements au même moment, vous devrez de regrouper l’ensemble des abondements en un seul chèque. Pour cela, reportez vous à la fiche récapitulative jointe sur ce fichier.\n\nLes chèques sont à libeller à l’ordre de GROUPAMA ÉPARGNE SALARIALE et à envoyer à l'adresse suivante : \nGroupama Épargne Salariale - Service Clients\n46 rue Jules Méline - 53098 Laval Cedex 9"]
[null,null,{"$f":"+IF('Saisie des données + guide'!U25=\"Gamme GER\",\"84309 - GER Prudence\",IF('Saisie des données + guide'!U25=\"Gamme TESORUS\",\"82719 - TESORUS Prudence\",IF('Saisie des données + guide'!U25=\"Gamme Fonds Directs\",\"4939 - Diversifonds\",\"\")))","v":"84309 - GER Prudence"},null,null,null,null,null,null,null,null,null,null,null,null,null,"%",{"$f":"IF(O49=\"\",\"--------------\",+E$26*O49/100)","v":"--------------"},null,null,null,null,null,null,null,null,null,"%",{"$f":"IF(Z49=\"\",\"--------------\",+(N$26+$AG$23)*Z49/100)","v":"--------------"}]
[]
[null,null,{"$f":"+IF('Saisie des données + guide'!U25=\"Gamme GER\",\"84329 - GER Equilibre\",IF('Saisie des données + guide'!U25=\"Gamme TESORUS\",\"82669 - TESORUS Equilibre\",IF('Saisie des données + guide'!U25=\"Gamme Fonds Directs\",\"2459 - Foncival\",\"\")))","v":"84329 - GER Equilibre"},null,null,null,null,null,null,null,null,null,null,null,null,null,"%",{"$f":"IF(O51=\"\",\"--------------\",+E$26*O51/100)","v":"--------------"},null,null,null,null,null,null,null,null,null,"%",{"$f":"IF(Z51=\"\",\"--------------\",+(N$26+$AG$23)*Z51/100)","v":"--------------"}]
[]
[null,null,{"$f":"+IF('Saisie des données + guide'!U25=\"Gamme GER\",\"84349 - GER Dynamique\",IF('Saisie des données + guide'!U25=\"Gamme TESORUS\",\"82689 - TESORUS Dynamique\",\"\"))","v":"84349 - GER Dynamique"},null,null,null,null,null,null,null,null,null,null,null,null,null,"%",{"$f":"IF(O53=\"\",\"--------------\",+E$26*O53/100)","v":"--------------"},null,null,null,null,null,null,null,null,null,"%",{"$f":"IF(Z53=\"\",\"--------------\",+(N$26+$AG$23)*Z53/100)","v":"--------------"}]
[]
[null,null,{"$f":"+IF('Saisie des données + guide'!U25=\"Gamme GER\",\"84369 - GER Solidaire\",IF('Saisie des données + guide'!U25=\"Gamme TESORUS\",\"87649 - TESORUS Solidaire\",\"\"))","v":"84369 - GER Solidaire"},null,null,null,null,null,null,null,null,null,null,null,null,null,"%",{"$f":"IF(O55=\"\",\"--------------\",+E$26*O55/100)","v":"--------------"},null,null,null,null,null,null,null,null,null,"%",{"$f":"IF(Z55=\"\",\"--------------\",+(N$26+$AG$23)*Z55/100)","v":"--------------"}]
[]
[null,null,"110429 - Finama Épargne Court Terme",null,null,null,null,null,null,null,null,null,null,null,null,null,"%",{"$f":"IF(O57=\"\",\"--------------\",+E$26*O57/100)","v":"--------------"},null,null,null,null,null,null,null,null,null,"%",{"$f":"IF(Z57=\"\",\"--------------\",+(N$26+$AG$23)*Z57/100)","v":"--------------"}]
[]
[null,null,"79139 - Finama Actions Internationales",null,null,null,null,null,null,null,null,null,null,null,null,null,"%",{"$f":"IF(O59=\"\",\"--------------\",+E$26*O59/100)","v":"--------------"},null,null,null,null,null,null,null,null,null,"%",{"$f":"IF(Z59=\"\",\"--------------\",+(N$26+$AG$23)*Z59/100)","v":"--------------"}]
[]
[null,null,"116119 - Groupama Sélection PME-ETI",null,null,null,null,null,null,null,null,null,null,null,null,null,"%",{"$f":"IF(O61=\"\",\"--------------\",+E$26*O61/100)","v":"--------------"},null,null,null,null,null,null,null,null,null,"%",{"$f":"IF(Z61=\"\",\"--------------\",+(N$26+$AG$23)*Z61/100)","v":"--------------"}]
[]
[null,null,null,null,null,null,null,null,null,null,null,null,null,null,null,null,"%",{"$f":"IF(O63=\"\",\"--------------\",+E$26*O63/100)","v":"--------------"},null,null,null,null,null,null,null,null,null,"%",{"$f":"IF(Z63=\"\",\"--------------\",+(N$26+$AG$23)*Z63/100)","v":"--------------"}]
[]
[null,null,null,null,null,null,null,null,null,null,null,null,null,null,null,null,"%",{"$f":"IF(O65=\"\",\"--------------\",+E$26*O65/100)","v":"--------------"},null,null,null,null,null,null,null,null,null,"%",{"$f":"IF(Z65=\"\",\"--------------\",+(N$26+$AG$23)*Z65/100)","v":"--------------"}]
[]
[null,null,null,null,null,null,null,null,null,null,null,null,null,null,null,null,"%",{"$f":"IF(O67=\"\",\"--------------\",+E$26*O67/100)","v":"--------------"},null,null,null,null,null,null,null,null,null,"%",{"$f":"IF(Z67=\"\",\"--------------\",+(N$26+$AG$23)*Z67/100)","v":"--------------"}]
[]
[null,null,null,null,null,null,null,null,null,null,null,null,null,null,null,null,"%",{"$f":"IF(O69=\"\",\"--------------\",+E$26*O69/100)","v":"--------------"},null,null,null,null,null,null,null,null,null,"%",{"$f":"IF(Z69=\"\",\"--------------\",+(N$26+$AG$23)*Z69/100)","v":"--------------"}]
[]
[null,null,null,null,null,null,null,null,null,null,null,null,null,null,null,null,"%",{"$f":"IF(O71=\"\",\"--------------\",+E$26*O71/100)","v":"--------------"},null,null,null,null,null,null,null,null,null,"%",{"$f":"IF(Z71=\"\",\"--------------\",+(N$26+$AG$23)*Z71/100)","v":"--------------"}]
[]
[null,null,null,null,null,null,null,null,null,null,null,null,null,null,null,null,"%",{"$f":"IF(O73=\"\",\"--------------\",+E$26*O73/100)","v":"--------------"},null,null,null,null,null,null,null,null,null,"%",{"$f":"IF(Z73=\"\",\"--------------\",+(N$26+$AG$23)*Z73/100)","v":"--------------"}]
[]
[null,null,null,null,null,null,null,null,null,null,null,null,null,null,null,null,"%",{"$f":"IF(O75=\"\",\"--------------\",+E$26*O75/100)","v":"--------------"},null,null,null,null,null,null,null,null,null,"%",{"$f":"IF(Z75=\"\",\"--------------\",+(N$26+$AG$23)*Z75/100)","v":"--------------"}]
[]
[]
[null,null,null,"B. Gestion Pilotée",null,null,null,null,null,null,null,null,null,null,null,null,null,"Choisissez votre profil",null,null,null,null,null,null,null,null,null,"%",{"$f":"IF(Z78=\"\",\"--------------\",+(N26+AG23)*Z78/100)","v":"--------------"}]
[null,null,null,"valable uniquement sur le PERCOL",null,null,null,null,null,null,null,{"$f":"IF(L78=\"Oui\",\"Préciser la grille d'allocation\",\"\")","v":""}]
[]
[]
[null,null,"Je déclare avoir pris connaissance du règlement du plan, des documents d'information clés (DIC/KID) des fonds remis par mon entreprise et téléchargeables sur www.groupama-es.fr, ainsi que des modalités de fonctionnement des versements individuels jointes au présent bulletin. \nConformément au contrat d’épargne salariale mis en place par votre entreprise, des frais de versements d’un maximum de 4 % peuvent s’appliquer. Nous vous invitons à contacter votre employeur pour obtenir le montant de ces frais.\nEn l'absence de choix de fonds, les sommes seront investies sur le fonds par défaut dans le PEE ou selon le mode de gestion pilotée dans le PERCOL : soit le profil Équilibre Horizon Retraite s'il s'agit de votre premier versement ou si vous aviez opté pour la gestion libre lors de précédent versement, soit avec le même profil de gestion pilotée précédemment choisi.\nPour tout versement volontaire à partir de 8 000 €, une copie de votre pièce d'identité devra être fournie, accompagnée du dernier avis d'imposition pour un versement d’un montant de 15 000 € et plus. ",null,null,null,null,null,null,null,null,null,null,null,null,null,null,null,null,null,null,null,null,null,null,null,null,null,null,null,null,null,null,null,null,null,null,null,null,"Conformément au règlement général sur la protection des données n°2016/679 du 27 avril 2016, vos données personnelles sont traitées par Groupama Épargne Salariale à des fins de tenue des comptes d'épargne salariale. Elles sont destinées aux membres du personnel dûment habilités de Groupama Épargne Salariale ainsi qu’à ses sous-traitants. Elles sont conservées par Groupama Épargne Salariale pendant une durée maximale de trente ans à compter de la disponibilité des avoirs.Vous pouvez demander l’accès, la rectification, l'effacement et la portabilité de vos données personnelles ainsi que limiter ou vous opposer, pour motif légitime, au traitement en écrivant au Délégué Relais à la Protection des Données de Groupama Épargne Salariale – Service du Contrôle interne – 2 boulevard de Pesaro – 92000 Nanterre ou par email : controleinterne@groupama-es.fr. Réf. : BIV 01-01-2024"]
[]
[]
[null,null,null,"J’atteste sur l’honneur que mon versement est conforme à la réglementation, notamment qu'il provient bien de mon épargne personnelle et que l’ensemble de mes versements de l’année au PEE ne dépasse pas 25 % de ma rémunération annuelle brute.",null,null,null,null,null,null,null,null,null,null,null,null,null,null,null,null,null,null,null,null,null,"SIGNATURE DE L'ÉPARGNANT"]
[null,null,null,null,null,null,null,null,null,null,null,null,null,null,null,null,null,null,null,null,null,null,null,null,null,null,null,null,null,null,null,null,null,null,null,null,null,null,null,null,null,null,null,null,null,null,"Groupama Épargne Salariale - Entreprise d'investissement agréée par l'ACPR - Teneur de comptes - Conservateur de parts \nSA au capital de 8.709.015 € - Siège social : 2 boulevard de Pesaro 92000 Nanterre - 428 768 352 RCS Nanterre"]
[]
[null,null,"Fait à :",null,null,null,null,null,null,null,null,null,null,"Le :",null,null,null,null,null,null,{"$f":"'Saisie des données + guide'!BF2","v":2024}]
[]
[]
[]
[]
[]
[]
[]
[]
[]
[]
[null,null,null,null,"3 options dans ce BIV :"]
[]
[null,null,null,null,null,null,"Ouverture compte :"]
[null,null,null,null,null,null,null,null,null,null,null,null,"X"]
[]
[null,null,null,null,null,null,"Statut :"]
[null,null,null,null,null,null,null,null,null,"Salarié"]
[null,null,null,null,null,null,null,null,null,"Non salarié"]
[]
[null,null,null,null,null,null,"Gestion pilotée :"]
[null,null,null,null,null,null,null,null,null,null,"Choisissez votre profil"]
[null,null,null,null,null,null,null,null,null,null,"Profil Prudent Horizon Retraite"]
[null,null,null,null,null,null,null,null,null,null,"Profil Équilibre Horizon Retraite"]
[null,null,null,null,null,null,null,null,null,null,"Profil Dynamique Horizon Retraite"]
[]
[null,null,null,null,null,null,null,null,null,null,null,"Oui"]
[null,null,null,null,null,null,null,null,null,null,null,"Non"]

{"sheet":"Bulletin n°2","index":2,"n_rows":115,"n_cols":70,"rows_kept":115,"cut":false,"hidden":false,"merged":[[93,10,93,15],[93,16,93,22],[93,23,93,28],[9,22,9,35],[11,6,11,16],[11,22,11,35],[13,6,13,10],[13,11,13,12],[13,13,13,16],[77,11,77,12],[77,17,78,23],[77,25,78,26],[77,27,78,27],[77,28,78,35],[78,3,79,10],[78,11,78,16],[80,17,80,24],[72,2,73,13],[72,14,73,15],[72,16,73,16],[74,2,75,13],[74,14,75,15],[74,16,75,16],[74,17,75,24],[74,25,75,26],[74,27,75,27],[74,28,75,35],[81,39,83,71],[5,22,5,35],[84,3,85,23],[84,25,84,35],[85,25,87,35],[85,46,88,71],[87,2,87,4],[87,5,87,11],[87,13,87,15],[87,20,87,22],[81,2,82,35],[70,2,71,13],[70,14,71,15],[70,16,71,16],[70,17,71,24],[70,25,71,26],[70,27,71,27],[70,28,71,35],[72,25,73,26],[72,27,73,27],[72,28,73,35],[72,17,73,24],[66,2,67,13],[66,14,67,15],[66,16,67,16],[66,17,67,24],[66,25,67,26],[66,27,67,27],[66,28,67,35],[68,2,69,13],[68,14,69,15],[68,16,69,16],[68,17,69,24],[68,25,69,26],[68,27,69,27],[68,28,69,35],[60,2,61,13],[60,14,61,15],[60,16,61,16],[60,17,61,24],[60,25,61,26],[60,27,61,27],[60,28,61,35],[64,2,65,13],[64,14,65,15],[64,16,65,16],[64,17,65,24],[64,25,65,26],[64,27,65,27],[64,28,65,35],[62,2,63,13],[62,14,63,15],[62,16,63,16],[62,17,63,24],[62,25,63,26],[62,27,63,27],[62,28,63,35],[52,2,53,13],[52,14,53,15],[52,16,53,16],[52,17,53,24],[52,25,53,26],[52,27,53,27],[52,28,53,35],[46,2,47,13],[58,14,59,15],[58,16,59,16],[58,17,59,24],[58,25,59,26],[58,27,59,27],[58,28,59,35],[54,2,55,13],[56,2,57,13],[58,2,59,13],[46,14,47,15],[46,16,47,16],[46,17,47,24],[46,25,47,26],[46,27,47,27],[54,14,55,15],[54,16,55,16],[48,2,49,13],[48,14,49,15],[48,16,49,16],[48,17,49,24],[48,25,49,26],[48,27,49,27],[48,28,49,35],[50,2,51,13],[50,14,51,15],[50,16,51,16],[50,17,51,24],[50,25,51,26],[50,27,51,27],[50,28,51,35],[25,2,25,3],[25,4,25,5],[25,11,25,12],[25,13,25,14],[25,17,25,18],[25,23,25,26],[25,27,25,35],[25,48,25,49],[35,5,35,29],[35,30,35,35],[35,41,35,46],[9,45,9,69],[0,1,0,52],[2,1,3,36],[2,39,3,71],[5,45,5,50],[7,6,7,16],[7,22,7,35],[7,45,7,69],[0,59,0,68],[0,69,0,71],[5,6,5,10],[5,13,5,16],[9,6,9,10],[9,15,9,16],[18,89,18,107],[11,45,11,69],[15,6,16,16],[15,22,15,35],[15,39,18,69],[25,41,25,46],[25,51,25,54],[25,58,25,68],[26,23,27,35],[26,41,26,46],[26,51,26,54],[26,58,26,68],[24,13,24,14],[24,51,24,54],[22,23,22,29],[22,30,22,31],[22,32,22,35],[13,22,13,35],[42,2,45,13],[42,14,42,24],[42,25,42,35],[43,14,44,24],[43,25,44,35],[43,53,43,57],[43,58,43,68],[22,39,22,43],[24,23,24,35],[24,39,24,48],[34,41,34,46],[34,51,34,54],[34,58,34,68],[32,51,33,54],[32,55,32,69],[34,5,34,26],[34,48,34,49],[28,58,28,68],[29,3,31,35],[30,39,30,56],[30,58,30,68],[32,5,32,26],[32,39,32,48],[24,4,24,5],[56,14,57,15],[56,16,57,16],[56,17,57,24],[56,25,57,26],[56,27,57,27],[56,28,57,35],[35,51,35,54],[35,58,35,68],[39,54,39,57],[39,58,39,68],[40,39,42,53],[45,14,45,15],[45,17,45,24],[45,25,45,26],[45,28,45,35],[46,28,47,35],[47,38,53,71],[54,17,55,24],[54,25,55,26],[54,27,55,27],[54,28,55,35]]}
[null,"BULLETIN INDIVIDUEL DE VERSEMENTS SUR VOTRE PLAN D’ÉPARGNE SALARIALE",null,null,null,null,null,null,null,null,null,null,null,null,null,null,null,null,null,null,null,null,null,null,null,null,null,null,null,null,null,null,null,null,null,null,null,null,null,null,null,null,null,null,null,null,null,null,null,null,null,null,null,null,null,null,null,null,null," Version PERCOL",null,null,null,null,null,null,null,null,null,{"$f":"'Saisie des données + guide'!BF2","v":2024}]
[]
[null,"VERSEMENT DE L'ÉPARGNANT",null,null,null,null,null,null,null,null,null,null,null,null,null,null,null,null,null,null,null,null,null,null,null,null,null,null,null,null,null,null,null,null,null,null,null,null,null,"VERSEMENT COMPLÉMENTAIRE (ABONDEMENT) DE L'ENTREPRISE"]
[]
[]
[null,null,"Civilité ",null,null,null,null,null,null,null,null,null,"Nom",null,null,null,null,null,"Prénom",null,null,null,null,null,null,null,null,null,null,null,null,null,null,null,null,null,null,null,null,"Code entreprise",null,null,null,null,null,{"$f":"'Saisie des données + guide'!K12","v":0},null,null,null,null,null,null,null,null,null,null,null,null,null,null,null,null,null,null,null,null,null,null,"Exercice fiscal de référence :",{"$f":"'Saisie des données + guide'!V$48","v":0}]
[]
[null,null,"N° Sécurité sociale",null,null,null,null,null,null,null,null,null,null,null,null,null,null,null,"Nom de naissance",null,null,null,null,null,null,null,null,null,null,null,null,null,null,null,null,null,null,null,null,"Raison sociale",null,null,null,null,null,{"$f":"'Saisie des données + guide'!K14","v":0}]
[]
[null,null,"Date de naissance",null,null,null,null,null,null,null,null,"Département de naissance",null,null,null,null,null,null,"Ville de naissance",null,null,null,null,null,null,null,null,null,null,null,null,null,null,null,null,null,null,null,null,"Contact",null,null,null,null,null,{"$f":"'Saisie des données + guide'!K16","v":0}]
[]
[null,null,"Adresse ",null,null,null,null,null,null,null,null,null,null,null,null,null,null,null,"Pays de naissance",null,null,null,null,null,null,null,null,null,null,null,null,null,null,null,null,null,null,null,null,"Email",null,null,null,null,null,{"$f":"'Saisie des données + guide'!K18","v":0}]
[]
[null,null,"Code postal",null,null,null,null,null,null,null,null,"Ville",null,null,null,null,null,null,"E-mail",null,null,null,null,null,null,null,null,null,null,null,null,null,null,null,null,null,null,null,null,"Si CSG-CRDS non précomptées pour le salarié",null,null,null,null,null,null,null,null,null,null,null,null,null,null,null,null,{"$f":"+'Saisie des données + guide'!AG36","v":0},null,null,null,null,null,null,null,null,null,null,null,"Le PASS* pour l'année 2024 est de :",{"$f":"PASS","v":46368}]
[]
[null,null,"Statut",null,null,null,null,null,null,null,null,null,null,null,null,null,null,null,"Téléphone",null,null,null,null,null,null,null,null,null,null,null,null,null,null,null,null,null,null,null,null,{"$f":"+'Saisie des données + guide'!E38","v":"Le montant que Groupama Épargne Salariale doit investir est le montant net de CSG-CRDS (les prélèvements sociaux étant payés directement par vos soins).  Si vous cochez la case, cela signifie que vous souhaitez par dérogation nous adresser un montant brut de CSG-CRDS et que vous aurez prélevé sur la fiche de paie de chacun des salariés concernés la CSG-CRDS relative à l'opération réalisée. Cette dérogation n'est pas possible si l'abondement est à calculer par Groupama Épargne Salariale."}]
[]
[]
[]
[null,null,null,null,null,null,null,null,null,null,null,null,null,null,null,null,null,null,null,null,null,null,null,null,null,null,null,null,null,null,null,null,null,null,null,null,null,null,null,null,null,null,null,null,null,null,null,null,null,null,null,null,null,null,null,null,null,null,null,"* PASS : Plafond Annuel de la Sécurité Sociale"]
[]
[]
[null,null,"MONTANTS À INVESTIR",null,null,null,null,null,null,null,null,null,null,null,null,null,null,null,"Origine des versements ",null,null,null,null,{"$f":"'Saisie des données + guide'!U21","v":"Versements volontaires"},null,null,null,null,null,null,{"$f":"IF(X23=\"Abondement unilatéral\", \" C =\", \"\")","v":""},null,null,null,null,null,null,null,null,"PEE"]
[null,null,null,null,null,null,null,null,null,null,null,null,null,null,null,null,null,null,{"$f":"+IF($X$23=\"Abondement unilatéral\",\"L'abondement unilatéral est limité à 3 000 € ou 6 000 € si vous avez un accord de participation ou d'intéressement.\",\"\")","v":""}]
[null,null,null,null,"PEE",null,null,null,null,null,null,null,null,"PERCOL",null,null,null,null,null,null,null,null,null,"MONTANT TOTAL",null,null,null,null,null,null,null,null,null,null,null,null,null,null,null,{"$f":"X23","v":"Versements volontaires"},null,null,null,null,null,null,null,null,null,null,null,"Taux",null,null,null,null,null,null,{"$f":"\"Abondement sur \"&X23&\"\"","v":"Abondement sur Versements volontaires"}]
[null,null,"A =",null,null,null,null,null,null,"+",null,"B =",null,null,null,null,null,null,null,"=",null,null,null,"A + B =",null,null,null,{"$f":"$E$26+$N$26","v":0},null,null,null,null,null,null,null,null,null,null,null,null,null,{"$f":"E$26","v":0},null,null,null,null,null,null,"x",null,null,{"$f":"+'Saisie des données + guide'!S$29","v":0},null,null,null,null,null,"A' =",{"$f":"IF(ISBLANK(E26),\"\",IF(AND(G16=J105,ISBLANK('Saisie des données + guide'!AG36)),MIN(Plafond_PEE_net,E26*AZ26*(1-CSG_CRDS)),IF(AND(G16=J106,ISBLANK('Saisie des données + guide'!AG36)),MIN(Plafond_PEE,E26*AZ26),IF(AND(G16=J105,'Saisie des données + guide'!AG36=\"X\"),MIN(Plafond_PEE,E26*AZ26),IF(AND(G16=J106,'Saisie des données + guide'!AG36=\"X\"),MIN(Plafond_PEE,E26*AZ26))))))","v":""}]
[null,null,null,null,null,null,null,null,null,null,null,null,null,null,null,null,null,null,null,null,null,null,null,null,null,null,null,null,null,null,null,null,null,null,null,null,null,null,null,null,null,"A",null,null,null,null,null,null,null,null,null,"T",null,null,null,null,null,null,{"$f":"IF(AND(G16=J105,ISBLANK('Saisie des données + guide'!AG$36)),\"plafonné à \" &Plafond_PEE_net&\" € pour \"&J$105,IF(AND(G16=J105,'Saisie des données + guide'!AG$36=\"X\"),\"plafonné à \" &Plafond_PEE&\" € pour \"&J$105,\"plafonné à \" &Plafond_PEE&\" € pour \"&J$106))","v":"plafonné à 3709,44 € pour Non salarié"}]
[]
[]
[null,null,null,"UNIQUEMENT PERCOL : Vous pouvez déduire de vos revenus imposables les versements volontaires effectués dans le PERCOL.  \nLes sommes seront alors fiscalisées au moment du retrait selon la réglementation en vigueur."]
[null,null,null,null,null,null,null,null,null,null,null,null,null,null,null,null,null,null,null,null,null,null,null,null,null,null,null,null,null,null,null,null,null,null,null,null,null,null,null,"PERCOL"]
[]
[null,null,null,null,null,"Je choisis de bénéficier des versements déductibles dans le PERCOL      ",null,null,null,null,null,null,null,null,null,null,null,null,null,null,null,null,null,null,null,null,null,null,null,null,null,null,null,null,null,null,null,null,null,{"$f":"X23","v":"Versements volontaires"},null,null,null,null,null,null,null,null,null,null,null,"Taux",null,null,null,{"$f":" IF($X$23=\"Versements volontaires\",\"Abondement sur Versements volontaires\",IF($X$23=\"Intéressement\",\"Abondement sur Intéressement\",IF($X$23=\"Participation\",\"Abondement sur Participation\",IF($X$23=\"Jours de repos non pris / CET\",\"Abondement sur Jours de repos non pris / CET\",IF($X$23=\"Prime de partage de la valeur\",\"Abondement sur Prime de partage de la valeur\",IF($X$23=\"Abondement unilatéral\",\" Montant total investi pour l'abondement unilatéral\"))))))","v":"Abondement sur Versements volontaires"}]
[]
[null,null,null,null,null,"Je renonce aux versements déductibles",null,null,null,null,null,null,null,null,null,null,null,null,null,null,null,null,null,null,null,null,null,null,null,null,null,null,null,null,null,null,null,null,null,null,null,{"$f":"$N$26","v":0},null,null,null,null,null,null,"x",null,null,{"$f":"+'Saisie des données + guide'!AK29","v":0},null,null,null,null,null,{"$f":"IF(X23=\"abondement unilatéral\",\"C'=\", \"B' =\")","v":"B' ="},{"$f":"IF(AND(ISBLANK(N26),ISBLANK(AG23)),\"\",IF(AND(X23=\"Abondement unilatéral\",G16=J105,ISBLANK('Saisie des données + guide'!AG36)),MIN(Plafond_uni_TS,AG23*0.903),IF(AND(X23=\"Abondement unilatéral\",G16=J106),MIN(Plafond_uni_TNS,AG23),IF(AND(X23<>\"Abondement unilatéral\",G16=J105,ISBLANK('Saisie des données + guide'!AG36)),MIN(Plafond_PERCO_net,(1-CSG_CRDS)*AZ35*N26),IF(AND(X23<>\"Abondement unilatéral\",G16=J106,ISBLANK('Saisie des données + guide'!AG36)),MIN(Plafond_PERCO,AZ35*N26),IF(AND(X23<>\"Abondement unilatéral\",G16=J105,'Saisie des données + guide'!AG36=\"X\"),MIN(Plafond_PERCO,AZ35*N26),IF(AND(X23<>\"Abondement unilatéral\",G16=J106,'Saisie des données + guide'!AG36=\"X\"),MIN(Plafond_PERCO,AZ35*N26),IF(AND(X23=\"Abondement unilatéral\",G16=J106,'Saisie des données + guide'!AG36=\"X\"),MIN(Plafond_uni_TNS,AG23),IF(AND(X23=\"Abondement unilatéral\",G16=J105,'Saisie des données + guide'!AG36=\"X\"),MIN(Plafond_uni_TNS,AG23))))))))))","v":""}]
[null,null,null,null,null,"Attention : Votre choix est irrévocable. En l'absence de choix, les versements volontaires dans le PERCOL seront déductibles.",null,null,null,null,null,null,null,null,null,null,null,null,null,null,null,null,null,null,null,null,null,null,null,null,"> Plus de détails",null,null,null,null,null,null,null,null,null,null,"B",null,null,null,null,null,null,null,null,null,"T",null,null,null,null,null,null,{"$f":"IF(AND(ISBLANK(N26),ISBLANK(AG23)),\"\",IF(AND(X23=\"Abondement unilatéral\",G16=J105,ISBLANK('Saisie des données + guide'!AG36)),\"plafonné à \"&Plafond_uni_TS&\" € pour \"&J105,IF(AND(X23=\"Abondement unilatéral\",G16=J106),\"plafonné à \"&Plafond_uni_TNS&\" € pour \"&J106,IF(AND(X23<>\"Abondement unilatéral\",G16=J105,ISBLANK('Saisie des données + guide'!AG36)),\"plafonné à \"&Plafond_PERCO_net&\" € pour \"&J105,IF(AND(X23<>\"Abondement unilatéral\",G16=J106,ISBLANK('Saisie des données + guide'!AG36)),\"plafonné à \"&Plafond_PERCO&\" € pour \"&J106,IF(AND(X23<>\"Abondement unilatéral\",G16=J105,'Saisie des données + guide'!AG36=\"X\"),\"plafonné à \"&Plafond_PERCO&\" € pour \"&J105,IF(AND(X23<>\"Abondement unilatéral\",G16=J106,'Saisie des données + guide'!AG36=\"X\"),\"plafonné à \"&Plafond_PERCO&\" € pour \"&J106,IF(AND(X23=\"Abondement unilatéral\",G16=J106,'Saisie des données + guide'!AG36=\"X\"),\"plafonné à \"&Plafond_uni_TNS&\" € pour \"&J106,IF(AND(X23=\"Abondement unilatéral\",G16=J105,'Saisie des données + guide'!AG36=\"X\"),\"plafonné à \"&Plafond_uni_TNS&\" € pour \"&J105)))))))))","v":""}]
[]
[]
[]
[null,null,"RÉPARTITION DE L'ÉPARGNE",null,null,null,null,null,null,null,null,null,null,null,null,"N'hésitez pas à consulter l'onglet \"Autres fonds\" pour ajouter d'autres supports de placement.",null,null,null,null,null,null,null,null,null,null,null,null,null,null,null,null,null,null,null,null,null,null,null,"VERSEMENT TOTAL DE L'ENTREPRISE",null,null,null,null,null,null,null,null,null,null,null,null,null,null,"(A' + B')",null,null,null,{"$f":"MAX($BG$26,0)+MAX($BG$35,0)","v":0}]
[null,null,null,"A. Gestion Libre",null,null,null,null,null,null,null,null,null,null,null,null,null,null,null,null,null,null,null,null,null,null,null,null,null,null,null,null,null,null,null,null,null,null,null,"Le versement de l'abondement s'effectue sur les mêmes fonds que le versement personnel."]
[]
[null,null,"CODE ET NOM DES FONDS",null,null,null,null,null,null,null,null,null,null,null,"PEE",null,null,null,null,null,null,null,null,null,null,"PERCOL"]
[null,null,null,null,null,null,null,null,null,null,null,null,null,null,{"$f":"+IF(SUM(R47:Y76)>E26,\"ERREUR SAISIE\",IF(R46=0,\"\",\"Reste à répartir sur les fonds suivants\"))","v":""},null,null,null,null,null,null,null,null,null,null,{"$f":"+IF(SUM(AC47:AJ79)>(N26+AG23),\"ERREUR SAISIE\",IF(AC46=0,\"\",\"Reste à répartir sur les fonds suivants\"))","v":""},null,null,null,null,null,null,null,null,null,null,null,null,null,"VERSEMENT TOTAL INVESTI",null,null,null,null,null,null,null,null,null,null,null,null,null,"(A + B) + (A' + B')",null,null,null,null,{"$f":"+$AB$26+$BG$40","v":0}]
[]
[null,null,null,null,null,null,null,null,null,null,null,null,null,null,{"$f":"IF(E26>0,100-(SUM(O47:P76)),\"\")","v":""},null,{"$f":"IF(O46<>0, \"%\", \"\")","v":"%"},{"$f":"E26-SUM(R47:Y76)","v":0},null,null,null,null,null,null,null,{"$f":"IF((N26+AG23)>0,100-(SUM(Z47:AA79)),\"\")","v":""},null,{"$f":"IF(Z46<>0, \"%\", \"\")","v":"%"},{"$f":"(N26+AG23)-SUM(AC47:AJ79)","v":0}]
[null,null,{"$f":"+IF('Saisie des données + guide'!U25=\"Gamme GER\",\"84289 - GER Monétaire\",IF('Saisie des données + guide'!U25=\"Gamme TESORUS\",\"82659 - TESORUS Monétaire\",IF('Saisie des données + guide'!U25=\"Gamme Fonds Directs\",\"15719 - Oblifonds\",IF('Saisie des données + guide'!U25=\"Gamme Finama\",\"\",\"\"))))","v":"84289 - GER Monétaire"},null,null,null,null,null,null,null,null,null,null,null,null,null,"%",{"$f":"IF(O47=\"\",\"--------------\",+E$26*O47/100)","v":"--------------"},null,null,null,null,null,null,null,null,null,"%",{"$f":"IF(Z47=\"\",\"--------------\",+(N$26+$AG$23)*Z47/100)","v":"--------------"}]
[null,null,null,null,null,null,null,null,null,null,null,null,null,null,null,null,null,null,null,null,null,null,null,null,null,null,null,null,null,null,null,null,null,null,null,null,null,null,"ATTENTION : Si plusieurs épargnants effectuent des versements au même moment, vous devrez de regrouper l’ensemble des abondements en un seul chèque. Pour cela, reportez vous à la fiche récapitulative jointe sur ce fichier.\n\nLes chèques sont à libeller à l’ordre de GROUPAMA ÉPARGNE SALARIALE et à envoyer à l'adresse suivante : \nGroupama Épargne Salariale - Service Clients\n46 rue Jules Méline - 53098 Laval Cedex 9"]
[null,null,{"$f":"+IF('Saisie des données + guide'!U25=\"Gamme GER\",\"84309 - GER Prudence\",IF('Saisie des données + guide'!U25=\"Gamme TESORUS\",\"82719 - TESORUS Prudence\",IF('Saisie des données + guide'!U25=\"Gamme Fonds Directs\",\"4939 - Diversifonds\",\"\")))","v":"84309 - GER Prudence"},null,null,null,null,null,null,null,null,null,null,null,null,null,"%",{"$f":"IF(O49=\"\",\"--------------\",+E$26*O49/100)","v":"--------------"},null,null,null,null,null,null,null,null,null,"%",{"$f":"IF(Z49=\"\",\"--------------\",+(N$26+$AG$23)*Z49/100)","v":"--------------"}]
[]
[null,null,{"$f":"+IF('Saisie des données + guide'!U25=\"Gamme GER\",\"84329 - GER Equilibre\",IF('Saisie des données + guide'!U25=\"Gamme TESORUS\",\"82669 - TESORUS Equilibre\",IF('Saisie des données + guide'!U25=\"Gamme Fonds Directs\",\"2459 - Foncival\",\"\")))","v":"84329 - GER Equilibre"},null,null,null,null,null,null,null,null,null,null,null,null,null,"%",{"$f":"IF(O51=\"\",\"--------------\",+E$26*O51/100)","v":"--------------"},null,null,null,null,null,null,null,null,null,"%",{"$f":"IF(Z51=\"\",\"--------------\",+(N$26+$AG$23)*Z51/100)","v":"--------------"}]
[]
[null,null,{"$f":"+IF('Saisie des données + guide'!U25=\"Gamme GER\",\"84349 - GER Dynamique\",IF('Saisie des données + guide'!U25=\"Gamme TESORUS\",\"82689 - TESORUS Dynamique\",\"\"))","v":"84349 - GER Dynamique"},null,null,null,null,null,null,null,null,null,null,null,null,null,"%",{"$f":"IF(O53=\"\",\"--------------\",+E$26*O53/100)","v":"--------------"},null,null,null,null,null,null,null,null,null,"%",{"$f":"IF(Z53=\"\",\"--------------\",+(N$26+$AG$23)*Z53/100)","v":"--------------"}]
[]
[null,null,{"$f":"+IF('Saisie des données + guide'!U25=\"Gamme GER\",\"84369 - GER Solidaire\",IF('Saisie des données + guide'!U25=\"Gamme TESORUS\",\"87649 - TESORUS Solidaire\",\"\"))","v":"84369 - GER Solidaire"},null,null,null,null,null,null,null,null,null,null,null,null,null,"%",{"$f":"IF(O55=\"\",\"--------------\",+E$26*O55/100)","v":"--------------"},null,null,null,null,null,null,null,null,null,"%",{"$f":"IF(Z55=\"\",\"--------------\",+(N$26+$AG$23)*Z55/100)","v":"--------------"}]
[]
[null,null,"110429 - Finama Épargne Court Terme",null,null,null,null,null,null,null,null,null,null,null,null,null,"%",{"$f":"IF(O57=\"\",\"--------------\",+E$26*O57/100)","v":"--------------"},null,null,null,null,null,null,null,null,null,"%",{"$f":"IF(Z57=\"\",\"--------------\",+(N$26+$AG$23)*Z57/100)","v":"--------------"}]
[]
[null,null,"79139 - Finama Actions Internationales",null,null,null,null,null,null,null,null,null,null,null,null,null,"%",{"$f":"IF(O59=\"\",\"--------------\",+E$26*O59/100)","v":"--------------"},null,null,null,null,null,null,null,null,null,"%",{"$f":"IF(Z59=\"\",\"--------------\",+(N$26+$AG$23)*Z59/100)","v":"--------------"}]
[]
[null,null,"116119 - Groupama Sélection PME-ETI",null,null,null,null,null,null,null,null,null,null,null,null,null,"%",{"$f":"IF(O61=\"\",\"--------------\",+E$26*O61/100)","v":"--------------"},null,null,null,null,null,null,null,null,null,"%",{"$f":"IF(Z61=\"\",\"--------------\",+(N$26+$AG$23)*Z61/100)","v":"--------------"}]
[]
[null,null,null,null,null,null,null,null,null,null,null,null,null,null,null,null,"%",{"$f":"IF(O63=\"\",\"--------------\",+E$26*O63/100)","v":"--------------"},null,null,null,null,null,null,null,null,null,"%",{"$f":"IF(Z63=\"\",\"--------------\",+(N$26+$AG$23)*Z63/100)","v":"--------------"}]
[]
[null,null,null,null,null,null,null,null,null,null,null,null,null,null,null,null,"%",{"$f":"IF(O65=\"\",\"--------------\",+E$26*O65/100)","v":"--------------"},null,null,null,null,null,null,null,null,null,"%",{"$f":"IF(Z65=\"\",\"--------------\",+(N$26+$AG$23)*Z65/100)","v":"--------------"}]
[]
[null,null,null,null,null,null,null,null,null,null,null,null,null,null,null,null,"%",{"$f":"IF(O67=\"\",\"--------------\",+E$26*O67/100)","v":"--------------"},null,null,null,null,null,null,null,null,null,"%",{"$f":"IF(Z67=\"\",\"--------------\",+(N$26+$AG$23)*Z67/100)","v":"--------------"}]
[]
[null,null,null,null,null,null,null,null,null,null,null,null,null,null,null,null,"%",{"$f":"IF(O69=\"\",\"--------------\",+E$26*O69/100)","v":"--------------"},null,null,null,null,null,null,null,null,null,"%",{"$f":"IF(Z69=\"\",\"--------------\",+(N$26+$AG$23)*Z69/100)","v":"--------------"}]
[]
[null,null,null,null,null,null,null,null,null,null,null,null,null,null,null,null,"%",{"$f":"IF(O71=\"\",\"--------------\",+E$26*O71/100)","v":"--------------"},null,null,null,null,null,null,null,null,null,"%",{"$f":"IF(Z71=\"\",\"--------------\",+(N$26+$AG$23)*Z71/100)","v":"--------------"}]
[]
[null,null,null,null,null,null,null,null,null,null,null,null,null,null,null,null,"%",{"$f":"IF(O73=\"\",\"--------------\",+E$26*O73/100)","v":"--------------"},null,null,null,null,null,null,null,null,null,"%",{"$f":"IF(Z73=\"\",\"--------------\",+(N$26+$AG$23)*Z73/100)","v":"--------------"}]
[]
[null,null,null,null,null,null,null,null,null,null,null,null,null,null,null,null,"%",{"$f":"IF(O75=\"\",\"--------------\",+E$26*O75/100)","v":"--------------"},null,null,null,null,null,null,null,null,null,"%",{"$f":"IF(Z75=\"\",\"--------------\",+(N$26+$AG$23)*Z75/100)","v":"--------------"}]
[]
[]
[null,null,null,"B. Gestion Pilotée",null,null,null,null,null,null,null,null,null,null,null,null,null,"Choisissez votre profil",null,null,null,null,null,null,null,null,null,"%",{"$f":"IF(Z78=\"\",\"--------------\",+(N26+AG23)*Z78/100)","v":"--------------"}]
[null,null,null,"valable uniquement sur le PERCOL",null,null,null,null,null,null,null,{"$f":"IF(L78=\"Oui\",\"Préciser la grille d'allocation\",\"\")","v":""}]
[]
[]
[null,null,"Je déclare avoir pris connaissance du règlement du plan, des documents d'information clés (DIC/KID) des fonds remis par mon entreprise et téléchargeables sur www.groupama-es.fr, ainsi que des modalités de fonctionnement des versements individuels jointes au présent bulletin. \nConformément au contrat d’épargne salariale mis en place par votre entreprise, des frais de versements d’un maximum de 4 % peuvent s’appliquer. Nous vous invitons à contacter votre employeur pour obtenir le montant de ces frais.\nEn l'absence de choix de fonds, les sommes seront investies sur le fonds par défaut dans le PEE ou selon le mode de gestion pilotée dans le PERCOL : soit le profil Équilibre Horizon Retraite s'il s'agit de votre premier versement ou si vous aviez opté pour la gestion libre lors de précédent versement, soit avec le même profil de gestion pilotée précédemment choisi.\nPour tout versement volontaire à partir de 8 000 €, une copie de votre pièce d'identité devra être fournie, accompagnée du dernier avis d'imposition pour un versement d’un montant de 15 000 € et plus. ",null,null,null,null,null,null,null,null,null,null,null,null,null,null,null,null,null,null,null,null,null,null,null,null,null,null,null,null,null,null,null,null,null,null,null,null,"Conformément au règlement général sur la protection des données n°2016/679 du 27 avril 2016, vos données personnelles sont traitées par Groupama Épargne Salariale à des fins de tenue des comptes d'épargne salariale. Elles sont destinées aux membres du personnel dûment habilités de Groupama Épargne Salariale ainsi qu’à ses sous-traitants. Elles sont conservées par Groupama Épargne Salariale pendant une durée maximale de trente ans à compter de la disponibilité des avoirs.Vous pouvez demander l’accès, la rectification, l'effacement et la portabilité de vos données personnelles ainsi que limiter ou vous opposer, pour motif légitime, au traitement en écrivant au Délégué Relais à la Protection des Données de Groupama Épargne Salariale – Service du Contrôle interne – 2 boulevard de Pesaro – 92000 Nanterre ou par email : controleinterne@groupama-es.fr. Réf. : BIV 01-01-2024"]
[]
[]
[null,null,null,"J’atteste sur l’honneur que mon versement est conforme à la réglementation, notamment qu'il provient bien de mon épargne personnelle et que l’ensemble de mes versements de l’année au PEE ne dépasse pas 25 % de ma rémunération annuelle brute.",null,null,null,null,null,null,null,null,null,null,null,null,null,null,null,null,null,null,null,null,null,"SIGNATURE DE L'ÉPARGNANT"]
[null,null,null,null,null,null,null,null,null,null,null,null,null,null,null,null,null,null,null,null,null,null,null,null,null,null,null,null,null,null,null,null,null,null,null,null,null,null,null,null,null,null,null,null,null,null,"Groupama Épargne Salariale - Entreprise d'investissement agréée par l'ACPR - Teneur de comptes - Conservateur de parts \nSA au capital de 8.709.015 € - Siège social : 2 boulevard de Pesaro 92000 Nanterre - 428 768 352 RCS Nanterre"]
[]
[null,null,"Fait à :",null,null,null,null,null,null,null,null,null,null,"Le :",null,null,null,null,null,null,{"$f":"'Saisie des données + guide'!BF2","v":2024}]
[]
[]
[]
[]
[]
[]
[]
[]
[]
[]
[null,null,null,null,"3 options dans ce BIV :"]
[]
[null,null,null,null,null,null,"Ouverture compte :"]
[null,null,null,null,null,null,null,null,null,null,null,null,"X"]
[]
[null,null,null,null,null,null,"Statut :"]
[null,null,null,null,null,null,null,null,null,"Salarié"]
[null,null,null,null,null,null,null,null,null,"Non salarié"]
[]
[null,null,null,null,null,null,"Gestion pilotée :"]
[null,null,null,null,null,null,null,null,null,null,"Choisissez votre profil"]
[null,null,null,null,null,null,null,null,null,null,"Profil Prudent Horizon Retraite"]
[null,null,null,null,null,null,null,null,null,null,"Profil Équilibre Horizon Retraite"]
[null,null,null,null,null,null,null,null,null,null,"Profil Dynamique Horizon Retraite"]
[]
[null,null,null,null,null,null,null,null,null,null,null,"Oui"]
[null,null,null,null,null,null,null,null,null,null,null,"Non"]

{"sheet":"Bulletin n°3","index":3,"n_rows":115,"n_cols":70,"rows_kept":115,"cut":false,"hidden":false,"merged":[[93,10,93,15],[93,16,93,22],[93,23,93,28],[9,22,9,35],[11,6,11,16],[11,22,11,35],[13,6,13,10],[13,11,13,12],[13,13,13,16],[74,2,75,13],[74,14,75,15],[74,16,75,16],[74,17,75,24],[74,25,75,26],[74,27,75,27],[74,28,75,35],[77,11,77,12],[77,17,78,23],[77,25,78,26],[77,27,78,27],[77,28,78,35],[78,3,79,10],[78,11,78,16],[68,2,69,13],[68,25,69,26],[68,27,69,27],[68,28,69,35],[70,2,71,13],[70,14,71,15],[70,16,71,16],[70,17,71,24],[70,25,71,26],[70,27,71,27],[70,28,71,35],[72,2,73,13],[72,14,73,15],[72,16,73,16],[72,17,73,24],[72,25,73,26],[72,27,73,27],[72,28,73,35],[64,2,65,13],[64,14,65,15],[64,16,65,16],[64,17,65,24],[64,25,65,26],[64,27,65,27],[64,28,65,35],[66,2,67,13],[66,14,67,15],[66,16,67,16],[66,17,67,24],[66,25,67,26],[66,27,67,27],[66,28,67,35],[68,14,69,15],[68,16,69,16],[68,17,69,24],[56,14,57,15],[56,16,57,16],[56,17,57,24],[56,25,57,26],[56,27,57,27],[56,28,57,35],[58,2,59,13],[58,14,59,15],[58,16,59,16],[58,17,59,24],[58,25,59,26],[58,27,59,27],[58,28,59,35],[56,2,57,13],[52,25,53,26],[52,27,53,27],[52,28,53,35],[54,2,55,13],[54,14,55,15],[54,16,55,16],[54,17,55,24],[54,25,55,26],[54,27,55,27],[54,28,55,35],[46,16,47,16],[46,17,47,24],[46,25,47,26],[46,27,47,27],[46,28,47,35],[47,38,53,71],[48,2,49,13],[48,14,49,15],[48,16,49,16],[48,17,49,24],[48,25,49,26],[48,27,49,27],[48,28,49,35],[50,2,51,13],[50,14,51,15],[50,16,51,16],[50,17,51,24],[50,25,51,26],[50,27,51,27],[50,28,51,35],[52,2,53,13],[52,14,53,15],[52,16,53,16],[52,17,53,24],[39,54,39,57],[39,58,39,68],[40,39,42,53],[42,2,45,13],[42,14,42,24],[42,25,42,35],[43,14,44,24],[43,25,44,35],[43,53,43,57],[43,58,43,68],[45,14,45,15],[45,17,45,24],[45,25,45,26],[45,28,45,35],[32,5,32,26],[32,39,32,48],[32,51,33,54],[32,55,32,69],[35,5,35,29],[35,30,35,35],[35,41,35,46],[35,51,35,54],[35,58,35,68],[24,4,24,5],[26,23,27,35],[26,41,26,46],[26,51,26,54],[26,58,26,68],[28,58,28,68],[29,3,31,35],[30,39,30,56],[30,58,30,68],[24,39,24,48],[25,2,25,3],[25,4,25,5],[25,11,25,12],[25,13,25,14],[25,17,25,18],[25,23,25,26],[25,27,25,35],[25,48,25,49],[9,45,9,69],[0,1,0,52],[2,1,3,36],[2,39,3,71],[5,45,5,50],[7,6,7,16],[7,22,7,35],[7,45,7,69],[0,59,0,68],[0,69,0,71],[5,22,5,35],[5,6,5,10],[5,13,5,16],[9,6,9,10],[9,15,9,16],[62,27,63,27],[62,28,63,35],[18,89,18,107],[11,45,11,69],[15,6,16,16],[15,22,15,35],[15,39,18,69],[25,41,25,46],[25,51,25,54],[25,58,25,68],[46,14,47,15],[24,13,24,14],[24,51,24,54],[34,41,34,46],[34,51,34,54],[34,58,34,68],[34,5,34,26],[34,48,34,49],[46,2,47,13],[22,23,22,29],[22,30,22,31],[22,32,22,35],[22,39,22,43],[24,23,24,35],[13,22,13,35],[80,17,80,24],[81,2,82,35],[81,39,83,71],[84,3,85,23],[84,25,84,35],[85,25,87,35],[85,46,88,71],[87,2,87,4],[87,5,87,11],[87,13,87,15],[87,20,87,22],[60,2,61,13],[60,14,61,15],[60,16,61,16],[60,17,61,24],[60,25,61,26],[60,27,61,27],[60,28,61,35],[62,2,63,13],[62,14,63,15],[62,16,63,16],[62,17,63,24],[62,25,63,26]]}
[null,"BULLETIN INDIVIDUEL DE VERSEMENTS SUR VOTRE PLAN D’ÉPARGNE SALARIALE",null,null,null,null,null,null,null,null,null,null,null,null,null,null,null,null,null,null,null,null,null,null,null,null,null,null,null,null,null,null,null,null,null,null,null,null,null,null,null,null,null,null,null,null,null,null,null,null,null,null,null,null,null,null,null,null,null," Version PERCOL",null,null,null,null,null,null,null,null,null,{"$f":"'Saisie des données + guide'!BF2","v":2024}]
[]
[null,"VERSEMENT DE L'ÉPARGNANT",null,null,null,null,null,null,null,null,null,null,null,null,null,null,null,null,null,null,null,null,null,null,null,null,null,null,null,null,null,null,null,null,null,null,null,null,null,"VERSEMENT COMPLÉMENTAIRE (ABONDEMENT) DE L'ENTREPRISE"]
[]
[]
[null,null,"Civilité ",null,null,null,null,null,null,null,null,null,"Nom",null,null,null,null,null,"Prénom",null,null,null,null,null,null,null,null,null,null,null,null,null,null,null,null,null,null,null,null,"Code entreprise",null,null,null,null,null,{"$f":"'Saisie des données + guide'!K12","v":0},null,null,null,null,null,null,null,null,null,null,null,null,null,null,null,null,null,null,null,null,null,null,"Exercice fiscal de référence :",{"$f":"'Saisie des données + guide'!V$48","v":0}]
[]
[null,null,"N° Sécurité sociale",null,null,null,null,null,null,null,null,null,null,null,null,null,null,null,"Nom de naissance",null,null,null,null,null,null,null,null,null,null,null,null,null,null,null,null,null,null,null,null,"Raison sociale",null,null,null,null,null,{"$f":"'Saisie des données + guide'!K14","v":0}]
[]
[null,null,"Date de naissance",null,null,null,null,null,null,null,null,"Département de naissance",null,null,null,null,null,null,"Ville de naissance",null,null,null,null,null,null,null,null,null,null,null,null,null,null,null,null,null,null,null,null,"Contact",null,null,null,null,null,{"$f":"'Saisie des données + guide'!K16","v":0}]
[]
[null,null,"Adresse ",null,null,null,null,null,null,null,null,null,null,null,null,null,null,null,"Pays de naissance",null,null,null,null,null,null,null,null,null,null,null,null,null,null,null,null,null,null,null,null,"Email",null,null,null,null,null,{"$f":"'Saisie des données + guide'!K18","v":0}]
[]
[null,null,"Code postal",null,null,null,null,null,null,null,null,"Ville",null,null,null,null,null,null,"E-mail",null,null,null,null,null,null,null,null,null,null,null,null,null,null,null,null,null,null,null,null,"Si CSG-CRDS non précomptées pour le salarié",null,null,null,null,null,null,null,null,null,null,null,null,null,null,null,null,{"$f":"+'Saisie des données + guide'!AG36","v":0},null,null,null,null,null,null,null,null,null,null,null,"Le PASS* pour l'année 2024 est de :",{"$f":"PASS","v":46368}]
[]
[null,null,"Statut",null,null,null,null,null,null,null,null,null,null,null,null,null,null,null,"Téléphone",null,null,null,null,null,null,null,null,null,null,null,null,null,null,null,null,null,null,null,null,{"$f":"+'Saisie des données + guide'!E38","v":"Le montant que Groupama Épargne Salariale doit investir est le montant net de CSG-CRDS (les prélèvements sociaux étant payés directement par vos soins).  Si vous cochez la case, cela signifie que vous souhaitez par dérogation nous adresser un montant brut de CSG-CRDS et que vous aurez prélevé sur la fiche de paie de chacun des salariés concernés la CSG-CRDS relative à l'opération réalisée. Cette dérogation n'est pas possible si l'abondement est à calculer par Groupama Épargne Salariale."}]
[]
[]
[]
[null,null,null,null,null,null,null,null,null,null,null,null,null,null,null,null,null,null,null,null,null,null,null,null,null,null,null,null,null,null,null,null,null,null,null,null,null,null,null,null,null,null,null,null,null,null,null,null,null,null,null,null,null,null,null,null,null,null,null,"* PASS : Plafond Annuel de la Sécurité Sociale"]
[]
[]
[null,null,"MONTANTS À INVESTIR",null,null,null,null,null,null,null,null,null,null,null,null,null,null,null,"Origine des versements ",null,null,null,null,{"$f":"'Saisie des données + guide'!U21","v":"Versements volontaires"},null,null,null,null,null,null,{"$f":"IF(X23=\"Abondement unilatéral\", \" C =\", \"\")","v":""},null,null,null,null,null,null,null,null,"PEE"]
[null,null,null,null,null,null,null,null,null,null,null,null,null,null,null,null,null,null,{"$f":"+IF($X$23=\"Abondement unilatéral\",\"Le versement de l'abondement unilatéral est limité à 2% du PASS 2024 (soit 927,36€)\",\"\")","v":""}]
[null,null,null,null,"PEE",null,null,null,null,null,null,null,null,"PERCOL",null,null,null,null,null,null,null,null,null,"MONTANT TOTAL",null,null,null,null,null,null,null,null,null,null,null,null,null,null,null,{"$f":"X23","v":"Versements volontaires"},null,null,null,null,null,null,null,null,null,null,null,"Taux",null,null,null,null,null,null,{"$f":"\"Abondement sur \"&X23&\"\"","v":"Abondement sur Versements volontaires"}]
[null,null,"A =",null,null,null,null,null,null,"+",null,"B =",null,null,null,null,null,null,null,"=",null,null,null,"A + B =",null,null,null,{"$f":"$E$26+$N$26","v":0},null,null,null,null,null,null,null,null,null,null,null,null,null,{"$f":"E$26","v":0},null,null,null,null,null,null,"x",null,null,{"$f":"+'Saisie des données + guide'!S$29","v":0},null,null,null,null,null,"A' =",{"$f":"IF(ISBLANK(E26),\"\",IF(AND(G16=J105,ISBLANK('Saisie des données + guide'!AG36)),MIN(Plafond_PEE_net,E26*AZ26*(1-CSG_CRDS)),IF(AND(G16=J106,ISBLANK('Saisie des données + guide'!AG36)),MIN(Plafond_PEE,E26*AZ26),IF(AND(G16=J105,'Saisie des données + guide'!AG36=\"X\"),MIN(Plafond_PEE,E26*AZ26),IF(AND(G16=J106,'Saisie des données + guide'!AG36=\"X\"),MIN(Plafond_PEE,E26*AZ26))))))","v":""}]
[null,null,null,null,null,null,null,null,null,null,null,null,null,null,null,null,null,null,null,null,null,null,null,null,null,null,null,null,null,null,null,null,null,null,null,null,null,null,null,null,null,"A",null,null,null,null,null,null,null,null,null,"T",null,null,null,null,null,null,{"$f":"IF(AND(G16=J105,ISBLANK('Saisie des données + guide'!AG$36)),\"plafonné à \" &Plafond_PEE_net&\" € pour \"&J$105,IF(AND(G16=J105,'Saisie des données + guide'!AG$36=\"X\"),\"plafonné à \" &Plafond_PEE&\" € pour \"&J$105,\"plafonné à \" &Plafond_PEE&\" € pour \"&J$106))","v":"plafonné à 3709,44 € pour Non salarié"}]
[]
[]
[null,null,null,"UNIQUEMENT PERCOL : Vous pouvez déduire de vos revenus imposables les versements volontaires effectués dans le PERCOL.  \nLes sommes seront alors fiscalisées au moment du retrait selon la réglementation en vigueur."]
[null,null,null,null,null,null,null,null,null,null,null,null,null,null,null,null,null,null,null,null,null,null,null,null,null,null,null,null,null,null,null,null,null,null,null,null,null,null,null,"PERCOL"]
[]
[null,null,null,null,null,"Je choisis de bénéficier des versements déductibles dans le PERCOL      ",null,null,null,null,null,null,null,null,null,null,null,null,null,null,null,null,null,null,null,null,null,null,null,null,null,null,null,null,null,null,null,null,null,{"$f":"X23","v":"Versements volontaires"},null,null,null,null,null,null,null,null,null,null,null,"Taux",null,null,null,{"$f":" IF($X$23=\"Versements volontaires\",\"Abondement sur Versements volontaires\",IF($X$23=\"Intéressement\",\"Abondement sur Intéressement\",IF($X$23=\"Participation\",\"Abondement sur Participation\",IF($X$23=\"Jours de repos non pris / CET\",\"Abondement sur Jours de repos non pris / CET\",IF($X$23=\"Prime de partage de la valeur\",\"Abondement sur Prime de partage de la valeur\",IF($X$23=\"Abondement unilatéral\",\" Montant total investi pour l'abondement unilatéral\"))))))","v":"Abondement sur Versements volontaires"}]
[]
[null,null,null,null,null,"Je renonce aux versements déductibles",null,null,null,null,null,null,null,null,null,null,null,null,null,null,null,null,null,null,null,null,null,null,null,null,null,null,null,null,null,null,null,null,null,null,null,{"$f":"$N$26","v":0},null,null,null,null,null,null,"x",null,null,{"$f":"+'Saisie des données + guide'!AK29","v":0},null,null,null,null,null,{"$f":"IF(X23=\"abondement unilatéral\",\"C'=\", \"B' =\")","v":"B' ="},{"$f":"IF(AND(ISBLANK(N26),ISBLANK(AG23)),\"\",IF(AND(X23=\"Abondement unilatéral\",G16=J105,ISBLANK('Saisie des données + guide'!AG36)),MIN(Plafond_uni_TS,AG23*0.903),IF(AND(X23=\"Abondement unilatéral\",G16=J106),MIN(Plafond_uni_TNS,AG23),IF(AND(X23<>\"Abondement unilatéral\",G16=J105,ISBLANK('Saisie des données + guide'!AG36)),MIN(Plafond_PERCO_net,(1-CSG_CRDS)*AZ35*N26),IF(AND(X23<>\"Abondement unilatéral\",G16=J106,ISBLANK('Saisie des données + guide'!AG36)),MIN(Plafond_PERCO,AZ35*N26),IF(AND(X23<>\"Abondement unilatéral\",G16=J105,'Saisie des données + guide'!AG36=\"X\"),MIN(Plafond_PERCO,AZ35*N26),IF(AND(X23<>\"Abondement unilatéral\",G16=J106,'Saisie des données + guide'!AG36=\"X\"),MIN(Plafond_PERCO,AZ35*N26),IF(AND(X23=\"Abondement unilatéral\",G16=J106,'Saisie des données + guide'!AG36=\"X\"),MIN(Plafond_uni_TNS,AG23),IF(AND(X23=\"Abondement unilatéral\",G16=J105,'Saisie des données + guide'!AG36=\"X\"),MIN(Plafond_uni_TNS,AG23))))))))))","v":""}]
[null,null,null,null,null,"Attention : Votre choix est irrévocable. En l'absence de choix, les versements volontaires dans le PERCOL seront déductibles.",null,null,null,null,null,null,null,null,null,null,null,null,null,null,null,null,null,null,null,null,null,null,null,null,"> Plus de détails",null,null,null,null,null,null,null,null,null,null,"B",null,null,null,null,null,null,null,null,null,"T",null,null,null,null,null,null,{"$f":"IF(AND(ISBLANK(N26),ISBLANK(AG23)),\"\",IF(AND(X23=\"Abondement unilatéral\",G16=J105,ISBLANK('Saisie des données + guide'!AG36)),\"plafonné à \"&Plafond_uni_TS&\" € pour \"&J105,IF(AND(X23=\"Abondement unilatéral\",G16=J106),\"plafonné à \"&Plafond_uni_TNS&\" € pour \"&J106,IF(AND(X23<>\"Abondement unilatéral\",G16=J105,ISBLANK('Saisie des données + guide'!AG36)),\"plafonné à \"&Plafond_PERCO_net&\" € pour \"&J105,IF(AND(X23<>\"Abondement unilatéral\",G16=J106,ISBLANK('Saisie des données + guide'!AG36)),\"plafonné à \"&Plafond_PERCO&\" € pour \"&J106,IF(AND(X23<>\"Abondement unilatéral\",G16=J105,'Saisie des données + guide'!AG36=\"X\"),\"plafonné à \"&Plafond_PERCO&\" € pour \"&J105,IF(AND(X23<>\"Abondement unilatéral\",G16=J106,'Saisie des données + guide'!AG36=\"X\"),\"plafonné à \"&Plafond_PERCO&\" € pour \"&J106,IF(AND(X23=\"Abondement unilatéral\",G16=J106,'Saisie des données + guide'!AG36=\"X\"),\"plafonné à \"&Plafond_uni_TNS&\" € pour \"&J106,IF(AND(X23=\"Abondement unilatéral\",G16=J105,'Saisie des données + guide'!AG36=\"X\"),\"plafonné à \"&Plafond_uni_TNS&\" € pour \"&J105)))))))))","v":""}]
[]
[]
[]
[null,null,"RÉPARTITION DE L'ÉPARGNE",null,null,null,null,null,null,null,null,null,null,null,null,"N'hésitez pas à consulter l'onglet \"Autres fonds\" pour ajouter d'autres supports de placement.",null,null,null,null,null,null,null,null,null,null,null,null,null,null,null,null,null,null,null,null,null,null,null,"VERSEMENT TOTAL DE L'ENTREPRISE",null,null,null,null,null,null,null,null,null,null,null,null,null,null,"(A' + B')",null,null,null,{"$f":"MAX($BG$26,0)+MAX($BG$35,0)","v":0}]
[null,null,null,"A. Gestion Libre",null,null,null,null,null,null,null,null,null,null,null,null,null,null,null,null,null,null,null,null,null,null,null,null,null,null,null,null,null,null,null,null,null,null,null,"Le versement de l'abondement s'effectue sur les mêmes fonds que le versement personnel."]
[]
[null,null,"CODE ET NOM DES FONDS",null,null,null,null,null,null,null,null,null,null,null,"PEE",null,null,null,null,null,null,null,null,null,null,"PERCOL"]
[null,null,null,null,null,null,null,null,null,null,null,null,null,null,{"$f":"+IF(SUM(R47:Y76)>E26,\"ERREUR SAISIE\",IF(R46=0,\"\",\"Reste à répartir sur les fonds suivants\"))","v":""},null,null,null,null,null,null,null,null,null,null,{"$f":"+IF(SUM(AC47:AJ79)>(N26+AG23),\"ERREUR SAISIE\",IF(AC46=0,\"\",\"Reste à répartir sur les fonds suivants\"))","v":""},null,null,null,null,null,null,null,null,null,null,null,null,null,"VERSEMENT TOTAL INVESTI",null,null,null,null,null,null,null,null,null,null,null,null,null,"(A + B) + (A' + B')",null,null,null,null,{"$f":"+$AB$26+$BG$40","v":0}]
[]
[null,null,null,null,null,null,null,null,null,null,null,null,null,null,{"$f":"IF(E26>0,100-(SUM(O47:P76)),\"\")","v":""},null,{"$f":"IF(O46<>0, \"%\", \"\")","v":"%"},{"$f":"E26-SUM(R47:Y76)","v":0},null,null,null,null,null,null,null,{"$f":"IF((N26+AG23)>0,100-(SUM(Z47:AA79)),\"\")","v":""},null,{"$f":"IF(Z46<>0, \"%\", \"\")","v":"%"},{"$f":"(N26+AG23)-SUM(AC47:AJ79)","v":0}]
[null,null,{"$f":"+IF('Saisie des données + guide'!U25=\"Gamme GER\",\"84289 - GER Monétaire\",IF('Saisie des données + guide'!U25=\"Gamme TESORUS\",\"82659 - TESORUS Monétaire\",IF('Saisie des données + guide'!U25=\"Gamme Fonds Directs\",\"15719 - Oblifonds\",IF('Saisie des données + guide'!U25=\"Gamme Finama\",\"\",\"\"))))","v":"84289 - GER Monétaire"},null,null,null,null,null,null,null,null,null,null,null,null,null,"%",{"$f":"IF(O47=\"\",\"--------------\",+E$26*O47/100)","v":"--------------"},null,null,null,null,null,null,null,null,null,"%",{"$f":"IF(Z47=\"\",\"--------------\",+(N$26+$AG$23)*Z47/100)","v":"--------------"}]
[null,null,null,null,null,null,null,null,null,null,null,null,null,null,null,null,null,null,null,null,null,null,null,null,null,null,null,null,null,null,null,null,null,null,null,null,null,null,"ATTENTION : Si plusieurs épargnants effectuent des versements au même moment, vous devrez de regrouper l’ensemble des abondements en un seul chèque. Pour cela, reportez vous à la fiche récapitulative jointe sur ce fichier.\n\nLes chèques sont à libeller à l’ordre de GROUPAMA ÉPARGNE SALARIALE et à envoyer à l'adresse suivante : \nGroupama Épargne Salariale - Service Clients\n46 rue Jules Méline - 53098 Laval Cedex 9"]
[null,null,{"$f":"+IF('Saisie des données + guide'!U25=\"Gamme GER\",\"84309 - GER Prudence\",IF('Saisie des données + guide'!U25=\"Gamme TESORUS\",\"82719 - TESORUS Prudence\",IF('Saisie des données + guide'!U25=\"Gamme Fonds Directs\",\"4939 - Diversifonds\",\"\")))","v":"84309 - GER Prudence"},null,null,null,null,null,null,null,null,null,null,null,null,null,"%",{"$f":"IF(O49=\"\",\"--------------\",+E$26*O49/100)","v":"--------------"},null,null,null,null,null,null,null,null,null,"%",{"$f":"IF(Z49=\"\",\"--------------\",+(N$26+$AG$23)*Z49/100)","v":"--------------"}]
[]
[null,null,{"$f":"+IF('Saisie des données + guide'!U25=\"Gamme GER\",\"84329 - GER Equilibre\",IF('Saisie des données + guide'!U25=\"Gamme TESORUS\",\"82669 - TESORUS Equilibre\",IF('Saisie des données + guide'!U25=\"Gamme Fonds Directs\",\"2459 - Foncival\",\"\")))","v":"84329 - GER Equilibre"},null,null,null,null,null,null,null,null,null,null,null,null,null,"%",{"$f":"IF(O51=\"\",\"--------------\",+E$26*O51/100)","v":"--------------"},null,null,null,null,null,null,null,null,null,"%",{"$f":"IF(Z51=\"\",\"--------------\",+(N$26+$AG$23)*Z51/100)","v":"--------------"}]
[]
[null,null,{"$f":"+IF('Saisie des données + guide'!U25=\"Gamme GER\",\"84349 - GER Dynamique\",IF('Saisie des données + guide'!U25=\"Gamme TESORUS\",\"82689 - TESORUS Dynamique\",\"\"))","v":"84349 - GER Dynamique"},null,null,null,null,null,null,null,null,null,null,null,null,null,"%",{"$f":"IF(O53=\"\",\"--------------\",+E$26*O53/100)","v":"--------------"},null,null,null,null,null,null,null,null,null,"%",{"$f":"IF(Z53=\"\",\"--------------\",+(N$26+$AG$23)*Z53/100)","v":"--------------"}]
[]
[null,null,{"$f":"+IF('Saisie des données + guide'!U25=\"Gamme GER\",\"84369 - GER Solidaire\",IF('Saisie des données + guide'!U25=\"Gamme TESORUS\",\"87649 - TESORUS Solidaire\",\"\"))","v":"84369 - GER Solidaire"},null,null,null,null,null,null,null,null,null,null,null,null,null,"%",{"$f":"IF(O55=\"\",\"--------------\",+E$26*O55/100)","v":"--------------"},null,null,null,null,null,null,null,null,null,"%",{"$f":"IF(Z55=\"\",\"--------------\",+(N$26+$AG$23)*Z55/100)","v":"--------------"}]
[]
[null,null,"110429 - Finama Épargne Court Terme",null,null,null,null,null,null,null,null,null,null,null,null,null,"%",{"$f":"IF(O57=\"\",\"--------------\",+E$26*O57/100)","v":"--------------"},null,null,null,null,null,null,null,null,null,"%",{"$f":"IF(Z57=\"\",\"--------------\",+(N$26+$AG$23)*Z57/100)","v":"--------------"}]
[]
[null,null,"79139 - Finama Actions Internationales",null,null,null,null,null,null,null,null,null,null,null,null,null,"%",{"$f":"IF(O59=\"\",\"--------------\",+E$26*O59/100)","v":"--------------"},null,null,null,null,null,null,null,null,null,"%",{"$f":"IF(Z59=\"\",\"--------------\",+(N$26+$AG$23)*Z59/100)","v":"--------------"}]
[]
[null,null,"116119 - Groupama Sélection PME-ETI",null,null,null,null,null,null,null,null,null,null,null,null,null,"%",{"$f":"IF(O61=\"\",\"--------------\",+E$26*O61/100)","v":"--------------"},null,null,null,null,null,null,null,null,null,"%",{"$f":"IF(Z61=\"\",\"--------------\",+(N$26+$AG$23)*Z61/100)","v":"--------------"}]
[]
[null,null,null,null,null,null,null,null,null,null,null,null,null,null,null,null,"%",{"$f":"IF(O63=\"\",\"--------------\",+E$26*O63/100)","v":"--------------"},null,null,null,null,null,null,null,null,null,"%",{"$f":"IF(Z63=\"\",\"--------------\",+(N$26+$AG$23)*Z63/100)","v":"--------------"}]
[]
[null,null,null,null,null,null,null,null,null,null,null,null,null,null,null,null,"%",{"$f":"IF(O65=\"\",\"--------------\",+E$26*O65/100)","v":"--------------"},null,null,null,null,null,null,null,null,null,"%",{"$f":"IF(Z65=\"\",\"--------------\",+(N$26+$AG$23)*Z65/100)","v":"--------------"}]
[]
[null,null,null,null,null,null,null,null,null,null,null,null,null,null,null,null,"%",{"$f":"IF(O67=\"\",\"--------------\",+E$26*O67/100)","v":"--------------"},null,null,null,null,null,null,null,null,null,"%",{"$f":"IF(Z67=\"\",\"--------------\",+(N$26+$AG$23)*Z67/100)","v":"--------------"}]
[]
[null,null,null,null,null,null,null,null,null,null,null,null,null,null,null,null,"%",{"$f":"IF(O69=\"\",\"--------------\",+E$26*O69/100)","v":"--------------"},null,null,null,null,null,null,null,null,null,"%",{"$f":"IF(Z69=\"\",\"--------------\",+(N$26+$AG$23)*Z69/100)","v":"--------------"}]
[]
[null,null,null,null,null,null,null,null,null,null,null,null,null,null,null,null,"%",{"$f":"IF(O71=\"\",\"--------------\",+E$26*O71/100)","v":"--------------"},null,null,null,null,null,null,null,null,null,"%",{"$f":"IF(Z71=\"\",\"--------------\",+(N$26+$AG$23)*Z71/100)","v":"--------------"}]
[]
[null,null,null,null,null,null,null,null,null,null,null,null,null,null,null,null,"%",{"$f":"IF(O73=\"\",\"--------------\",+E$26*O73/100)","v":"--------------"},null,null,null,null,null,null,null,null,null,"%",{"$f":"IF(Z73=\"\",\"--------------\",+(N$26+$AG$23)*Z73/100)","v":"--------------"}]
[]
[null,null,null,null,null,null,null,null,null,null,null,null,null,null,null,null,"%",{"$f":"IF(O75=\"\",\"--------------\",+E$26*O75/100)","v":"--------------"},null,null,null,null,null,null,null,null,null,"%",{"$f":"IF(Z75=\"\",\"--------------\",+(N$26+$AG$23)*Z75/100)","v":"--------------"}]
[]
[]
[null,null,null,"B. Gestion Pilotée",null,null,null,null,null,null,null,null,null,null,null,null,null,"Choisissez votre profil",null,null,null,null,null,null,null,null,null,"%",{"$f":"IF(Z78=\"\",\"--------------\",+(N26+AG23)*Z78/100)","v":"--------------"}]
[null,null,null,"valable uniquement sur le PERCOL",null,null,null,null,null,null,null,{"$f":"IF(L78=\"Oui\",\"Préciser la grille d'allocation\",\"\")","v":""}]
[]
[]
[null,null,"Je déclare avoir pris connaissance du règlement du plan, des documents d'information clés (DIC/KID) des fonds remis par mon entreprise et téléchargeables sur www.groupama-es.fr, ainsi que des modalités de fonctionnement des versements individuels jointes au présent bulletin. \nConformément au contrat d’épargne salariale mis en place par votre entreprise, des frais de versements d’un maximum de 4 % peuvent s’appliquer. Nous vous invitons à contacter votre employeur pour obtenir le montant de ces frais.\nEn l'absence de choix de fonds, les sommes seront investies sur le fonds par défaut dans le PEE ou selon le mode de gestion pilotée dans le PERCOL : soit le profil Équilibre Horizon Retraite s'il s'agit de votre premier versement ou si vous aviez opté pour la gestion libre lors de précédent versement, soit avec le même profil de gestion pilotée précédemment choisi.\nPour tout versement volontaire à partir de 8 000 €, une copie de votre pièce d'identité devra être fournie, accompagnée du dernier avis d'imposition pour un versement d’un montant de 15 000 € et plus. ",null,null,null,null,null,null,null,null,null,null,null,null,null,null,null,null,null,null,null,null,null,null,null,null,null,null,null,null,null,null,null,null,null,null,null,null,"Conformément au règlement général sur la protection des données n°2016/679 du 27 avril 2016, vos données personnelles sont traitées par Groupama Épargne Salariale à des fins de tenue des comptes d'épargne salariale. Elles sont destinées aux membres du personnel dûment habilités de Groupama Épargne Salariale ainsi qu’à ses sous-traitants. Elles sont conservées par Groupama Épargne Salariale pendant une durée maximale de trente ans à compter de la disponibilité des avoirs.Vous pouvez demander l’accès, la rectification, l'effacement et la portabilité de vos données personnelles ainsi que limiter ou vous opposer, pour motif légitime, au traitement en écrivant au Délégué Relais à la Protection des Données de Groupama Épargne Salariale – Service du Contrôle interne – 2 boulevard de Pesaro – 92000 Nanterre ou par email : controleinterne@groupama-es.fr. Réf. : BIV 01-01-2024"]
[]
[]
[null,null,null,"J’atteste sur l’honneur que mon versement est conforme à la réglementation, notamment qu'il provient bien de mon épargne personnelle et que l’ensemble de mes versements de l’année au PEE ne dépasse pas 25 % de ma rémunération annuelle brute.",null,null,null,null,null,null,null,null,null,null,null,null,null,null,null,null,null,null,null,null,null,"SIGNATURE DE L'ÉPARGNANT"]
[null,null,null,null,null,null,null,null,null,null,null,null,null,null,null,null,null,null,null,null,null,null,null,null,null,null,null,null,null,null,null,null,null,null,null,null,null,null,null,null,null,null,null,null,null,null,"Groupama Épargne Salariale - Entreprise d'investissement agréée par l'ACPR - Teneur de comptes - Conservateur de parts \nSA au capital de 8.709.015 € - Siège social : 2 boulevard de Pesaro 92000 Nanterre - 428 768 352 RCS Nanterre"]
[]
[null,null,"Fait à :",null,null,null,null,null,null,null,null,null,null,"Le :",null,null,null,null,null,null,{"$f":"'Saisie des données + guide'!BF2","v":2024}]
[]
[]
[]
[]
[]
[]
[]
[]
[]
[]
[null,null,null,null,"3 options dans ce BIV :"]
[]
[null,null,null,null,null,null,"Ouverture compte :"]
[null,null,null,null,null,null,null,null,null,null,null,null,"X"]
[]
[null,null,null,null,null,null,"Statut :"]
[null,null,null,null,null,null,null,null,null,"Salarié"]
[null,null,null,null,null,null,null,null,null,"Non salarié"]
[]
[null,null,null,null,null,null,"Gestion pilotée :"]
[null,null,null,null,null,null,null,null,null,null,"Choisissez votre profil"]
[null,null,null,null,null,null,null,null,null,null,"Profil Prudent Horizon Retraite"]
[null,null,null,null,null,null,null,null,null,null,"Profil Équilibre Horizon Retraite"]
[null,null,null,null,null,null,null,null,null,null,"Profil Dynamique Horizon Retraite"]
[]
[null,null,null,null,null,null,null,null,null,null,null,"Oui"]
[null,null,null,null,null,null,null,null,null,null,null,"Non"]

{"sheet":"Bulletin n°4","index":4,"n_rows":115,"n_cols":70,"rows_kept":115,"cut":false,"hidden":false,"merged":[[93,10,93,15],[93,16,93,22],[93,23,93,28],[9,22,9,35],[11,6,11,16],[11,22,11,35],[13,6,13,10],[13,11,13,12],[13,13,13,16],[74,2,75,13],[74,14,75,15],[74,16,75,16],[74,17,75,24],[74,25,75,26],[74,27,75,27],[74,28,75,35],[77,11,77,12],[77,17,78,23],[77,25,78,26],[77,27,78,27],[77,28,78,35],[78,3,79,10],[78,11,78,16],[68,2,69,13],[68,25,69,26],[68,27,69,27],[68,28,69,35],[70,2,71,13],[70,14,71,15],[70,16,71,16],[70,17,71,24],[70,25,71,26],[70,27,71,27],[70,28,71,35],[72,2,73,13],[72,14,73,15],[72,16,73,16],[72,17,73,24],[72,25,73,26],[72,27,73,27],[72,28,73,35],[64,2,65,13],[64,14,65,15],[64,16,65,16],[64,17,65,24],[64,25,65,26],[64,27,65,27],[64,28,65,35],[66,2,67,13],[66,14,67,15],[66,16,67,16],[66,17,67,24],[66,25,67,26],[66,27,67,27],[66,28,67,35],[68,14,69,15],[68,16,69,16],[68,17,69,24],[56,14,57,15],[56,16,57,16],[56,17,57,24],[56,25,57,26],[56,27,57,27],[56,28,57,35],[58,2,59,13],[58,14,59,15],[58,16,59,16],[58,17,59,24],[58,25,59,26],[58,27,59,27],[58,28,59,35],[56,2,57,13],[52,25,53,26],[52,27,53,27],[52,28,53,35],[54,2,55,13],[54,14,55,15],[54,16,55,16],[54,17,55,24],[54,25,55,26],[54,27,55,27],[54,28,55,35],[46,16,47,16],[46,17,47,24],[46,25,47,26],[46,27,47,27],[46,28,47,35],[47,38,53,71],[48,2,49,13],[48,14,49,15],[48,16,49,16],[48,17,49,24],[48,25,49,26],[48,27,49,27],[48,28,49,35],[50,2,51,13],[50,14,51,15],[50,16,51,16],[50,17,51,24],[50,25,51,26],[50,27,51,27],[50,28,51,35],[52,2,53,13],[52,14,53,15],[52,16,53,16],[52,17,53,24],[39,54,39,57],[39,58,39,68],[40,39,42,53],[42,2,45,13],[42,14,42,24],[42,25,42,35],[43,14,44,24],[43,25,44,35],[43,53,43,57],[43,58,43,68],[45,14,45,15],[45,17,45,24],[45,25,45,26],[45,28,45,35],[32,5,32,26],[32,39,32,48],[32,51,33,54],[32,55,32,69],[35,5,35,29],[35,30,35,35],[35,41,35,46],[35,51,35,54],[35,58,35,68],[24,4,24,5],[26,23,27,35],[26,41,26,46],[26,51,26,54],[26,58,26,68],[28,58,28,68],[29,3,31,35],[30,39,30,56],[30,58,30,68],[24,39,24,48],[25,2,25,3],[25,4,25,5],[25,11,25,12],[25,13,25,14],[25,17,25,18],[25,23,25,26],[25,27,25,35],[25,48,25,49],[9,45,9,69],[0,1,0,52],[2,1,3,36],[2,39,3,71],[5,45,5,50],[7,6,7,16],[7,22,7,35],[7,45,7,69],[0,59,0,68],[0,69,0,71],[5,22,5,35],[5,6,5,10],[5,13,5,16],[9,6,9,10],[9,15,9,16],[62,27,63,27],[62,28,63,35],[18,89,18,107],[11,45,11,69],[15,6,16,16],[15,22,15,35],[15,39,18,69],[25,41,25,46],[25,51,25,54],[25,58,25,68],[46,14,47,15],[24,13,24,14],[24,51,24,54],[34,41,34,46],[34,51,34,54],[34,58,34,68],[34,5,34,26],[34,48,34,49],[46,2,47,13],[22,23,22,29],[22,30,22,31],[22,32,22,35],[22,39,22,43],[24,23,24,35],[13,22,13,35],[80,17,80,24],[81,2,82,35],[81,39,83,71],[84,3,85,23],[84,25,84,35],[85,25,87,35],[85,46,88,71],[87,2,87,4],[87,5,87,11],[87,13,87,15],[87,20,87,22],[60,2,61,13],[60,14,61,15],[60,16,61,16],[60,17,61,24],[60,25,61,26],[60,27,61,27],[60,28,61,35],[62,2,63,13],[62,14,63,15],[62,16,63,16],[62,17,63,24],[62,25,63,26]]}
[null,"BULLETIN INDIVIDUEL DE VERSEMENTS SUR VOTRE PLAN D’ÉPARGNE SALARIALE",null,null,null,null,null,null,null,null,null,null,null,null,null,null,null,null,null,null,null,null,null,null,null,null,null,null,null,null,null,null,null,null,null,null,null,null,null,null,null,null,null,null,null,null,null,null,null,null,null,null,null,null,null,null,null,null,null," Version PERCOL",null,null,null,null,null,null,null,null,null,{"$f":"'Saisie des données + guide'!BF2","v":2024}]
[]
[null,"VERSEMENT DE L'ÉPARGNANT",null,null,null,null,null,null,null,null,null,null,null,null,null,null,null,null,null,null,null,null,null,null,null,null,null,null,null,null,null,null,null,null,null,null,null,null,null,"VERSEMENT COMPLÉMENTAIRE (ABONDEMENT) DE L'ENTREPRISE"]
[]
[]
[null,null,"Civilité ",null,null,null,null,null,null,null,null,null,"Nom",null,null,null,null,null,"Prénom",null,null,null,null,null,null,null,null,null,null,null,null,null,null,null,null,null,null,null,null,"Code entreprise",null,null,null,null,null,{"$f":"'Saisie des données + guide'!K12","v":0},null,null,null,null,null,null,null,null,null,null,null,null,null,null,null,null,null,null,null,null,null,null,"Exercice fiscal de référence :",{"$f":"'Saisie des données + guide'!V$48","v":0}]
[]
[null,null,"N° Sécurité sociale",null,null,null,null,null,null,null,null,null,null,null,null,null,null,null,"Nom de naissance",null,null,null,null,null,null,null,null,null,null,null,null,null,null,null,null,null,null,null,null,"Raison sociale",null,null,null,null,null,{"$f":"'Saisie des données + guide'!K14","v":0}]
[]
[null,null,"Date de naissance",null,null,null,null,null,null,null,null,"Département de naissance",null,null,null,null,null,null,"Ville de naissance",null,null,null,null,null,null,null,null,null,null,null,null,null,null,null,null,null,null,null,null,"Contact",null,null,null,null,null,{"$f":"'Saisie des données + guide'!K16","v":0}]
[]
[null,null,"Adresse ",null,null,null,null,null,null,null,null,null,null,null,null,null,null,null,"Pays de naissance",null,null,null,null,null,null,null,null,null,null,null,null,null,null,null,null,null,null,null,null,"Email",null,null,null,null,null,{"$f":"'Saisie des données + guide'!K18","v":0}]
[]
[null,null,"Code postal",null,null,null,null,null,null,null,null,"Ville",null,null,null,null,null,null,"E-mail",null,null,null,null,null,null,null,null,null,null,null,null,null,null,null,null,null,null,null,null,"Si CSG-CRDS non précomptées pour le salarié",null,null,null,null,null,null,null,null,null,null,null,null,null,null,null,null,{"$f":"+'Saisie des données + guide'!AG36","v":0},null,null,null,null,null,null,null,null,null,null,null,"Le PASS* pour l'année 2024 est de :",{"$f":"PASS","v":46368}]
[]
[null,null,"Statut",null,null,null,null,null,null,null,null,null,null,null,null,null,null,null,"Téléphone",null,null,null,null,null,null,null,null,null,null,null,null,null,null,null,null,null,null,null,null,{"$f":"+'Saisie des données + guide'!E38","v":"Le montant que Groupama Épargne Salariale doit investir est le montant net de CSG-CRDS (les prélèvements sociaux étant payés directement par vos soins).  Si vous cochez la case, cela signifie que vous souhaitez par dérogation nous adresser un montant brut de CSG-CRDS et que vous aurez prélevé sur la fiche de paie de chacun des salariés concernés la CSG-CRDS relative à l'opération réalisée. Cette dérogation n'est pas possible si l'abondement est à calculer par Groupama Épargne Salariale."}]
[]
[]
[]
[null,null,null,null,null,null,null,null,null,null,null,null,null,null,null,null,null,null,null,null,null,null,null,null,null,null,null,null,null,null,null,null,null,null,null,null,null,null,null,null,null,null,null,null,null,null,null,null,null,null,null,null,null,null,null,null,null,null,null,"* PASS : Plafond Annuel de la Sécurité Sociale"]
[]
[]
[null,null,"MONTANTS À INVESTIR",null,null,null,null,null,null,null,null,null,null,null,null,null,null,null,"Origine des versements ",null,null,null,null,{"$f":"'Saisie des données + guide'!U21","v":"Versements volontaires"},null,null,null,null,null,null,{"$f":"IF(X23=\"Abondement unilatéral\", \" C =\", \"\")","v":""},null,null,null,null,null,null,null,null,"PEE"]
[null,null,null,null,null,null,null,null,null,null,null,null,null,null,null,null,null,null,{"$f":"+IF($X$23=\"Abondement unilatéral\",\"Le versement de l'abondement unilatéral est limité à 2% du PASS 2024 (soit 927,36€)\",\"\")","v":""}]
[null,null,null,null,"PEE",null,null,null,null,null,null,null,null,"PERCOL",null,null,null,null,null,null,null,null,null,"MONTANT TOTAL",null,null,null,null,null,null,null,null,null,null,null,null,null,null,null,{"$f":"X23","v":"Versements volontaires"},null,null,null,null,null,null,null,null,null,null,null,"Taux",null,null,null,null,null,null,{"$f":"\"Abondement sur \"&X23&\"\"","v":"Abondement sur Versements volontaires"}]
[null,null,"A =",null,null,null,null,null,null,"+",null,"B =",null,null,null,null,null,null,null,"=",null,null,null,"A + B =",null,null,null,{"$f":"$E$26+$N$26","v":0},null,null,null,null,null,null,null,null,null,null,null,null,null,{"$f":"E$26","v":0},null,null,null,null,null,null,"x",null,null,{"$f":"+'Saisie des données + guide'!S$29","v":0},null,null,null,null,null,"A' =",{"$f":"IF(ISBLANK(E26),\"\",IF(AND(G16=J105,ISBLANK('Saisie des données + guide'!AG36)),MIN(Plafond_PEE_net,E26*AZ26*(1-CSG_CRDS)),IF(AND(G16=J106,ISBLANK('Saisie des données + guide'!AG36)),MIN(Plafond_PEE,E26*AZ26),IF(AND(G16=J105,'Saisie des données + guide'!AG36=\"X\"),MIN(Plafond_PEE,E26*AZ26),IF(AND(G16=J106,'Saisie des données + guide'!AG36=\"X\"),MIN(Plafond_PEE,E26*AZ26))))))","v":""}]
[null,null,null,null,null,null,null,null,null,null,null,null,null,null,null,null,null,null,null,null,null,null,null,null,null,null,null,null,null,null,null,null,null,null,null,null,null,null,null,null,null,"A",null,null,null,null,null,null,null,null,null,"T",null,null,null,null,null,null,{"$f":"IF(AND(G16=J105,ISBLANK('Saisie des données + guide'!AG$36)),\"plafonné à \" &Plafond_PEE_net&\" € pour \"&J$105,IF(AND(G16=J105,'Saisie des données + guide'!AG$36=\"X\"),\"plafonné à \" &Plafond_PEE&\" € pour \"&J$105,\"plafonné à \" &Plafond_PEE&\" € pour \"&J$106))","v":"plafonné à 3709,44 € pour Non salarié"}]
[]
[]
[null,null,null,"UNIQUEMENT PERCOL : Vous pouvez déduire de vos revenus imposables les versements volontaires effectués dans le PERCOL.  \nLes sommes seront alors fiscalisées au moment du retrait selon la réglementation en vigueur."]
[null,null,null,null,null,null,null,null,null,null,null,null,null,null,null,null,null,null,null,null,null,null,null,null,null,null,null,null,null,null,null,null,null,null,null,null,null,null,null,"PERCOL"]
[]
[null,null,null,null,null,"Je choisis de bénéficier des versements déductibles dans le PERCOL      ",null,null,null,null,null,null,null,null,null,null,null,null,null,null,null,null,null,null,null,null,null,null,null,null,null,null,null,null,null,null,null,null,null,{"$f":"X23","v":"Versements volontaires"},null,null,null,null,null,null,null,null,null,null,null,"Taux",null,null,null,{"$f":" IF($X$23=\"Versements volontaires\",\"Abondement sur Versements volontaires\",IF($X$23=\"Intéressement\",\"Abondement sur Intéressement\",IF($X$23=\"Participation\",\"Abondement sur Participation\",IF($X$23=\"Jours de repos non pris / CET\",\"Abondement sur Jours de repos non pris / CET\",IF($X$23=\"Prime de partage de la valeur\",\"Abondement sur Prime de partage de la valeur\",IF($X$23=\"Abondement unilatéral\",\" Montant total investi pour l'abondement unilatéral\"))))))","v":"Abondement sur Versements volontaires"}]
[]
[null,null,null,null,null,"Je renonce aux versements déductibles",null,null,null,null,null,null,null,null,null,null,null,null,null,null,null,null,null,null,null,null,null,null,null,null,null,null,null,null,null,null,null,null,null,null,null,{"$f":"$N$26","v":0},null,null,null,null,null,null,"x",null,null,{"$f":"+'Saisie des données + guide'!AK29","v":0},null,null,null,null,null,{"$f":"IF(X23=\"abondement unilatéral\",\"C'=\", \"B' =\")","v":"B' ="},{"$f":"IF(AND(ISBLANK(N26),ISBLANK(AG23)),\"\",IF(AND(X23=\"Abondement unilatéral\",G16=J105,ISBLANK('Saisie des données + guide'!AG36)),MIN(Plafond_uni_TS,AG23*0.903),IF(AND(X23=\"Abondement unilatéral\",G16=J106),MIN(Plafond_uni_TNS,AG23),IF(AND(X23<>\"Abondement unilatéral\",G16=J105,ISBLANK('Saisie des données + guide'!AG36)),MIN(Plafond_PERCO_net,(1-CSG_CRDS)*AZ35*N26),IF(AND(X23<>\"Abondement unilatéral\",G16=J106,ISBLANK('Saisie des données + guide'!AG36)),MIN(Plafond_PERCO,AZ35*N26),IF(AND(X23<>\"Abondement unilatéral\",G16=J105,'Saisie des données + guide'!AG36=\"X\"),MIN(Plafond_PERCO,AZ35*N26),IF(AND(X23<>\"Abondement unilatéral\",G16=J106,'Saisie des données + guide'!AG36=\"X\"),MIN(Plafond_PERCO,AZ35*N26),IF(AND(X23=\"Abondement unilatéral\",G16=J106,'Saisie des données + guide'!AG36=\"X\"),MIN(Plafond_uni_TNS,AG23),IF(AND(X23=\"Abondement unilatéral\",G16=J105,'Saisie des données + guide'!AG36=\"X\"),MIN(Plafond_uni_TNS,AG23))))))))))","v":""}]
[null,null,null,null,null,"Attention : Votre choix est irrévocable. En l'absence de choix, les versements volontaires dans le PERCOL seront déductibles.",null,null,null,null,null,null,null,null,null,null,null,null,null,null,null,null,null,null,null,null,null,null,null,null,"> Plus de détails",null,null,null,null,null,null,null,null,null,null,"B",null,null,null,null,null,null,null,null,null,"T",null,null,null,null,null,null,{"$f":"IF(AND(ISBLANK(N26),ISBLANK(AG23)),\"\",IF(AND(X23=\"Abondement unilatéral\",G16=J105,ISBLANK('Saisie des données + guide'!AG36)),\"plafonné à \"&Plafond_uni_TS&\" € pour \"&J105,IF(AND(X23=\"Abondement unilatéral\",G16=J106),\"plafonné à \"&Plafond_uni_TNS&\" € pour \"&J106,IF(AND(X23<>\"Abondement unilatéral\",G16=J105,ISBLANK('Saisie des données + guide'!AG36)),\"plafonné à \"&Plafond_PERCO_net&\" € pour \"&J105,IF(AND(X23<>\"Abondement unilatéral\",G16=J106,ISBLANK('Saisie des données + guide'!AG36)),\"plafonné à \"&Plafond_PERCO&\" € pour \"&J106,IF(AND(X23<>\"Abondement unilatéral\",G16=J105,'Saisie des données + guide'!AG36=\"X\"),\"plafonné à \"&Plafond_PERCO&\" € pour \"&J105,IF(AND(X23<>\"Abondement unilatéral\",G16=J106,'Saisie des données + guide'!AG36=\"X\"),\"plafonné à \"&Plafond_PERCO&\" € pour \"&J106,IF(AND(X23=\"Abondement unilatéral\",G16=J106,'Saisie des données + guide'!AG36=\"X\"),\"plafonné à \"&Plafond_uni_TNS&\" € pour \"&J106,IF(AND(X23=\"Abondement unilatéral\",G16=J105,'Saisie des données + guide'!AG36=\"X\"),\"plafonné à \"&Plafond_uni_TNS&\" € pour \"&J105)))))))))","v":""}]
[]
[]
[]
[null,null,"RÉPARTITION DE L'ÉPARGNE",null,null,null,null,null,null,null,null,null,null,null,null,"N'hésitez pas à consulter l'onglet \"Autres fonds\" pour ajouter d'autres supports de placement.",null,null,null,null,null,null,null,null,null,null,null,null,null,null,null,null,null,null,null,null,null,null,null,"VERSEMENT TOTAL DE L'ENTREPRISE",null,null,null,null,null,null,null,null,null,null,null,null,null,null,"(A' + B')",null,null,null,{"$f":"MAX($BG$26,0)+MAX($BG$35,0)","v":0}]
[null,null,null,"A. Gestion Libre",null,null,null,null,null,null,null,null,null,null,null,null,null,null,null,null,null,null,null,null,null,null,null,null,null,null,null,null,null,null,null,null,null,null,null,"Le versement de l'abondement s'effectue sur les mêmes fonds que le versement personnel."]
[]
[null,null,"CODE ET NOM DES FONDS",null,null,null,null,null,null,null,null,null,null,null,"PEE",null,null,null,null,null,null,null,null,null,null,"PERCOL"]
[null,null,null,null,null,null,null,null,null,null,null,null,null,null,{"$f":"+IF(SUM(R47:Y76)>E26,\"ERREUR SAISIE\",IF(R46=0,\"\",\"Reste à répartir sur les fonds suivants\"))","v":""},null,null,null,null,null,null,null,null,null,null,{"$f":"+IF(SUM(AC47:AJ79)>(N26+AG23),\"ERREUR SAISIE\",IF(AC46=0,\"\",\"Reste à répartir sur les fonds suivants\"))","v":""},null,null,null,null,null,null,null,null,null,null,null,null,null,"VERSEMENT TOTAL INVESTI",null,null,null,null,null,null,null,null,null,null,null,null,null,"(A + B) + (A' + B')",null,null,null,null,{"$f":"+$AB$26+$BG$40","v":0}]
[]
[null,null,null,null,null,null,null,null,null,null,null,null,null,null,{"$f":"IF(E26>0,100-(SUM(O47:P76)),\"\")","v":""},null,{"$f":"IF(O46<>0, \"%\", \"\")","v":"%"},{"$f":"E26-SUM(R47:Y76)","v":0},null,null,null,null,null,null,null,{"$f":"IF((N26+AG23)>0,100-(SUM(Z47:AA79)),\"\")","v":""},null,{"$f":"IF(Z46<>0, \"%\", \"\")","v":"%"},{"$f":"(N26+AG23)-SUM(AC47:AJ79)","v":0}]
[null,null,{"$f":"+IF('Saisie des données + guide'!U25=\"Gamme GER\",\"84289 - GER Monétaire\",IF('Saisie des données + guide'!U25=\"Gamme TESORUS\",\"82659 - TESORUS Monétaire\",IF('Saisie des données + guide'!U25=\"Gamme Fonds Directs\",\"15719 - Oblifonds\",IF('Saisie des données + guide'!U25=\"Gamme Finama\",\"\",\"\"))))","v":"84289 - GER Monétaire"},null,null,null,null,null,null,null,null,null,null,null,null,null,"%",{"$f":"IF(O47=\"\",\"--------------\",+E$26*O47/100)","v":"--------------"},null,null,null,null,null,null,null,null,null,"%",{"$f":"IF(Z47=\"\",\"--------------\",+(N$26+$AG$23)*Z47/100)","v":"--------------"}]
[null,null,null,null,null,null,null,null,null,null,null,null,null,null,null,null,null,null,null,null,null,null,null,null,null,null,null,null,null,null,null,null,null,null,null,null,null,null,"ATTENTION : Si plusieurs épargnants effectuent des versements au même moment, vous devrez de regrouper l’ensemble des abondements en un seul chèque. Pour cela, reportez vous à la fiche récapitulative jointe sur ce fichier.\n\nLes chèques sont à libeller à l’ordre de GROUPAMA ÉPARGNE SALARIALE et à envoyer à l'adresse suivante : \nGroupama Épargne Salariale - Service Clients\n46 rue Jules Méline - 53098 Laval Cedex 9"]
[null,null,{"$f":"+IF('Saisie des données + guide'!U25=\"Gamme GER\",\"84309 - GER Prudence\",IF('Saisie des données + guide'!U25=\"Gamme TESORUS\",\"82719 - TESORUS Prudence\",IF('Saisie des données + guide'!U25=\"Gamme Fonds Directs\",\"4939 - Diversifonds\",\"\")))","v":"84309 - GER Prudence"},null,null,null,null,null,null,null,null,null,null,null,null,null,"%",{"$f":"IF(O49=\"\",\"--------------\",+E$26*O49/100)","v":"--------------"},null,null,null,null,null,null,null,null,null,"%",{"$f":"IF(Z49=\"\",\"--------------\",+(N$26+$AG$23)*Z49/100)","v":"--------------"}]
[]
[null,null,{"$f":"+IF('Saisie des données + guide'!U25=\"Gamme GER\",\"84329 - GER Equilibre\",IF('Saisie des données + guide'!U25=\"Gamme TESORUS\",\"82669 - TESORUS Equilibre\",IF('Saisie des données + guide'!U25=\"Gamme Fonds Directs\",\"2459 - Foncival\",\"\")))","v":"84329 - GER Equilibre"},null,null,null,null,null,null,null,null,null,null,null,null,null,"%",{"$f":"IF(O51=\"\",\"--------------\",+E$26*O51/100)","v":"--------------"},null,null,null,null,null,null,null,null,null,"%",{"$f":"IF(Z51=\"\",\"--------------\",+(N$26+$AG$23)*Z51/100)","v":"--------------"}]
[]
[null,null,{"$f":"+IF('Saisie des données + guide'!U25=\"Gamme GER\",\"84349 - GER Dynamique\",IF('Saisie des données + guide'!U25=\"Gamme TESORUS\",\"82689 - TESORUS Dynamique\",\"\"))","v":"84349 - GER Dynamique"},null,null,null,null,null,null,null,null,null,null,null,null,null,"%",{"$f":"IF(O53=\"\",\"--------------\",+E$26*O53/100)","v":"--------------"},null,null,null,null,null,null,null,null,null,"%",{"$f":"IF(Z53=\"\",\"--------------\",+(N$26+$AG$23)*Z53/100)","v":"--------------"}]
[]
[null,null,{"$f":"+IF('Saisie des données + guide'!U25=\"Gamme GER\",\"84369 - GER Solidaire\",IF('Saisie des données + guide'!U25=\"Gamme TESORUS\",\"87649 - TESORUS Solidaire\",\"\"))","v":"84369 - GER Solidaire"},null,null,null,null,null,null,null,null,null,null,null,null,null,"%",{"$f":"IF(O55=\"\",\"--------------\",+E$26*O55/100)","v":"--------------"},null,null,null,null,null,null,null,null,null,"%",{"$f":"IF(Z55=\"\",\"--------------\",+(N$26+$AG$23)*Z55/100)","v":"--------------"}]
[]
[null,null,"110429 - Finama Épargne Court Terme",null,null,null,null,null,null,null,null,null,null,null,null,null,"%",{"$f":"IF(O57=\"\",\"--------------\",+E$26*O57/100)","v":"--------------"},null,null,null,null,null,null,null,null,null,"%",{"$f":"IF(Z57=\"\",\"--------------\",+(N$26+$AG$23)*Z57/100)","v":"--------------"}]
[]
[null,null,"79139 - Finama Actions Internationales",null,null,null,null,null,null,null,null,null,null,null,null,null,"%",{"$f":"IF(O59=\"\",\"--------------\",+E$26*O59/100)","v":"--------------"},null,null,null,null,null,null,null,null,null,"%",{"$f":"IF(Z59=\"\",\"--------------\",+(N$26+$AG$23)*Z59/100)","v":"--------------"}]
[]
[null,null,"116119 - Groupama Sélection PME-ETI",null,null,null,null,null,null,null,null,null,null,null,null,null,"%",{"$f":"IF(O61=\"\",\"--------------\",+E$26*O61/100)","v":"--------------"},null,null,null,null,null,null,null,null,null,"%",{"$f":"IF(Z61=\"\",\"--------------\",+(N$26+$AG$23)*Z61/100)","v":"--------------"}]
[]
[null,null,null,null,null,null,null,null,null,null,null,null,null,null,null,null,"%",{"$f":"IF(O63=\"\",\"--------------\",+E$26*O63/100)","v":"--------------"},null,null,null,null,null,null,null,null,null,"%",{"$f":"IF(Z63=\"\",\"--------------\",+(N$26+$AG$23)*Z63/100)","v":"--------------"}]
[]
[null,null,null,null,null,null,null,null,null,null,null,null,null,null,null,null,"%",{"$f":"IF(O65=\"\",\"--------------\",+E$26*O65/100)","v":"--------------"},null,null,null,null,null,null,null,null,null,"%",{"$f":"IF(Z65=\"\",\"--------------\",+(N$26+$AG$23)*Z65/100)","v":"--------------"}]
[]
[null,null,null,null,null,null,null,null,null,null,null,null,null,null,null,null,"%",{"$f":"IF(O67=\"\",\"--------------\",+E$26*O67/100)","v":"--------------"},null,null,null,null,null,null,null,null,null,"%",{"$f":"IF(Z67=\"\",\"--------------\",+(N$26+$AG$23)*Z67/100)","v":"--------------"}]
[]
[null,null,null,null,null,null,null,null,null,null,null,null,null,null,null,null,"%",{"$f":"IF(O69=\"\",\"--------------\",+E$26*O69/100)","v":"--------------"},null,null,null,null,null,null,null,null,null,"%",{"$f":"IF(Z69=\"\",\"--------------\",+(N$26+$AG$23)*Z69/100)","v":"--------------"}]
[]
[null,null,null,null,null,null,null,null,null,null,null,null,null,null,null,null,"%",{"$f":"IF(O71=\"\",\"--------------\",+E$26*O71/100)","v":"--------------"},null,null,null,null,null,null,null,null,null,"%",{"$f":"IF(Z71=\"\",\"--------------\",+(N$26+$AG$23)*Z71/100)","v":"--------------"}]
[]
[null,null,null,null,null,null,null,null,null,null,null,null,null,null,null,null,"%",{"$f":"IF(O73=\"\",\"--------------\",+E$26*O73/100)","v":"--------------"},null,null,null,null,null,null,null,null,null,"%",{"$f":"IF(Z73=\"\",\"--------------\",+(N$26+$AG$23)*Z73/100)","v":"--------------"}]
[]
[null,null,null,null,null,null,null,null,null,null,null,null,null,null,null,null,"%",{"$f":"IF(O75=\"\",\"--------------\",+E$26*O75/100)","v":"--------------"},null,null,null,null,null,null,null,null,null,"%",{"$f":"IF(Z75=\"\",\"--------------\",+(N$26+$AG$23)*Z75/100)","v":"--------------"}]
[]
[]
[null,null,null,"B. Gestion Pilotée",null,null,null,null,null,null,null,null,null,null,null,null,null,"Choisissez votre profil",null,null,null,null,null,null,null,null,null,"%",{"$f":"IF(Z78=\"\",\"--------------\",+(N26+AG23)*Z78/100)","v":"--------------"}]
[null,null,null,"valable uniquement sur le PERCOL",null,null,null,null,null,null,null,{"$f":"IF(L78=\"Oui\",\"Préciser la grille d'allocation\",\"\")","v":""}]
[]
[]
[null,null,"Je déclare avoir pris connaissance du règlement du plan, des documents d'information clés (DIC/KID) des fonds remis par mon entreprise et téléchargeables sur www.groupama-es.fr, ainsi que des modalités de fonctionnement des versements individuels jointes au présent bulletin. \nConformément au contrat d’épargne salariale mis en place par votre entreprise, des frais de versements d’un maximum de 4 % peuvent s’appliquer. Nous vous invitons à contacter votre employeur pour obtenir le montant de ces frais.\nEn l'absence de choix de fonds, les sommes seront investies sur le fonds par défaut dans le PEE ou selon le mode de gestion pilotée dans le PERCOL : soit le profil Équilibre Horizon Retraite s'il s'agit de votre premier versement ou si vous aviez opté pour la gestion libre lors de précédent versement, soit avec le même profil de gestion pilotée précédemment choisi.\nPour tout versement volontaire à partir de 8 000 €, une copie de votre pièce d'identité devra être fournie, accompagnée du dernier avis d'imposition pour un versement d’un montant de 15 000 € et plus. ",null,null,null,null,null,null,null,null,null,null,null,null,null,null,null,null,null,null,null,null,null,null,null,null,null,null,null,null,null,null,null,null,null,null,null,null,"Conformément au règlement général sur la protection des données n°2016/679 du 27 avril 2016, vos données personnelles sont traitées par Groupama Épargne Salariale à des fins de tenue des comptes d'épargne salariale. Elles sont destinées aux membres du personnel dûment habilités de Groupama Épargne Salariale ainsi qu’à ses sous-traitants. Elles sont conservées par Groupama Épargne Salariale pendant une durée maximale de trente ans à compter de la disponibilité des avoirs.Vous pouvez demander l’accès, la rectification, l'effacement et la portabilité de vos données personnelles ainsi que limiter ou vous opposer, pour motif légitime, au traitement en écrivant au Délégué Relais à la Protection des Données de Groupama Épargne Salariale – Service du Contrôle interne – 2 boulevard de Pesaro – 92000 Nanterre ou par email : controleinterne@groupama-es.fr. Réf. : BIV 01-01-2024"]
[]
[]
[null,null,null,"J’atteste sur l’honneur que mon versement est conforme à la réglementation, notamment qu'il provient bien de mon épargne personnelle et que l’ensemble de mes versements de l’année au PEE ne dépasse pas 25 % de ma rémunération annuelle brute.",null,null,null,null,null,null,null,null,null,null,null,null,null,null,null,null,null,null,null,null,null,"SIGNATURE DE L'ÉPARGNANT"]
[null,null,null,null,null,null,null,null,null,null,null,null,null,null,null,null,null,null,null,null,null,null,null,null,null,null,null,null,null,null,null,null,null,null,null,null,null,null,null,null,null,null,null,null,null,null,"Groupama Épargne Salariale - Entreprise d'investissement agréée par l'ACPR - Teneur de comptes - Conservateur de parts \nSA au capital de 8.709.015 € - Siège social : 2 boulevard de Pesaro 92000 Nanterre - 428 768 352 RCS Nanterre"]
[]
[null,null,"Fait à :",null,null,null,null,null,null,null,null,null,null,"Le :",null,null,null,null,null,null,{"$f":"'Saisie des données + guide'!BF2","v":2024}]
[]
[]
[]
[]
[]
[]
[]
[]
[]
[]
[null,null,null,null,"3 options dans ce BIV :"]
[]
[null,null,null,null,null,null,"Ouverture compte :"]
[null,null,null,null,null,null,null,null,null,null,null,null,"X"]
[]
[null,null,null,null,null,null,"Statut :"]
[null,null,null,null,null,null,null,null,null,"Salarié"]
[null,null,null,null,null,null,null,null,null,"Non salarié"]
[]
[null,null,null,null,null,null,"Gestion pilotée :"]
[null,null,null,null,null,null,null,null,null,null,"Choisissez votre profil"]
[null,null,null,null,null,null,null,null,null,null,"Profil Prudent Horizon Retraite"]
[null,null,null,null,null,null,null,null,null,null,"Profil Équilibre Horizon Retraite"]
[null,null,null,null,null,null,null,null,null,null,"Profil Dynamique Horizon Retraite"]
[]
[null,null,null,null,null,null,null,null,null,null,null,"Oui"]
[null,null,null,null,null,null,null,null,null,null,null,"Non"]

{"sheet":"Bulletin n°5","index":5,"n_rows":115,"n_cols":70,"rows_kept":115,"cut":false,"hidden":false,"merged":[[93,10,93,15],[93,16,93,22],[93,23,93,28],[9,22,9,35],[11,6,11,16],[11,22,11,35],[13,6,13,10],[13,11,13,12],[13,13,13,16],[74,2,75,13],[74,14,75,15],[74,16,75,16],[74,17,75,24],[74,25,75,26],[74,27,75,27],[74,28,75,35],[77,11,77,12],[77,17,78,23],[77,25,78,26],[77,27,78,27],[77,28,78,35],[78,3,79,10],[78,11,78,16],[68,2,69,13],[68,25,69,26],[68,27,69,27],[68,28,69,35],[70,2,71,13],[70,14,71,15],[70,16,71,16],[70,17,71,24],[70,25,71,26],[70,27,71,27],[70,28,71,35],[72,2,73,13],[72,14,73,15],[72,16,73,16],[72,17,73,24],[72,25,73,26],[72,27,73,27],[72,28,73,35],[64,2,65,13],[64,14,65,15],[64,16,65,16],[64,17,65,24],[64,25,65,26],[64,27,65,27],[64,28,65,35],[66,2,67,13],[66,14,67,15],[66,16,67,16],[66,17,67,24],[66,25,67,26],[66,27,67,27],[66,28,67,35],[68,14,69,15],[68,16,69,16],[68,17,69,24],[56,14,57,15],[56,16,57,16],[56,17,57,24],[56,25,57,26],[56,27,57,27],[56,28,57,35],[58,2,59,13],[58,14,59,15],[58,16,59,16],[58,17,59,24],[58,25,59,26],[58,27,59,27],[58,28,59,35],[56,2,57,13],[52,25,53,26],[52,27,53,27],[52,28,53,35],[54,2,55,13],[54,14,55,15],[54,16,55,16],[54,17,55,24],[54,25,55,26],[54,27,55,27],[54,28,55,35],[46,16,47,16],[46,17,47,24],[46,25,47,26],[46,27,47,27],[46,28,47,35],[47,38,53,71],[48,2,49,13],[48,14,49,15],[48,16,49,16],[48,17,49,24],[48,25,49,26],[48,27,49,27],[48,28,49,35],[50,2,51,13],[50,14,51,15],[50,16,51,16],[50,17,51,24],[50,25,51,26],[50,27,51,27],[50,28,51,35],[52,2,53,13],[52,14,53,15],[52,16,53,16],[52,17,53,24],[39,54,39,57],[39,58,39,68],[40,39,42,53],[42,2,45,13],[42,14,42,24],[42,25,42,35],[43,14,44,24],[43,25,44,35],[43,53,43,57],[43,58,43,68],[45,14,45,15],[45,17,45,24],[45,25,45,26],[45,28,45,35],[32,5,32,26],[32,39,32,48],[32,51,33,54],[32,55,32,69],[35,5,35,29],[35,30,35,35],[35,41,35,46],[35,51,35,54],[35,58,35,68],[24,4,24,5],[26,23,27,35],[26,41,26,46],[26,51,26,54],[26,58,26,68],[28,58,28,68],[29,3,31,35],[30,39,30,56],[30,58,30,68],[24,39,24,48],[25,2,25,3],[25,4,25,5],[25,11,25,12],[25,13,25,14],[25,17,25,18],[25,23,25,26],[25,27,25,35],[25,48,25,49],[9,45,9,69],[0,1,0,52],[2,1,3,36],[2,39,3,71],[5,45,5,50],[7,6,7,16],[7,22,7,35],[7,45,7,69],[0,59,0,68],[0,69,0,71],[5,22,5,35],[5,6,5,10],[5,13,5,16],[9,6,9,10],[9,15,9,16],[62,27,63,27],[62,28,63,35],[18,89,18,107],[11,45,11,69],[15,6,16,16],[15,22,15,35],[15,39,18,69],[25,41,25,46],[25,51,25,54],[25,58,25,68],[46,14,47,15],[24,13,24,14],[24,51,24,54],[34,41,34,46],[34,51,34,54],[34,58,34,68],[34,5,34,26],[34,48,34,49],[46,2,47,13],[22,23,22,29],[22,30,22,31],[22,32,22,35],[22,39,22,43],[24,23,24,35],[13,22,13,35],[80,17,80,24],[81,2,82,35],[81,39,83,71],[84,3,85,23],[84,25,84,35],[85,25,87,35],[85,46,88,71],[87,2,87,4],[87,5,87,11],[87,13,87,15],[87,20,87,22],[60,2,61,13],[60,14,61,15],[60,16,61,16],[60,17,61,24],[60,25,61,26],[60,27,61,27],[60,28,61,35],[62,2,63,13],[62,14,63,15],[62,16,63,16],[62,17,63,24],[62,25,63,26]]}
[null,"BULLETIN INDIVIDUEL DE VERSEMENTS SUR VOTRE PLAN D’ÉPARGNE SALARIALE",null,null,null,null,null,null,null,null,null,null,null,null,null,null,null,null,null,null,null,null,null,null,null,null,null,null,null,null,null,null,null,null,null,null,null,null,null,null,null,null,null,null,null,null,null,null,null,null,null,null,null,null,null,null,null,null,null," Version PERCOL",null,null,null,null,null,null,null,null,null,{"$f":"'Saisie des données + guide'!BF2","v":2024}]
[]
[null,"VERSEMENT DE L'ÉPARGNANT",null,null,null,null,null,null,null,null,null,null,null,null,null,null,null,null,null,null,null,null,null,null,null,null,null,null,null,null,null,null,null,null,null,null,null,null,null,"VERSEMENT COMPLÉMENTAIRE (ABONDEMENT) DE L'ENTREPRISE"]
[]
[]
[null,null,"Civilité ",null,null,null,null,null,null,null,null,null,"Nom",null,null,null,null,null,"Prénom",null,null,null,null,null,null,null,null,null,null,null,null,null,null,null,null,null,null,null,null,"Code entreprise",null,null,null,null,null,{"$f":"'Saisie des données + guide'!K12","v":0},null,null,null,null,null,null,null,null,null,null,null,null,null,null,null,null,null,null,null,null,null,null,"Exercice fiscal de référence :",{"$f":"'Saisie des données + guide'!V$48","v":0}]
[]
[null,null,"N° Sécurité sociale",null,null,null,null,null,null,null,null,null,null,null,null,null,null,null,"Nom de naissance",null,null,null,null,null,null,null,null,null,null,null,null,null,null,null,null,null,null,null,null,"Raison sociale",null,null,null,null,null,{"$f":"'Saisie des données + guide'!K14","v":0}]
[]
[null,null,"Date de naissance",null,null,null,null,null,null,null,null,"Département de naissance",null,null,null,null,null,null,"Ville de naissance",null,null,null,null,null,null,null,null,null,null,null,null,null,null,null,null,null,null,null,null,"Contact",null,null,null,null,null,{"$f":"'Saisie des données + guide'!K16","v":0}]
[]
[null,null,"Adresse ",null,null,null,null,null,null,null,null,null,null,null,null,null,null,null,"Pays de naissance",null,null,null,null,null,null,null,null,null,null,null,null,null,null,null,null,null,null,null,null,"Email",null,null,null,null,null,{"$f":"'Saisie des données + guide'!K18","v":0}]
[]
[null,null,"Code postal",null,null,null,null,null,null,null,null,"Ville",null,null,null,null,null,null,"E-mail",null,null,null,null,null,null,null,null,null,null,null,null,null,null,null,null,null,null,null,null,"Si CSG-CRDS non précomptées pour le salarié",null,null,null,null,null,null,null,null,null,null,null,null,null,null,null,null,{"$f":"+'Saisie des données + guide'!AG36","v":0},null,null,null,null,null,null,null,null,null,null,null,"Le PASS* pour l'année 2024 est de :",{"$f":"PASS","v":46368}]
[]
[null,null,"Statut",null,null,null,null,null,null,null,null,null,null,null,null,null,null,null,"Téléphone",null,null,null,null,null,null,null,null,null,null,null,null,null,null,null,null,null,null,null,null,{"$f":"+'Saisie des données + guide'!E38","v":"Le montant que Groupama Épargne Salariale doit investir est le montant net de CSG-CRDS (les prélèvements sociaux étant payés directement par vos soins).  Si vous cochez la case, cela signifie que vous souhaitez par dérogation nous adresser un montant brut de CSG-CRDS et que vous aurez prélevé sur la fiche de paie de chacun des salariés concernés la CSG-CRDS relative à l'opération réalisée. Cette dérogation n'est pas possible si l'abondement est à calculer par Groupama Épargne Salariale."}]
[]
[]
[]
[null,null,null,null,null,null,null,null,null,null,null,null,null,null,null,null,null,null,null,null,null,null,null,null,null,null,null,null,null,null,null,null,null,null,null,null,null,null,null,null,null,null,null,null,null,null,null,null,null,null,null,null,null,null,null,null,null,null,null,"* PASS : Plafond Annuel de la Sécurité Sociale"]
[]
[]
[null,null,"MONTANTS À INVESTIR",null,null,null,null,null,null,null,null,null,null,null,null,null,null,null,"Origine des versements ",null,null,null,null,{"$f":"'Saisie des données + guide'!U21","v":"Versements volontaires"},null,null,null,null,null,null,{"$f":"IF(X23=\"Abondement unilatéral\", \" C =\", \"\")","v":""},null,null,null,null,null,null,null,null,"PEE"]
[null,null,null,null,null,null,null,null,null,null,null,null,null,null,null,null,null,null,{"$f":"+IF($X$23=\"Abondement unilatéral\",\"Le versement de l'abondement unilatéral est limité à 2% du PASS 2024 (soit 927,36€)\",\"\")","v":""}]
[null,null,null,null,"PEE",null,null,null,null,null,null,null,null,"PERCOL",null,null,null,null,null,null,null,null,null,"MONTANT TOTAL",null,null,null,null,null,null,null,null,null,null,null,null,null,null,null,{"$f":"X23","v":"Versements volontaires"},null,null,null,null,null,null,null,null,null,null,null,"Taux",null,null,null,null,null,null,{"$f":"\"Abondement sur \"&X23&\"\"","v":"Abondement sur Versements volontaires"}]
[null,null,"A =",null,null,null,null,null,null,"+",null,"B =",null,null,null,null,null,null,null,"=",null,null,null,"A + B =",null,null,null,{"$f":"$E$26+$N$26","v":0},null,null,null,null,null,null,null,null,null,null,null,null,null,{"$f":"E$26","v":0},null,null,null,null,null,null,"x",null,null,{"$f":"+'Saisie des données + guide'!S$29","v":0},null,null,null,null,null,"A' =",{"$f":"IF(ISBLANK(E26),\"\",IF(AND(G16=J105,ISBLANK('Saisie des données + guide'!AG36)),MIN(Plafond_PEE_net,E26*AZ26*(1-CSG_CRDS)),IF(AND(G16=J106,ISBLANK('Saisie des données + guide'!AG36)),MIN(Plafond_PEE,E26*AZ26),IF(AND(G16=J105,'Saisie des données + guide'!AG36=\"X\"),MIN(Plafond_PEE,E26*AZ26),IF(AND(G16=J106,'Saisie des données + guide'!AG36=\"X\"),MIN(Plafond_PEE,E26*AZ26))))))","v":""}]
[null,null,null,null,null,null,null,null,null,null,null,null,null,null,null,null,null,null,null,null,null,null,null,null,null,null,null,null,null,null,null,null,null,null,null,null,null,null,null,null,null,"A",null,null,null,null,null,null,null,null,null,"T",null,null,null,null,null,null,{"$f":"IF(AND(G16=J105,ISBLANK('Saisie des données + guide'!AG$36)),\"plafonné à \" &Plafond_PEE_net&\" € pour \"&J$105,IF(AND(G16=J105,'Saisie des données + guide'!AG$36=\"X\"),\"plafonné à \" &Plafond_PEE&\" € pour \"&J$105,\"plafonné à \" &Plafond_PEE&\" € pour \"&J$106))","v":"plafonné à 3709,44 € pour Non salarié"}]
[]
[]
[null,null,null,"UNIQUEMENT PERCOL : Vous pouvez déduire de vos revenus imposables les versements volontaires effectués dans le PERCOL.  \nLes sommes seront alors fiscalisées au moment du retrait selon la réglementation en vigueur."]
[null,null,null,null,null,null,null,null,null,null,null,null,null,null,null,null,null,null,null,null,null,null,null,null,null,null,null,null,null,null,null,null,null,null,null,null,null,null,null,"PERCOL"]
[]
[null,null,null,null,null,"Je choisis de bénéficier des versements déductibles dans le PERCOL      ",null,null,null,null,null,null,null,null,null,null,null,null,null,null,null,null,null,null,null,null,null,null,null,null,null,null,null,null,null,null,null,null,null,{"$f":"X23","v":"Versements volontaires"},null,null,null,null,null,null,null,null,null,null,null,"Taux",null,null,null,{"$f":" IF($X$23=\"Versements volontaires\",\"Abondement sur Versements volontaires\",IF($X$23=\"Intéressement\",\"Abondement sur Intéressement\",IF($X$23=\"Participation\",\"Abondement sur Participation\",IF($X$23=\"Jours de repos non pris / CET\",\"Abondement sur Jours de repos non pris / CET\",IF($X$23=\"Prime de partage de la valeur\",\"Abondement sur Prime de partage de la valeur\",IF($X$23=\"Abondement unilatéral\",\" Montant total investi pour l'abondement unilatéral\"))))))","v":"Abondement sur Versements volontaires"}]
[]
[null,null,null,null,null,"Je renonce aux versements déductibles",null,null,null,null,null,null,null,null,null,null,null,null,null,null,null,null,null,null,null,null,null,null,null,null,null,null,null,null,null,null,null,null,null,null,null,{"$f":"$N$26","v":0},null,null,null,null,null,null,"x",null,null,{"$f":"+'Saisie des données + guide'!AK29","v":0},null,null,null,null,null,{"$f":"IF(X23=\"abondement unilatéral\",\"C'=\", \"B' =\")","v":"B' ="},{"$f":"IF(AND(ISBLANK(N26),ISBLANK(AG23)),\"\",IF(AND(X23=\"Abondement unilatéral\",G16=J105,ISBLANK('Saisie des données + guide'!AG36)),MIN(Plafond_uni_TS,AG23*0.903),IF(AND(X23=\"Abondement unilatéral\",G16=J106),MIN(Plafond_uni_TNS,AG23),IF(AND(X23<>\"Abondement unilatéral\",G16=J105,ISBLANK('Saisie des données + guide'!AG36)),MIN(Plafond_PERCO_net,(1-CSG_CRDS)*AZ35*N26),IF(AND(X23<>\"Abondement unilatéral\",G16=J106,ISBLANK('Saisie des données + guide'!AG36)),MIN(Plafond_PERCO,AZ35*N26),IF(AND(X23<>\"Abondement unilatéral\",G16=J105,'Saisie des données + guide'!AG36=\"X\"),MIN(Plafond_PERCO,AZ35*N26),IF(AND(X23<>\"Abondement unilatéral\",G16=J106,'Saisie des données + guide'!AG36=\"X\"),MIN(Plafond_PERCO,AZ35*N26),IF(AND(X23=\"Abondement unilatéral\",G16=J106,'Saisie des données + guide'!AG36=\"X\"),MIN(Plafond_uni_TNS,AG23),IF(AND(X23=\"Abondement unilatéral\",G16=J105,'Saisie des données + guide'!AG36=\"X\"),MIN(Plafond_uni_TNS,AG23))))))))))","v":""}]
[null,null,null,null,null,"Attention : Votre choix est irrévocable. En l'absence de choix, les versements volontaires dans le PERCOL seront déductibles.",null,null,null,null,null,null,null,null,null,null,null,null,null,null,null,null,null,null,null,null,null,null,null,null,"> Plus de détails",null,null,null,null,null,null,null,null,null,null,"B",null,null,null,null,null,null,null,null,null,"T",null,null,null,null,null,null,{"$f":"IF(AND(ISBLANK(N26),ISBLANK(AG23)),\"\",IF(AND(X23=\"Abondement unilatéral\",G16=J105,ISBLANK('Saisie des données + guide'!AG36)),\"plafonné à \"&Plafond_uni_TS&\" € pour \"&J105,IF(AND(X23=\"Abondement unilatéral\",G16=J106),\"plafonné à \"&Plafond_uni_TNS&\" € pour \"&J106,IF(AND(X23<>\"Abondement unilatéral\",G16=J105,ISBLANK('Saisie des données + guide'!AG36)),\"plafonné à \"&Plafond_PERCO_net&\" € pour \"&J105,IF(AND(X23<>\"Abondement unilatéral\",G16=J106,ISBLANK('Saisie des données + guide'!AG36)),\"plafonné à \"&Plafond_PERCO&\" € pour \"&J106,IF(AND(X23<>\"Abondement unilatéral\",G16=J105,'Saisie des données + guide'!AG36=\"X\"),\"plafonné à \"&Plafond_PERCO&\" € pour \"&J105,IF(AND(X23<>\"Abondement unilatéral\",G16=J106,'Saisie des données + guide'!AG36=\"X\"),\"plafonné à \"&Plafond_PERCO&\" € pour \"&J106,IF(AND(X23=\"Abondement unilatéral\",G16=J106,'Saisie des données + guide'!AG36=\"X\"),\"plafonné à \"&Plafond_uni_TNS&\" € pour \"&J106,IF(AND(X23=\"Abondement unilatéral\",G16=J105,'Saisie des données + guide'!AG36=\"X\"),\"plafonné à \"&Plafond_uni_TNS&\" € pour \"&J105)))))))))","v":""}]
[]
[]
[]
[null,null,"RÉPARTITION DE L'ÉPARGNE",null,null,null,null,null,null,null,null,null,null,null,null,"N'hésitez pas à consulter l'onglet \"Autres fonds\" pour ajouter d'autres supports de placement.",null,null,null,null,null,null,null,null,null,null,null,null,null,null,null,null,null,null,null,null,null,null,null,"VERSEMENT TOTAL DE L'ENTREPRISE",null,null,null,null,null,null,null,null,null,null,null,null,null,null,"(A' + B')",null,null,null,{"$f":"MAX($BG$26,0)+MAX($BG$35,0)","v":0}]
[null,null,null,"A. Gestion Libre",null,null,null,null,null,null,null,null,null,null,null,null,null,null,null,null,null,null,null,null,null,null,null,null,null,null,null,null,null,null,null,null,null,null,null,"Le versement de l'abondement s'effectue sur les mêmes fonds que le versement personnel."]
[]
[null,null,"CODE ET NOM DES FONDS",null,null,null,null,null,null,null,null,null,null,null,"PEE",null,null,null,null,null,null,null,null,null,null,"PERCOL"]
[null,null,null,null,null,null,null,null,null,null,null,null,null,null,{"$f":"+IF(SUM(R47:Y76)>E26,\"ERREUR SAISIE\",IF(R46=0,\"\",\"Reste à répartir sur les fonds suivants\"))","v":""},null,null,null,null,null,null,null,null,null,null,{"$f":"+IF(SUM(AC47:AJ79)>(N26+AG23),\"ERREUR SAISIE\",IF(AC46=0,\"\",\"Reste à répartir sur les fonds suivants\"))","v":""},null,null,null,null,null,null,null,null,null,null,null,null,null,"VERSEMENT TOTAL INVESTI",null,null,null,null,null,null,null,null,null,null,null,null,null,"(A + B) + (A' + B')",null,null,null,null,{"$f":"+$AB$26+$BG$40","v":0}]
[]
[null,null,null,null,null,null,null,null,null,null,null,null,null,null,{"$f":"IF(E26>0,100-(SUM(O47:P76)),\"\")","v":""},null,{"$f":"IF(O46<>0, \"%\", \"\")","v":"%"},{"$f":"E26-SUM(R47:Y76)","v":0},null,null,null,null,null,null,null,{"$f":"IF((N26+AG23)>0,100-(SUM(Z47:AA79)),\"\")","v":""},null,{"$f":"IF(Z46<>0, \"%\", \"\")","v":"%"},{"$f":"(N26+AG23)-SUM(AC47:AJ79)","v":0}]
[null,null,{"$f":"+IF('Saisie des données + guide'!U25=\"Gamme GER\",\"84289 - GER Monétaire\",IF('Saisie des données + guide'!U25=\"Gamme TESORUS\",\"82659 - TESORUS Monétaire\",IF('Saisie des données + guide'!U25=\"Gamme Fonds Directs\",\"15719 - Oblifonds\",IF('Saisie des données + guide'!U25=\"Gamme Finama\",\"\",\"\"))))","v":"84289 - GER Monétaire"},null,null,null,null,null,null,null,null,null,null,null,null,null,"%",{"$f":"IF(O47=\"\",\"--------------\",+E$26*O47/100)","v":"--------------"},null,null,null,null,null,null,null,null,null,"%",{"$f":"IF(Z47=\"\",\"--------------\",+(N$26+$AG$23)*Z47/100)","v":"--------------"}]
[null,null,null,null,null,null,null,null,null,null,null,null,null,null,null,null,null,null,null,null,null,null,null,null,null,null,null,null,null,null,null,null,null,null,null,null,null,null,"ATTENTION : Si plusieurs épargnants effectuent des versements au même moment, vous devrez de regrouper l’ensemble des abondements en un seul chèque. Pour cela, reportez vous à la fiche récapitulative jointe sur ce fichier.\n\nLes chèques sont à libeller à l’ordre de GROUPAMA ÉPARGNE SALARIALE et à envoyer à l'adresse suivante : \nGroupama Épargne Salariale - Service Clients\n46 rue Jules Méline - 53098 Laval Cedex 9"]
[null,null,{"$f":"+IF('Saisie des données + guide'!U25=\"Gamme GER\",\"84309 - GER Prudence\",IF('Saisie des données + guide'!U25=\"Gamme TESORUS\",\"82719 - TESORUS Prudence\",IF('Saisie des données + guide'!U25=\"Gamme Fonds Directs\",\"4939 - Diversifonds\",\"\")))","v":"84309 - GER Prudence"},null,null,null,null,null,null,null,null,null,null,null,null,null,"%",{"$f":"IF(O49=\"\",\"--------------\",+E$26*O49/100)","v":"--------------"},null,null,null,null,null,null,null,null,null,"%",{"$f":"IF(Z49=\"\",\"--------------\",+(N$26+$AG$23)*Z49/100)","v":"--------------"}]
[]
[null,null,{"$f":"+IF('Saisie des données + guide'!U25=\"Gamme GER\",\"84329 - GER Equilibre\",IF('Saisie des données + guide'!U25=\"Gamme TESORUS\",\"82669 - TESORUS Equilibre\",IF('Saisie des données + guide'!U25=\"Gamme Fonds Directs\",\"2459 - Foncival\",\"\")))","v":"84329 - GER Equilibre"},null,null,null,null,null,null,null,null,null,null,null,null,null,"%",{"$f":"IF(O51=\"\",\"--------------\",+E$26*O51/100)","v":"--------------"},null,null,null,null,null,null,null,null,null,"%",{"$f":"IF(Z51=\"\",\"--------------\",+(N$26+$AG$23)*Z51/100)","v":"--------------"}]
[]
[null,null,{"$f":"+IF('Saisie des données + guide'!U25=\"Gamme GER\",\"84349 - GER Dynamique\",IF('Saisie des données + guide'!U25=\"Gamme TESORUS\",\"82689 - TESORUS Dynamique\",\"\"))","v":"84349 - GER Dynamique"},null,null,null,null,null,null,null,null,null,null,null,null,null,"%",{"$f":"IF(O53=\"\",\"--------------\",+E$26*O53/100)","v":"--------------"},null,null,null,null,null,null,null,null,null,"%",{"$f":"IF(Z53=\"\",\"--------------\",+(N$26+$AG$23)*Z53/100)","v":"--------------"}]
[]
[null,null,{"$f":"+IF('Saisie des données + guide'!U25=\"Gamme GER\",\"84369 - GER Solidaire\",IF('Saisie des données + guide'!U25=\"Gamme TESORUS\",\"87649 - TESORUS Solidaire\",\"\"))","v":"84369 - GER Solidaire"},null,null,null,null,null,null,null,null,null,null,null,null,null,"%",{"$f":"IF(O55=\"\",\"--------------\",+E$26*O55/100)","v":"--------------"},null,null,null,null,null,null,null,null,null,"%",{"$f":"IF(Z55=\"\",\"--------------\",+(N$26+$AG$23)*Z55/100)","v":"--------------"}]
[]
[null,null,"110429 - Finama Épargne Court Terme",null,null,null,null,null,null,null,null,null,null,null,null,null,"%",{"$f":"IF(O57=\"\",\"--------------\",+E$26*O57/100)","v":"--------------"},null,null,null,null,null,null,null,null,null,"%",{"$f":"IF(Z57=\"\",\"--------------\",+(N$26+$AG$23)*Z57/100)","v":"--------------"}]
[]
[null,null,"79139 - Finama Actions Internationales",null,null,null,null,null,null,null,null,null,null,null,null,null,"%",{"$f":"IF(O59=\"\",\"--------------\",+E$26*O59/100)","v":"--------------"},null,null,null,null,null,null,null,null,null,"%",{"$f":"IF(Z59=\"\",\"--------------\",+(N$26+$AG$23)*Z59/100)","v":"--------------"}]
[]
[null,null,"116119 - Groupama Sélection PME-ETI",null,null,null,null,null,null,null,null,null,null,null,null,null,"%",{"$f":"IF(O61=\"\",\"--------------\",+E$26*O61/100)","v":"--------------"},null,null,null,null,null,null,null,null,null,"%",{"$f":"IF(Z61=\"\",\"--------------\",+(N$26+$AG$23)*Z61/100)","v":"--------------"}]
[]
[null,null,null,null,null,null,null,null,null,null,null,null,null,null,null,null,"%",{"$f":"IF(O63=\"\",\"--------------\",+E$26*O63/100)","v":"--------------"},null,null,null,null,null,null,null,null,null,"%",{"$f":"IF(Z63=\"\",\"--------------\",+(N$26+$AG$23)*Z63/100)","v":"--------------"}]
[]
[null,null,null,null,null,null,null,null,null,null,null,null,null,null,null,null,"%",{"$f":"IF(O65=\"\",\"--------------\",+E$26*O65/100)","v":"--------------"},null,null,null,null,null,null,null,null,null,"%",{"$f":"IF(Z65=\"\",\"--------------\",+(N$26+$AG$23)*Z65/100)","v":"--------------"}]
[]
[null,null,null,null,null,null,null,null,null,null,null,null,null,null,null,null,"%",{"$f":"IF(O67=\"\",\"--------------\",+E$26*O67/100)","v":"--------------"},null,null,null,null,null,null,null,null,null,"%",{"$f":"IF(Z67=\"\",\"--------------\",+(N$26+$AG$23)*Z67/100)","v":"--------------"}]
[]
[null,null,null,null,null,null,null,null,null,null,null,null,null,null,null,null,"%",{"$f":"IF(O69=\"\",\"--------------\",+E$26*O69/100)","v":"--------------"},null,null,null,null,null,null,null,null,null,"%",{"$f":"IF(Z69=\"\",\"--------------\",+(N$26+$AG$23)*Z69/100)","v":"--------------"}]
[]
[null,null,null,null,null,null,null,null,null,null,null,null,null,null,null,null,"%",{"$f":"IF(O71=\"\",\"--------------\",+E$26*O71/100)","v":"--------------"},null,null,null,null,null,null,null,null,null,"%",{"$f":"IF(Z71=\"\",\"--------------\",+(N$26+$AG$23)*Z71/100)","v":"--------------"}]
[]
[null,null,null,null,null,null,null,null,null,null,null,null,null,null,null,null,"%",{"$f":"IF(O73=\"\",\"--------------\",+E$26*O73/100)","v":"--------------"},null,null,null,null,null,null,null,null,null,"%",{"$f":"IF(Z73=\"\",\"--------------\",+(N$26+$AG$23)*Z73/100)","v":"--------------"}]
[]
[null,null,null,null,null,null,null,null,null,null,null,null,null,null,null,null,"%",{"$f":"IF(O75=\"\",\"--------------\",+E$26*O75/100)","v":"--------------"},null,null,null,null,null,null,null,null,null,"%",{"$f":"IF(Z75=\"\",\"--------------\",+(N$26+$AG$23)*Z75/100)","v":"--------------"}]
[]
[]
[null,null,null,"B. Gestion Pilotée",null,null,null,null,null,null,null,null,null,null,null,null,null,"Choisissez votre profil",null,null,null,null,null,null,null,null,null,"%",{"$f":"IF(Z78=\"\",\"--------------\",+(N26+AG23)*Z78/100)","v":"--------------"}]
[null,null,null,"valable uniquement sur le PERCOL",null,null,null,null,null,null,null,{"$f":"IF(L78=\"Oui\",\"Préciser la grille d'allocation\",\"\")","v":""}]
[]
[]
[null,null,"Je déclare avoir pris connaissance du règlement du plan, des documents d'information clés (DIC/KID) des fonds remis par mon entreprise et téléchargeables sur www.groupama-es.fr, ainsi que des modalités de fonctionnement des versements individuels jointes au présent bulletin. \nConformément au contrat d’épargne salariale mis en place par votre entreprise, des frais de versements d’un maximum de 4 % peuvent s’appliquer. Nous vous invitons à contacter votre employeur pour obtenir le montant de ces frais.\nEn l'absence de choix de fonds, les sommes seront investies sur le fonds par défaut dans le PEE ou selon le mode de gestion pilotée dans le PERCOL : soit le profil Équilibre Horizon Retraite s'il s'agit de votre premier versement ou si vous aviez opté pour la gestion libre lors de précédent versement, soit avec le même profil de gestion pilotée précédemment choisi.\nPour tout versement volontaire à partir de 8 000 €, une copie de votre pièce d'identité devra être fournie, accompagnée du dernier avis d'imposition pour un versement d’un montant de 15 000 € et plus. ",null,null,null,null,null,null,null,null,null,null,null,null,null,null,null,null,null,null,null,null,null,null,null,null,null,null,null,null,null,null,null,null,null,null,null,null,"Conformément au règlement général sur la protection des données n°2016/679 du 27 avril 2016, vos données personnelles sont traitées par Groupama Épargne Salariale à des fins de tenue des comptes d'épargne salariale. Elles sont destinées aux membres du personnel dûment habilités de Groupama Épargne Salariale ainsi qu’à ses sous-traitants. Elles sont conservées par Groupama Épargne Salariale pendant une durée maximale de trente ans à compter de la disponibilité des avoirs.Vous pouvez demander l’accès, la rectification, l'effacement et la portabilité de vos données personnelles ainsi que limiter ou vous opposer, pour motif légitime, au traitement en écrivant au Délégué Relais à la Protection des Données de Groupama Épargne Salariale – Service du Contrôle interne – 2 boulevard de Pesaro – 92000 Nanterre ou par email : controleinterne@groupama-es.fr. Réf. : BIV 01-01-2024"]
[]
[]
[null,null,null,"J’atteste sur l’honneur que mon versement est conforme à la réglementation, notamment qu'il provient bien de mon épargne personnelle et que l’ensemble de mes versements de l’année au PEE ne dépasse pas 25 % de ma rémunération annuelle brute.",null,null,null,null,null,null,null,null,null,null,null,null,null,null,null,null,null,null,null,null,null,"SIGNATURE DE L'ÉPARGNANT"]
[null,null,null,null,null,null,null,null,null,null,null,null,null,null,null,null,null,null,null,null,null,null,null,null,null,null,null,null,null,null,null,null,null,null,null,null,null,null,null,null,null,null,null,null,null,null,"Groupama Épargne Salariale - Entreprise d'investissement agréée par l'ACPR - Teneur de comptes - Conservateur de parts \nSA au capital de 8.709.015 € - Siège social : 2 boulevard de Pesaro 92000 Nanterre - 428 768 352 RCS Nanterre"]
[]
[null,null,"Fait à :",null,null,null,null,null,null,null,null,null,null,"Le :",null,null,null,null,null,null,{"$f":"'Saisie des données + guide'!BF2","v":2024}]
[]
[]
[]
[]
[]
[]
[]
[]
[]
[]
[null,null,null,null,"3 options dans ce BIV :"]
[]
[null,null,null,null,null,null,"Ouverture compte :"]
[null,null,null,null,null,null,null,null,null,null,null,null,"X"]
[]
[null,null,null,null,null,null,"Statut :"]
[null,null,null,null,null,null,null,null,null,"Salarié"]
[null,null,null,null,null,null,null,null,null,"Non salarié"]
[]
[null,null,null,null,null,null,"Gestion pilotée :"]
[null,null,null,null,null,null,null,null,null,null,"Choisissez votre profil"]
[null,null,null,null,null,null,null,null,null,null,"Profil Prudent Horizon Retraite"]
[null,null,null,null,null,null,null,null,null,null,"Profil Équilibre Horizon Retraite"]
[null,null,null,null,null,null,null,null,null,null,"Profil Dynamique Horizon Retraite"]
[]
[null,null,null,null,null,null,null,null,null,null,null,"Oui"]
[null,null,null,null,null,null,null,null,null,null,null,"Non"]

{"sheet":"Bulletin n°6","index":6,"n_rows":115,"n_cols":70,"rows_kept":115,"cut":false,"hidden":false,"merged":[[93,10,93,15],[93,16,93,22],[93,23,93,28],[9,22,9,35],[11,6,11,16],[11,22,11,35],[13,6,13,10],[13,11,13,12],[13,13,13,16],[74,2,75,13],[74,14,75,15],[74,16,75,16],[74,17,75,24],[74,25,75,26],[74,27,75,27],[74,28,75,35],[77,11,77,12],[77,17,78,23],[77,25,78,26],[77,27,78,27],[77,28,78,35],[78,3,79,10],[78,11,78,16],[68,2,69,13],[68,25,69,26],[68,27,69,27],[68,28,69,35],[70,2,71,13],[70,14,71,15],[70,16,71,16],[70,17,71,24],[70,25,71,26],[70,27,71,27],[70,28,71,35],[72,2,73,13],[72,14,73,15],[72,16,73,16],[72,17,73,24],[72,25,73,26],[72,27,73,27],[72,28,73,35],[64,2,65,13],[64,14,65,15],[64,16,65,16],[64,17,65,24],[64,25,65,26],[64,27,65,27],[64,28,65,35],[66,2,67,13],[66,14,67,15],[66,16,67,16],[66,17,67,24],[66,25,67,26],[66,27,67,27],[66,28,67,35],[68,14,69,15],[68,16,69,16],[68,17,69,24],[56,14,57,15],[56,16,57,16],[56,17,57,24],[56,25,57,26],[56,27,57,27],[56,28,57,35],[58,2,59,13],[58,14,59,15],[58,16,59,16],[58,17,59,24],[58,25,59,26],[58,27,59,27],[58,28,59,35],[56,2,57,13],[52,25,53,26],[52,27,53,27],[52,28,53,35],[54,2,55,13],[54,14,55,15],[54,16,55,16],[54,17,55,24],[54,25,55,26],[54,27,55,27],[54,28,55,35],[46,16,47,16],[46,17,47,24],[46,25,47,26],[46,27,47,27],[46,28,47,35],[47,38,53,71],[48,2,49,13],[48,14,49,15],[48,16,49,16],[48,17,49,24],[48,25,49,26],[48,27,49,27],[48,28,49,35],[50,2,51,13],[50,14,51,15],[50,16,51,16],[50,17,51,24],[50,25,51,26],[50,27,51,27],[50,28,51,35],[52,2,53,13],[52,14,53,15],[52,16,53,16],[52,17,53,24],[39,54,39,57],[39,58,39,68],[40,39,42,53],[42,2,45,13],[42,14,42,24],[42,25,42,35],[43,14,44,24],[43,25,44,35],[43,53,43,57],[43,58,43,68],[45,14,45,15],[45,17,45,24],[45,25,45,26],[45,28,45,35],[32,5,32,26],[32,39,32,48],[32,51,33,54],[32,55,32,69],[35,5,35,29],[35,30,35,35],[35,41,35,46],[35,51,35,54],[35,58,35,68],[24,4,24,5],[26,23,27,35],[26,41,26,46],[26,51,26,54],[26,58,26,68],[28,58,28,68],[29,3,31,35],[30,39,30,56],[30,58,30,68],[24,39,24,48],[25,2,25,3],[25,4,25,5],[25,11,25,12],[25,13,25,14],[25,17,25,18],[25,23,25,26],[25,27,25,35],[25,48,25,49],[9,45,9,69],[0,1,0,52],[2,1,3,36],[2,39,3,71],[5,45,5,50],[7,6,7,16],[7,22,7,35],[7,45,7,69],[0,59,0,68],[0,69,0,71],[5,22,5,35],[5,6,5,10],[5,13,5,16],[9,6,9,10],[9,15,9,16],[62,27,63,27],[62,28,63,35],[18,89,18,107],[11,45,11,69],[15,6,16,16],[15,22,15,35],[15,39,18,69],[25,41,25,46],[25,51,25,54],[25,58,25,68],[46,14,47,15],[24,13,24,14],[24,51,24,54],[34,41,34,46],[34,51,34,54],[34,58,34,68],[34,5,34,26],[34,48,34,49],[46,2,47,13],[22,23,22,29],[22,30,22,31],[22,32,22,35],[22,39,22,43],[24,23,24,35],[13,22,13,35],[80,17,80,24],[81,2,82,35],[81,39,83,71],[84,3,85,23],[84,25,84,35],[85,25,87,35],[85,46,88,71],[87,2,87,4],[87,5,87,11],[87,13,87,15],[87,20,87,22],[60,2,61,13],[60,14,61,15],[60,16,61,16],[60,17,61,24],[60,25,61,26],[60,27,61,27],[60,28,61,35],[62,2,63,13],[62,14,63,15],[62,16,63,16],[62,17,63,24],[62,25,63,26]]}
[null,"BULLETIN INDIVIDUEL DE VERSEMENTS SUR VOTRE PLAN D’ÉPARGNE SALARIALE",null,null,null,null,null,null,null,null,null,null,null,null,null,null,null,null,null,null,null,null,null,null,null,null,null,null,null,null,null,null,null,null,null,null,null,null,null,null,null,null,null,null,null,null,null,null,null,null,null,null,null,null,null,null,null,null,null," Version PERCOL",null,null,null,null,null,null,null,null,null,{"$f":"'Saisie des données + guide'!BF2","v":2024}]
[]
[null,"VERSEMENT DE L'ÉPARGNANT",null,null,null,null,null,null,null,null,null,null,null,null,null,null,null,null,null,null,null,null,null,null,null,null,null,null,null,null,null,null,null,null,null,null,null,null,null,"VERSEMENT COMPLÉMENTAIRE (ABONDEMENT) DE L'ENTREPRISE"]
[]
[]
[null,null,"Civilité ",null,null,null,null,null,null,null,null,null,"Nom",null,null,null,null,null,"Prénom",null,null,null,null,null,null,null,null,null,null,null,null,null,null,null,null,null,null,null,null,"Code entreprise",null,null,null,null,null,{"$f":"'Saisie des données + guide'!K12","v":0},null,null,null,null,null,null,null,null,null,null,null,null,null,null,null,null,null,null,null,null,null,null,"Exercice fiscal de référence :",{"$f":"'Saisie des données + guide'!V$48","v":0}]
[]
[null,null,"N° Sécurité sociale",null,null,null,null,null,null,null,null,null,null,null,null,null,null,null,"Nom de naissance",null,null,null,null,null,null,null,null,null,null,null,null,null,null,null,null,null,null,null,null,"Raison sociale",null,null,null,null,null,{"$f":"'Saisie des données + guide'!K14","v":0}]
[]
[null,null,"Date de naissance",null,null,null,null,null,null,null,null,"Département de naissance",null,null,null,null,null,null,"Ville de naissance",null,null,null,null,null,null,null,null,null,null,null,null,null,null,null,null,null,null,null,null,"Contact",null,null,null,null,null,{"$f":"'Saisie des données + guide'!K16","v":0}]
[]
[null,null,"Adresse ",null,null,null,null,null,null,null,null,null,null,null,null,null,null,null,"Pays de naissance",null,null,null,null,null,null,null,null,null,null,null,null,null,null,null,null,null,null,null,null,"Email",null,null,null,null,null,{"$f":"'Saisie des données + guide'!K18","v":0}]
[]
[null,null,"Code postal",null,null,null,null,null,null,null,null,"Ville",null,null,null,null,null,null,"E-mail",null,null,null,null,null,null,null,null,null,null,null,null,null,null,null,null,null,null,null,null,"Si CSG-CRDS non précomptées pour le salarié",null,null,null,null,null,null,null,null,null,null,null,null,null,null,null,null,{"$f":"+'Saisie des données + guide'!AG36","v":0},null,null,null,null,null,null,null,null,null,null,null,"Le PASS* pour l'année 2024 est de :",{"$f":"PASS","v":46368}]
[]
[null,null,"Statut",null,null,null,null,null,null,null,null,null,null,null,null,null,null,null,"Téléphone",null,null,null,null,null,null,null,null,null,null,null,null,null,null,null,null,null,null,null,null,{"$f":"+'Saisie des données + guide'!E38","v":"Le montant que Groupama Épargne Salariale doit investir est le montant net de CSG-CRDS (les prélèvements sociaux étant payés directement par vos soins).  Si vous cochez la case, cela signifie que vous souhaitez par dérogation nous adresser un montant brut de CSG-CRDS et que vous aurez prélevé sur la fiche de paie de chacun des salariés concernés la CSG-CRDS relative à l'opération réalisée. Cette dérogation n'est pas possible si l'abondement est à calculer par Groupama Épargne Salariale."}]
[]
[]
[]
[null,null,null,null,null,null,null,null,null,null,null,null,null,null,null,null,null,null,null,null,null,null,null,null,null,null,null,null,null,null,null,null,null,null,null,null,null,null,null,null,null,null,null,null,null,null,null,null,null,null,null,null,null,null,null,null,null,null,null,"* PASS : Plafond Annuel de la Sécurité Sociale"]
[]
[]
[null,null,"MONTANTS À INVESTIR",null,null,null,null,null,null,null,null,null,null,null,null,null,null,null,"Origine des versements ",null,null,null,null,{"$f":"'Saisie des données + guide'!U21","v":"Versements volontaires"},null,null,null,null,null,null,{"$f":"IF(X23=\"Abondement unilatéral\", \" C =\", \"\")","v":""},null,null,null,null,null,null,null,null,"PEE"]
[null,null,null,null,null,null,null,null,null,null,null,null,null,null,null,null,null,null,{"$f":"+IF($X$23=\"Abondement unilatéral\",\"Le versement de l'abondement unilatéral est limité à 2% du PASS 2024 (soit 927,36€)\",\"\")","v":""}]
[null,null,null,null,"PEE",null,null,null,null,null,null,null,null,"PERCOL",null,null,null,null,null,null,null,null,null,"MONTANT TOTAL",null,null,null,null,null,null,null,null,null,null,null,null,null,null,null,{"$f":"X23","v":"Versements volontaires"},null,null,null,null,null,null,null,null,null,null,null,"Taux",null,null,null,null,null,null,{"$f":"\"Abondement sur \"&X23&\"\"","v":"Abondement sur Versements volontaires"}]
[null,null,"A =",null,null,null,null,null,null,"+",null,"B =",null,null,null,null,null,null,null,"=",null,null,null,"A + B =",null,null,null,{"$f":"$E$26+$N$26","v":0},null,null,null,null,null,null,null,null,null,null,null,null,null,{"$f":"E$26","v":0},null,null,null,null,null,null,"x",null,null,{"$f":"+'Saisie des données + guide'!S$29","v":0},null,null,null,null,null,"A' =",{"$f":"IF(ISBLANK(E26),\"\",IF(AND(G16=J105,ISBLANK('Saisie des données + guide'!AG36)),MIN(Plafond_PEE_net,E26*AZ26*(1-CSG_CRDS)),IF(AND(G16=J106,ISBLANK('Saisie des données + guide'!AG36)),MIN(Plafond_PEE,E26*AZ26),IF(AND(G16=J105,'Saisie des données + guide'!AG36=\"X\"),MIN(Plafond_PEE,E26*AZ26),IF(AND(G16=J106,'Saisie des données + guide'!AG36=\"X\"),MIN(Plafond_PEE,E26*AZ26))))))","v":""}]
[null,null,null,null,null,null,null,null,null,null,null,null,null,null,null,null,null,null,null,null,null,null,null,null,null,null,null,null,null,null,null,null,null,null,null,null,null,null,null,null,null,"A",null,null,null,null,null,null,null,null,null,"T",null,null,null,null,null,null,{"$f":"IF(AND(G16=J105,ISBLANK('Saisie des données + guide'!AG$36)),\"plafonné à \" &Plafond_PEE_net&\" € pour \"&J$105,IF(AND(G16=J105,'Saisie des données + guide'!AG$36=\"X\"),\"plafonné à \" &Plafond_PEE&\" € pour \"&J$105,\"plafonné à \" &Plafond_PEE&\" € pour \"&J$106))","v":"plafonné à 3709,44 € pour Non salarié"}]
[]
[]
[null,null,null,"UNIQUEMENT PERCOL : Vous pouvez déduire de vos revenus imposables les versements volontaires effectués dans le PERCOL.  \nLes sommes seront alors fiscalisées au moment du retrait selon la réglementation en vigueur."]
[null,null,null,null,null,null,null,null,null,null,null,null,null,null,null,null,null,null,null,null,null,null,null,null,null,null,null,null,null,null,null,null,null,null,null,null,null,null,null,"PERCOL"]
[]
[null,null,null,null,null,"Je choisis de bénéficier des versements déductibles dans le PERCOL      ",null,null,null,null,null,null,null,null,null,null,null,null,null,null,null,null,null,null,null,null,null,null,null,null,null,null,null,null,null,null,null,null,null,{"$f":"X23","v":"Versements volontaires"},null,null,null,null,null,null,null,null,null,null,null,"Taux",null,null,null,{"$f":" IF($X$23=\"Versements volontaires\",\"Abondement sur Versements volontaires\",IF($X$23=\"Intéressement\",\"Abondement sur Intéressement\",IF($X$23=\"Participation\",\"Abondement sur Participation\",IF($X$23=\"Jours de repos non pris / CET\",\"Abondement sur Jours de repos non pris / CET\",IF($X$23=\"Prime de partage de la valeur\",\"Abondement sur Prime de partage de la valeur\",IF($X$23=\"Abondement unilatéral\",\" Montant total investi pour l'abondement unilatéral\"))))))","v":"Abondement sur Versements volontaires"}]
[]
[null,null,null,null,null,"Je renonce aux versements déductibles",null,null,null,null,null,null,null,null,null,null,null,null,null,null,null,null,null,null,null,null,null,null,null,null,null,null,null,null,null,null,null,null,null,null,null,{"$f":"$N$26","v":0},null,null,null,null,null,null,"x",null,null,{"$f":"+'Saisie des données + guide'!AK29","v":0},null,null,null,null,null,{"$f":"IF(X23=\"abondement unilatéral\",\"C'=\", \"B' =\")","v":"B' ="},{"$f":"IF(AND(ISBLANK(N26),ISBLANK(AG23)),\"\",IF(AND(X23=\"Abondement unilatéral\",G16=J105,ISBLANK('Saisie des données + guide'!AG36)),MIN(Plafond_uni_TS,AG23*0.903),IF(AND(X23=\"Abondement unilatéral\",G16=J106),MIN(Plafond_uni_TNS,AG23),IF(AND(X23<>\"Abondement unilatéral\",G16=J105,ISBLANK('Saisie des données + guide'!AG36)),MIN(Plafond_PERCO_net,(1-CSG_CRDS)*AZ35*N26),IF(AND(X23<>\"Abondement unilatéral\",G16=J106,ISBLANK('Saisie des données + guide'!AG36)),MIN(Plafond_PERCO,AZ35*N26),IF(AND(X23<>\"Abondement unilatéral\",G16=J105,'Saisie des données + guide'!AG36=\"X\"),MIN(Plafond_PERCO,AZ35*N26),IF(AND(X23<>\"Abondement unilatéral\",G16=J106,'Saisie des données + guide'!AG36=\"X\"),MIN(Plafond_PERCO,AZ35*N26),IF(AND(X23=\"Abondement unilatéral\",G16=J106,'Saisie des données + guide'!AG36=\"X\"),MIN(Plafond_uni_TNS,AG23),IF(AND(X23=\"Abondement unilatéral\",G16=J105,'Saisie des données + guide'!AG36=\"X\"),MIN(Plafond_uni_TNS,AG23))))))))))","v":""}]
[null,null,null,null,null,"Attention : Votre choix est irrévocable. En l'absence de choix, les versements volontaires dans le PERCOL seront déductibles.",null,null,null,null,null,null,null,null,null,null,null,null,null,null,null,null,null,null,null,null,null,null,null,null,"> Plus de détails",null,null,null,null,null,null,null,null,null,null,"B",null,null,null,null,null,null,null,null,null,"T",null,null,null,null,null,null,{"$f":"IF(AND(ISBLANK(N26),ISBLANK(AG23)),\"\",IF(AND(X23=\"Abondement unilatéral\",G16=J105,ISBLANK('Saisie des données + guide'!AG36)),\"plafonné à \"&Plafond_uni_TS&\" € pour \"&J105,IF(AND(X23=\"Abondement unilatéral\",G16=J106),\"plafonné à \"&Plafond_uni_TNS&\" € pour \"&J106,IF(AND(X23<>\"Abondement unilatéral\",G16=J105,ISBLANK('Saisie des données + guide'!AG36)),\"plafonné à \"&Plafond_PERCO_net&\" € pour \"&J105,IF(AND(X23<>\"Abondement unilatéral\",G16=J106,ISBLANK('Saisie des données + guide'!AG36)),\"plafonné à \"&Plafond_PERCO&\" € pour \"&J106,IF(AND(X23<>\"Abondement unilatéral\",G16=J105,'Saisie des données + guide'!AG36=\"X\"),\"plafonné à \"&Plafond_PERCO&\" € pour \"&J105,IF(AND(X23<>\"Abondement unilatéral\",G16=J106,'Saisie des données + guide'!AG36=\"X\"),\"plafonné à \"&Plafond_PERCO&\" € pour \"&J106,IF(AND(X23=\"Abondement unilatéral\",G16=J106,'Saisie des données + guide'!AG36=\"X\"),\"plafonné à \"&Plafond_uni_TNS&\" € pour \"&J106,IF(AND(X23=\"Abondement unilatéral\",G16=J105,'Saisie des données + guide'!AG36=\"X\"),\"plafonné à \"&Plafond_uni_TNS&\" € pour \"&J105)))))))))","v":""}]
[]
[]
[]
[null,null,"RÉPARTITION DE L'ÉPARGNE",null,null,null,null,null,null,null,null,null,null,null,null,"N'hésitez pas à consulter l'onglet \"Autres fonds\" pour ajouter d'autres supports de placement.",null,null,null,null,null,null,null,null,null,null,null,null,null,null,null,null,null,null,null,null,null,null,null,"VERSEMENT TOTAL DE L'ENTREPRISE",null,null,null,null,null,null,null,null,null,null,null,null,null,null,"(A' + B')",null,null,null,{"$f":"MAX($BG$26,0)+MAX($BG$35,0)","v":0}]
[null,null,null,"A. Gestion Libre",null,null,null,null,null,null,null,null,null,null,null,null,null,null,null,null,null,null,null,null,null,null,null,null,null,null,null,null,null,null,null,null,null,null,null,"Le versement de l'abondement s'effectue sur les mêmes fonds que le versement personnel."]
[]
[null,null,"CODE ET NOM DES FONDS",null,null,null,null,null,null,null,null,null,null,null,"PEE",null,null,null,null,null,null,null,null,null,null,"PERCOL"]
[null,null,null,null,null,null,null,null,null,null,null,null,null,null,{"$f":"+IF(SUM(R47:Y76)>E26,\"ERREUR SAISIE\",IF(R46=0,\"\",\"Reste à répartir sur les fonds suivants\"))","v":""},null,null,null,null,null,null,null,null,null,null,{"$f":"+IF(SUM(AC47:AJ79)>(N26+AG23),\"ERREUR SAISIE\",IF(AC46=0,\"\",\"Reste à répartir sur les fonds suivants\"))","v":""},null,null,null,null,null,null,null,null,null,null,null,null,null,"VERSEMENT TOTAL INVESTI",null,null,null,null,null,null,null,null,null,null,null,null,null,"(A + B) + (A' + B')",null,null,null,null,{"$f":"+$AB$26+$BG$40","v":0}]
[]
[null,null,null,null,null,null,null,null,null,null,null,null,null,null,{"$f":"IF(E26>0,100-(SUM(O47:P76)),\"\")","v":""},null,{"$f":"IF(O46<>0, \"%\", \"\")","v":"%"},{"$f":"E26-SUM(R47:Y76)","v":0},null,null,null,null,null,null,null,{"$f":"IF((N26+AG23)>0,100-(SUM(Z47:AA79)),\"\")","v":""},null,{"$f":"IF(Z46<>0, \"%\", \"\")","v":"%"},{"$f":"(N26+AG23)-SUM(AC47:AJ79)","v":0}]
[null,null,{"$f":"+IF('Saisie des données + guide'!U25=\"Gamme GER\",\"84289 - GER Monétaire\",IF('Saisie des données + guide'!U25=\"Gamme TESORUS\",\"82659 - TESORUS Monétaire\",IF('Saisie des données + guide'!U25=\"Gamme Fonds Directs\",\"15719 - Oblifonds\",IF('Saisie des données + guide'!U25=\"Gamme Finama\",\"\",\"\"))))","v":"84289 - GER Monétaire"},null,null,null,null,null,null,null,null,null,null,null,null,null,"%",{"$f":"IF(O47=\"\",\"--------------\",+E$26*O47/100)","v":"--------------"},null,null,null,null,null,null,null,null,null,"%",{"$f":"IF(Z47=\"\",\"--------------\",+(N$26+$AG$23)*Z47/100)","v":"--------------"}]
[null,null,null,null,null,null,null,null,null,null,null,null,null,null,null,null,null,null,null,null,null,null,null,null,null,null,null,null,null,null,null,null,null,null,null,null,null,null,"ATTENTION : Si plusieurs épargnants effectuent des versements au même moment, vous devrez de regrouper l’ensemble des abondements en un seul chèque. Pour cela, reportez vous à la fiche récapitulative jointe sur ce fichier.\n\nLes chèques sont à libeller à l’ordre de GROUPAMA ÉPARGNE SALARIALE et à envoyer à l'adresse suivante : \nGroupama Épargne Salariale - Service Clients\n46 rue Jules Méline - 53098 Laval Cedex 9"]
[null,null,{"$f":"+IF('Saisie des données + guide'!U25=\"Gamme GER\",\"84309 - GER Prudence\",IF('Saisie des données + guide'!U25=\"Gamme TESORUS\",\"82719 - TESORUS Prudence\",IF('Saisie des données + guide'!U25=\"Gamme Fonds Directs\",\"4939 - Diversifonds\",\"\")))","v":"84309 - GER Prudence"},null,null,null,null,null,null,null,null,null,null,null,null,null,"%",{"$f":"IF(O49=\"\",\"--------------\",+E$26*O49/100)","v":"--------------"},null,null,null,null,null,null,null,null,null,"%",{"$f":"IF(Z49=\"\",\"--------------\",+(N$26+$AG$23)*Z49/100)","v":"--------------"}]
[]
[null,null,{"$f":"+IF('Saisie des données + guide'!U25=\"Gamme GER\",\"84329 - GER Equilibre\",IF('Saisie des données + guide'!U25=\"Gamme TESORUS\",\"82669 - TESORUS Equilibre\",IF('Saisie des données + guide'!U25=\"Gamme Fonds Directs\",\"2459 - Foncival\",\"\")))","v":"84329 - GER Equilibre"},null,null,null,null,null,null,null,null,null,null,null,null,null,"%",{"$f":"IF(O51=\"\",\"--------------\",+E$26*O51/100)","v":"--------------"},null,null,null,null,null,null,null,null,null,"%",{"$f":"IF(Z51=\"\",\"--------------\",+(N$26+$AG$23)*Z51/100)","v":"--------------"}]
[]
[null,null,{"$f":"+IF('Saisie des données + guide'!U25=\"Gamme GER\",\"84349 - GER Dynamique\",IF('Saisie des données + guide'!U25=\"Gamme TESORUS\",\"82689 - TESORUS Dynamique\",\"\"))","v":"84349 - GER Dynamique"},null,null,null,null,null,null,null,null,null,null,null,null,null,"%",{"$f":"IF(O53=\"\",\"--------------\",+E$26*O53/100)","v":"--------------"},null,null,null,null,null,null,null,null,null,"%",{"$f":"IF(Z53=\"\",\"--------------\",+(N$26+$AG$23)*Z53/100)","v":"--------------"}]
[]
[null,null,{"$f":"+IF('Saisie des données + guide'!U25=\"Gamme GER\",\"84369 - GER Solidaire\",IF('Saisie des données + guide'!U25=\"Gamme TESORUS\",\"87649 - TESORUS Solidaire\",\"\"))","v":"84369 - GER Solidaire"},null,null,null,null,null,null,null,null,null,null,null,null,null,"%",{"$f":"IF(O55=\"\",\"--------------\",+E$26*O55/100)","v":"--------------"},null,null,null,null,null,null,null,null,null,"%",{"$f":"IF(Z55=\"\",\"--------------\",+(N$26+$AG$23)*Z55/100)","v":"--------------"}]
[]
[null,null,"110429 - Finama Épargne Court Terme",null,null,null,null,null,null,null,null,null,null,null,null,null,"%",{"$f":"IF(O57=\"\",\"--------------\",+E$26*O57/100)","v":"--------------"},null,null,null,null,null,null,null,null,null,"%",{"$f":"IF(Z57=\"\",\"--------------\",+(N$26+$AG$23)*Z57/100)","v":"--------------"}]
[]
[null,null,"79139 - Finama Actions Internationales",null,null,null,null,null,null,null,null,null,null,null,null,null,"%",{"$f":"IF(O59=\"\",\"--------------\",+E$26*O59/100)","v":"--------------"},null,null,null,null,null,null,null,null,null,"%",{"$f":"IF(Z59=\"\",\"--------------\",+(N$26+$AG$23)*Z59/100)","v":"--------------"}]
[]
[null,null,"116119 - Groupama Sélection PME-ETI",null,null,null,null,null,null,null,null,null,null,null,null,null,"%",{"$f":"IF(O61=\"\",\"--------------\",+E$26*O61/100)","v":"--------------"},null,null,null,null,null,null,null,null,null,"%",{"$f":"IF(Z61=\"\",\"--------------\",+(N$26+$AG$23)*Z61/100)","v":"--------------"}]
[]
[null,null,null,null,null,null,null,null,null,null,null,null,null,null,null,null,"%",{"$f":"IF(O63=\"\",\"--------------\",+E$26*O63/100)","v":"--------------"},null,null,null,null,null,null,null,null,null,"%",{"$f":"IF(Z63=\"\",\"--------------\",+(N$26+$AG$23)*Z63/100)","v":"--------------"}]
[]
[null,null,null,null,null,null,null,null,null,null,null,null,null,null,null,null,"%",{"$f":"IF(O65=\"\",\"--------------\",+E$26*O65/100)","v":"--------------"},null,null,null,null,null,null,null,null,null,"%",{"$f":"IF(Z65=\"\",\"--------------\",+(N$26+$AG$23)*Z65/100)","v":"--------------"}]
[]
[null,null,null,null,null,null,null,null,null,null,null,null,null,null,null,null,"%",{"$f":"IF(O67=\"\",\"--------------\",+E$26*O67/100)","v":"--------------"},null,null,null,null,null,null,null,null,null,"%",{"$f":"IF(Z67=\"\",\"--------------\",+(N$26+$AG$23)*Z67/100)","v":"--------------"}]
[]
[null,null,null,null,null,null,null,null,null,null,null,null,null,null,null,null,"%",{"$f":"IF(O69=\"\",\"--------------\",+E$26*O69/100)","v":"--------------"},null,null,null,null,null,null,null,null,null,"%",{"$f":"IF(Z69=\"\",\"--------------\",+(N$26+$AG$23)*Z69/100)","v":"--------------"}]
[]
[null,null,null,null,null,null,null,null,null,null,null,null,null,null,null,null,"%",{"$f":"IF(O71=\"\",\"--------------\",+E$26*O71/100)","v":"--------------"},null,null,null,null,null,null,null,null,null,"%",{"$f":"IF(Z71=\"\",\"--------------\",+(N$26+$AG$23)*Z71/100)","v":"--------------"}]
[]
[null,null,null,null,null,null,null,null,null,null,null,null,null,null,null,null,"%",{"$f":"IF(O73=\"\",\"--------------\",+E$26*O73/100)","v":"--------------"},null,null,null,null,null,null,null,null,null,"%",{"$f":"IF(Z73=\"\",\"--------------\",+(N$26+$AG$23)*Z73/100)","v":"--------------"}]
[]
[null,null,null,null,null,null,null,null,null,null,null,null,null,null,null,null,"%",{"$f":"IF(O75=\"\",\"--------------\",+E$26*O75/100)","v":"--------------"},null,null,null,null,null,null,null,null,null,"%",{"$f":"IF(Z75=\"\",\"--------------\",+(N$26+$AG$23)*Z75/100)","v":"--------------"}]
[]
[]
[null,null,null,"B. Gestion Pilotée",null,null,null,null,null,null,null,null,null,null,null,null,null,"Choisissez votre profil",null,null,null,null,null,null,null,null,null,"%",{"$f":"IF(Z78=\"\",\"--------------\",+(N26+AG23)*Z78/100)","v":"--------------"}]
[null,null,null,"valable uniquement sur le PERCOL",null,null,null,null,null,null,null,{"$f":"IF(L78=\"Oui\",\"Préciser la grille d'allocation\",\"\")","v":""}]
[]
[]
[null,null,"Je déclare avoir pris connaissance du règlement du plan, des documents d'information clés (DIC/KID) des fonds remis par mon entreprise et téléchargeables sur www.groupama-es.fr, ainsi que des modalités de fonctionnement des versements individuels jointes au présent bulletin. \nConformément au contrat d’épargne salariale mis en place par votre entreprise, des frais de versements d’un maximum de 4 % peuvent s’appliquer. Nous vous invitons à contacter votre employeur pour obtenir le montant de ces frais.\nEn l'absence de choix de fonds, les sommes seront investies sur le fonds par défaut dans le PEE ou selon le mode de gestion pilotée dans le PERCOL : soit le profil Équilibre Horizon Retraite s'il s'agit de votre premier versement ou si vous aviez opté pour la gestion libre lors de précédent versement, soit avec le même profil de gestion pilotée précédemment choisi.\nPour tout versement volontaire à partir de 8 000 €, une copie de votre pièce d'identité devra être fournie, accompagnée du dernier avis d'imposition pour un versement d’un montant de 15 000 € et plus. ",null,null,null,null,null,null,null,null,null,null,null,null,null,null,null,null,null,null,null,null,null,null,null,null,null,null,null,null,null,null,null,null,null,null,null,null,"Conformément au règlement général sur la protection des données n°2016/679 du 27 avril 2016, vos données personnelles sont traitées par Groupama Épargne Salariale à des fins de tenue des comptes d'épargne salariale. Elles sont destinées aux membres du personnel dûment habilités de Groupama Épargne Salariale ainsi qu’à ses sous-traitants. Elles sont conservées par Groupama Épargne Salariale pendant une durée maximale de trente ans à compter de la disponibilité des avoirs.Vous pouvez demander l’accès, la rectification, l'effacement et la portabilité de vos données personnelles ainsi que limiter ou vous opposer, pour motif légitime, au traitement en écrivant au Délégué Relais à la Protection des Données de Groupama Épargne Salariale – Service du Contrôle interne – 2 boulevard de Pesaro – 92000 Nanterre ou par email : controleinterne@groupama-es.fr. Réf. : BIV 01-01-2024"]
[]
[]
[null,null,null,"J’atteste sur l’honneur que mon versement est conforme à la réglementation, notamment qu'il provient bien de mon épargne personnelle et que l’ensemble de mes versements de l’année au PEE ne dépasse pas 25 % de ma rémunération annuelle brute.",null,null,null,null,null,null,null,null,null,null,null,null,null,null,null,null,null,null,null,null,null,"SIGNATURE DE L'ÉPARGNANT"]
[null,null,null,null,null,null,null,null,null,null,null,null,null,null,null,null,null,null,null,null,null,null,null,null,null,null,null,null,null,null,null,null,null,null,null,null,null,null,null,null,null,null,null,null,null,null,"Groupama Épargne Salariale - Entreprise d'investissement agréée par l'ACPR - Teneur de comptes - Conservateur de parts \nSA au capital de 8.709.015 € - Siège social : 2 boulevard de Pesaro 92000 Nanterre - 428 768 352 RCS Nanterre"]
[]
[null,null,"Fait à :",null,null,null,null,null,null,null,null,null,null,"Le :",null,null,null,null,null,null,{"$f":"'Saisie des données + guide'!BF2","v":2024}]
[]
[]
[]
[]
[]
[]
[]
[]
[]
[]
[null,null,null,null,"3 options dans ce BIV :"]
[]
[null,null,null,null,null,null,"Ouverture compte :"]
[null,null,null,null,null,null,null,null,null,null,null,null,"X"]
[]
[null,null,null,null,null,null,"Statut :"]
[null,null,null,null,null,null,null,null,null,"Salarié"]
[null,null,null,null,null,null,null,null,null,"Non salarié"]
[]
[null,null,null,null,null,null,"Gestion pilotée :"]
[null,null,null,null,null,null,null,null,null,null,"Choisissez votre profil"]
[null,null,null,null,null,null,null,null,null,null,"Profil Prudent Horizon Retraite"]
[null,null,null,null,null,null,null,null,null,null,"Profil Équilibre Horizon Retraite"]
[null,null,null,null,null,null,null,null,null,null,"Profil Dynamique Horizon Retraite"]
[]
[null,null,null,null,null,null,null,null,null,null,null,"Oui"]
[null,null,null,null,null,null,null,null,null,null,null,"Non"]

{"sheet":"Bulletin n°7","index":7,"n_rows":115,"n_cols":70,"rows_kept":115,"cut":false,"hidden":false,"merged":[[93,10,93,15],[93,16,93,22],[93,23,93,28],[9,22,9,35],[11,6,11,16],[11,22,11,35],[13,6,13,10],[13,11,13,12],[13,13,13,16],[74,2,75,13],[74,14,75,15],[74,16,75,16],[74,17,75,24],[74,25,75,26],[74,27,75,27],[74,28,75,35],[77,11,77,12],[77,17,78,23],[77,25,78,26],[77,27,78,27],[77,28,78,35],[78,3,79,10],[78,11,78,16],[68,2,69,13],[68,25,69,26],[68,27,69,27],[68,28,69,35],[70,2,71,13],[70,14,71,15],[70,16,71,16],[70,17,71,24],[70,25,71,26],[70,27,71,27],[70,28,71,35],[72,2,73,13],[72,14,73,15],[72,16,73,16],[72,17,73,24],[72,25,73,26],[72,27,73,27],[72,28,73,35],[64,2,65,13],[64,14,65,15],[64,16,65,16],[64,17,65,24],[64,25,65,26],[64,27,65,27],[64,28,65,35],[66,2,67,13],[66,14,67,15],[66,16,67,16],[66,17,67,24],[66,25,67,26],[66,27,67,27],[66,28,67,35],[68,14,69,15],[68,16,69,16],[68,17,69,24],[56,14,57,15],[56,16,57,16],[56,17,57,24],[56,25,57,26],[56,27,57,27],[56,28,57,35],[58,2,59,13],[58,14,59,15],[58,16,59,16],[58,17,59,24],[58,25,59,26],[58,27,59,27],[58,28,59,35],[56,2,57,13],[52,25,53,26],[52,27,53,27],[52,28,53,35],[54,2,55,13],[54,14,55,15],[54,16,55,16],[54,17,55,24],[54,25,55,26],[54,27,55,27],[54,28,55,35],[46,16,47,16],[46,17,47,24],[46,25,47,26],[46,27,47,27],[46,28,47,35],[47,38,53,71],[48,2,49,13],[48,14,49,15],[48,16,49,16],[48,17,49,24],[48,25,49,26],[48,27,49,27],[48,28,49,35],[50,2,51,13],[50,14,51,15],[50,16,51,16],[50,17,51,24],[50,25,51,26],[50,27,51,27],[50,28,51,35],[52,2,53,13],[52,14,53,15],[52,16,53,16],[52,17,53,24],[39,54,39,57],[39,58,39,68],[40,39,42,53],[42,2,45,13],[42,14,42,24],[42,25,42,35],[43,14,44,24],[43,25,44,35],[43,53,43,57],[43,58,43,68],[45,14,45,15],[45,17,45,24],[45,25,45,26],[45,28,45,35],[32,5,32,26],[32,39,32,48],[32,51,33,54],[32,55,32,69],[35,5,35,29],[35,30,35,35],[35,41,35,46],[35,51,35,54],[35,58,35,68],[24,4,24,5],[26,23,27,35],[26,41,26,46],[26,51,26,54],[26,58,26,68],[28,58,28,68],[29,3,31,35],[30,39,30,56],[30,58,30,68],[24,39,24,48],[25,2,25,3],[25,4,25,5],[25,11,25,12],[25,13,25,14],[25,17,25,18],[25,23,25,26],[25,27,25,35],[25,48,25,49],[9,45,9,69],[0,1,0,52],[2,1,3,36],[2,39,3,71],[5,45,5,50],[7,6,7,16],[7,22,7,35],[7,45,7,69],[0,59,0,68],[0,69,0,71],[5,22,5,35],[5,6,5,10],[5,13,5,16],[9,6,9,10],[9,15,9,16],[62,27,63,27],[62,28,63,35],[18,89,18,107],[11,45,11,69],[15,6,16,16],[15,22,15,35],[15,39,18,69],[25,41,25,46],[25,51,25,54],[25,58,25,68],[46,14,47,15],[24,13,24,14],[24,51,24,54],[34,41,34,46],[34,51,34,54],[34,58,34,68],[34,5,34,26],[34,48,34,49],[46,2,47,13],[22,23,22,29],[22,30,22,31],[22,32,22,35],[22,39,22,43],[24,23,24,35],[13,22,13,35],[80,17,80,24],[81,2,82,35],[81,39,83,71],[84,3,85,23],[84,25,84,35],[85,25,87,35],[85,46,88,71],[87,2,87,4],[87,5,87,11],[87,13,87,15],[87,20,87,22],[60,2,61,13],[60,14,61,15],[60,16,61,16],[60,17,61,24],[60,25,61,26],[60,27,61,27],[60,28,61,35],[62,2,63,13],[62,14,63,15],[62,16,63,16],[62,17,63,24],[62,25,63,26]]}
[null,"BULLETIN INDIVIDUEL DE VERSEMENTS SUR VOTRE PLAN D’ÉPARGNE SALARIALE",null,null,null,null,null,null,null,null,null,null,null,null,null,null,null,null,null,null,null,null,null,null,null,null,null,null,null,null,null,null,null,null,null,null,null,null,null,null,null,null,null,null,null,null,null,null,null,null,null,null,null,null,null,null,null,null,null," Version PERCOL",null,null,null,null,null,null,null,null,null,{"$f":"'Saisie des données + guide'!BF2","v":2024}]
[]
[null,"VERSEMENT DE L'ÉPARGNANT",null,null,null,null,null,null,null,null,null,null,null,null,null,null,null,null,null,null,null,null,null,null,null,null,null,null,null,null,null,null,null,null,null,null,null,null,null,"VERSEMENT COMPLÉMENTAIRE (ABONDEMENT) DE L'ENTREPRISE"]
[]
[]
[null,null,"Civilité ",null,null,null,null,null,null,null,null,null,"Nom",null,null,null,null,null,"Prénom",null,null,null,null,null,null,null,null,null,null,null,null,null,null,null,null,null,null,null,null,"Code entreprise",null,null,null,null,null,{"$f":"'Saisie des données + guide'!K12","v":0},null,null,null,null,null,null,null,null,null,null,null,null,null,null,null,null,null,null,null,null,null,null,"Exercice fiscal de référence :",{"$f":"'Saisie des données + guide'!V$48","v":0}]
[]
[null,null,"N° Sécurité sociale",null,null,null,null,null,null,null,null,null,null,null,null,null,null,null,"Nom de naissance",null,null,null,null,null,null,null,null,null,null,null,null,null,null,null,null,null,null,null,null,"Raison sociale",null,null,null,null,null,{"$f":"'Saisie des données + guide'!K14","v":0}]
[]
[null,null,"Date de naissance",null,null,null,null,null,null,null,null,"Département de naissance",null,null,null,null,null,null,"Ville de naissance",null,null,null,null,null,null,null,null,null,null,null,null,null,null,null,null,null,null,null,null,"Contact",null,null,null,null,null,{"$f":"'Saisie des données + guide'!K16","v":0}]
[]
[null,null,"Adresse ",null,null,null,null,null,null,null,null,null,null,null,null,null,null,null,"Pays de naissance",null,null,null,null,null,null,null,null,null,null,null,null,null,null,null,null,null,null,null,null,"Email",null,null,null,null,null,{"$f":"'Saisie des données + guide'!K18","v":0}]
[]
[null,null,"Code postal",null,null,null,null,null,null,null,null,"Ville",null,null,null,null,null,null,"E-mail",null,null,null,null,null,null,null,null,null,null,null,null,null,null,null,null,null,null,null,null,"Si CSG-CRDS non précomptées pour le salarié",null,null,null,null,null,null,null,null,null,null,null,null,null,null,null,null,{"$f":"+'Saisie des données + guide'!AG36","v":0},null,null,null,null,null,null,null,null,null,null,null,"Le PASS* pour l'année 2024 est de :",{"$f":"PASS","v":46368}]
[]
[null,null,"Statut",null,null,null,null,null,null,null,null,null,null,null,null,null,null,null,"Téléphone",null,null,null,null,null,null,null,null,null,null,null,null,null,null,null,null,null,null,null,null,{"$f":"+'Saisie des données + guide'!E38","v":"Le montant que Groupama Épargne Salariale doit investir est le montant net de CSG-CRDS (les prélèvements sociaux étant payés directement par vos soins).  Si vous cochez la case, cela signifie que vous souhaitez par dérogation nous adresser un montant brut de CSG-CRDS et que vous aurez prélevé sur la fiche de paie de chacun des salariés concernés la CSG-CRDS relative à l'opération réalisée. Cette dérogation n'est pas possible si l'abondement est à calculer par Groupama Épargne Salariale."}]
[]
[]
[]
[null,null,null,null,null,null,null,null,null,null,null,null,null,null,null,null,null,null,null,null,null,null,null,null,null,null,null,null,null,null,null,null,null,null,null,null,null,null,null,null,null,null,null,null,null,null,null,null,null,null,null,null,null,null,null,null,null,null,null,"* PASS : Plafond Annuel de la Sécurité Sociale"]
[]
[]
[null,null,"MONTANTS À INVESTIR",null,null,null,null,null,null,null,null,null,null,null,null,null,null,null,"Origine des versements ",null,null,null,null,{"$f":"'Saisie des données + guide'!U21","v":"Versements volontaires"},null,null,null,null,null,null,{"$f":"IF(X23=\"Abondement unilatéral\", \" C =\", \"\")","v":""},null,null,null,null,null,null,null,null,"PEE"]
[null,null,null,null,null,null,null,null,null,null,null,null,null,null,null,null,null,null,{"$f":"+IF($X$23=\"Abondement unilatéral\",\"Le versement de l'abondement unilatéral est limité à 2% du PASS 2024 (soit 927,36€)\",\"\")","v":""}]
[null,null,null,null,"PEE",null,null,null,null,null,null,null,null,"PERCOL",null,null,null,null,null,null,null,null,null,"MONTANT TOTAL",null,null,null,null,null,null,null,null,null,null,null,null,null,null,null,{"$f":"X23","v":"Versements volontaires"},null,null,null,null,null,null,null,null,null,null,null,"Taux",null,null,null,null,null,null,{"$f":"\"Abondement sur \"&X23&\"\"","v":"Abondement sur Versements volontaires"}]
[null,null,"A =",null,null,null,null,null,null,"+",null,"B =",null,null,null,null,null,null,null,"=",null,null,null,"A + B =",null,null,null,{"$f":"$E$26+$N$26","v":0},null,null,null,null,null,null,null,null,null,null,null,null,null,{"$f":"E$26","v":0},null,null,null,null,null,null,"x",null,null,{"$f":"+'Saisie des données + guide'!S$29","v":0},null,null,null,null,null,"A' =",{"$f":"IF(ISBLANK(E26),\"\",IF(AND(G16=J105,ISBLANK('Saisie des données + guide'!AG36)),MIN(Plafond_PEE_net,E26*AZ26*(1-CSG_CRDS)),IF(AND(G16=J106,ISBLANK('Saisie des données + guide'!AG36)),MIN(Plafond_PEE,E26*AZ26),IF(AND(G16=J105,'Saisie des données + guide'!AG36=\"X\"),MIN(Plafond_PEE,E26*AZ26),IF(AND(G16=J106,'Saisie des données + guide'!AG36=\"X\"),MIN(Plafond_PEE,E26*AZ26))))))","v":""}]
[null,null,null,null,null,null,null,null,null,null,null,null,null,null,null,null,null,null,null,null,null,null,null,null,null,null,null,null,null,null,null,null,null,null,null,null,null,null,null,null,null,"A",null,null,null,null,null,null,null,null,null,"T",null,null,null,null,null,null,{"$f":"IF(AND(G16=J105,ISBLANK('Saisie des données + guide'!AG$36)),\"plafonné à \" &Plafond_PEE_net&\" € pour \"&J$105,IF(AND(G16=J105,'Saisie des données + guide'!AG$36=\"X\"),\"plafonné à \" &Plafond_PEE&\" € pour \"&J$105,\"plafonné à \" &Plafond_PEE&\" € pour \"&J$106))","v":"plafonné à 3709,44 € pour Non salarié"}]
[]
[]
[null,null,null,"UNIQUEMENT PERCOL : Vous pouvez déduire de vos revenus imposables les versements volontaires effectués dans le PERCOL.  \nLes sommes seront alors fiscalisées au moment du retrait selon la réglementation en vigueur."]
[null,null,null,null,null,null,null,null,null,null,null,null,null,null,null,null,null,null,null,null,null,null,null,null,null,null,null,null,null,null,null,null,null,null,null,null,null,null,null,"PERCOL"]
[]
[null,null,null,null,null,"Je choisis de bénéficier des versements déductibles dans le PERCOL      ",null,null,null,null,null,null,null,null,null,null,null,null,null,null,null,null,null,null,null,null,null,null,null,null,null,null,null,null,null,null,null,null,null,{"$f":"X23","v":"Versements volontaires"},null,null,null,null,null,null,null,null,null,null,null,"Taux",null,null,null,{"$f":" IF($X$23=\"Versements volontaires\",\"Abondement sur Versements volontaires\",IF($X$23=\"Intéressement\",\"Abondement sur Intéressement\",IF($X$23=\"Participation\",\"Abondement sur Participation\",IF($X$23=\"Jours de repos non pris / CET\",\"Abondement sur Jours de repos non pris / CET\",IF($X$23=\"Prime de partage de la valeur\",\"Abondement sur Prime de partage de la valeur\",IF($X$23=\"Abondement unilatéral\",\" Montant total investi pour l'abondement unilatéral\"))))))","v":"Abondement sur Versements volontaires"}]
[]
[null,null,null,null,null,"Je renonce aux versements déductibles",null,null,null,null,null,null,null,null,null,null,null,null,null,null,null,null,null,null,null,null,null,null,null,null,null,null,null,null,null,null,null,null,null,null,null,{"$f":"$N$26","v":0},null,null,null,null,null,null,"x",null,null,{"$f":"+'Saisie des données + guide'!AK29","v":0},null,null,null,null,null,{"$f":"IF(X23=\"abondement unilatéral\",\"C'=\", \"B' =\")","v":"B' ="},{"$f":"IF(AND(ISBLANK(N26),ISBLANK(AG23)),\"\",IF(AND(X23=\"Abondement unilatéral\",G16=J105,ISBLANK('Saisie des données + guide'!AG36)),MIN(Plafond_uni_TS,AG23*0.903),IF(AND(X23=\"Abondement unilatéral\",G16=J106),MIN(Plafond_uni_TNS,AG23),IF(AND(X23<>\"Abondement unilatéral\",G16=J105,ISBLANK('Saisie des données + guide'!AG36)),MIN(Plafond_PERCO_net,(1-CSG_CRDS)*AZ35*N26),IF(AND(X23<>\"Abondement unilatéral\",G16=J106,ISBLANK('Saisie des données + guide'!AG36)),MIN(Plafond_PERCO,AZ35*N26),IF(AND(X23<>\"Abondement unilatéral\",G16=J105,'Saisie des données + guide'!AG36=\"X\"),MIN(Plafond_PERCO,AZ35*N26),IF(AND(X23<>\"Abondement unilatéral\",G16=J106,'Saisie des données + guide'!AG36=\"X\"),MIN(Plafond_PERCO,AZ35*N26),IF(AND(X23=\"Abondement unilatéral\",G16=J106,'Saisie des données + guide'!AG36=\"X\"),MIN(Plafond_uni_TNS,AG23),IF(AND(X23=\"Abondement unilatéral\",G16=J105,'Saisie des données + guide'!AG36=\"X\"),MIN(Plafond_uni_TNS,AG23))))))))))","v":""}]
[null,null,null,null,null,"Attention : Votre choix est irrévocable. En l'absence de choix, les versements volontaires dans le PERCOL seront déductibles.",null,null,null,null,null,null,null,null,null,null,null,null,null,null,null,null,null,null,null,null,null,null,null,null,"> Plus de détails",null,null,null,null,null,null,null,null,null,null,"B",null,null,null,null,null,null,null,null,null,"T",null,null,null,null,null,null,{"$f":"IF(AND(ISBLANK(N26),ISBLANK(AG23)),\"\",IF(AND(X23=\"Abondement unilatéral\",G16=J105,ISBLANK('Saisie des données + guide'!AG36)),\"plafonné à \"&Plafond_uni_TS&\" € pour \"&J105,IF(AND(X23=\"Abondement unilatéral\",G16=J106),\"plafonné à \"&Plafond_uni_TNS&\" € pour \"&J106,IF(AND(X23<>\"Abondement unilatéral\",G16=J105,ISBLANK('Saisie des données + guide'!AG36)),\"plafonné à \"&Plafond_PERCO_net&\" € pour \"&J105,IF(AND(X23<>\"Abondement unilatéral\",G16=J106,ISBLANK('Saisie des données + guide'!AG36)),\"plafonné à \"&Plafond_PERCO&\" € pour \"&J106,IF(AND(X23<>\"Abondement unilatéral\",G16=J105,'Saisie des données + guide'!AG36=\"X\"),\"plafonné à \"&Plafond_PERCO&\" € pour \"&J105,IF(AND(X23<>\"Abondement unilatéral\",G16=J106,'Saisie des données + guide'!AG36=\"X\"),\"plafonné à \"&Plafond_PERCO&\" € pour \"&J106,IF(AND(X23=\"Abondement unilatéral\",G16=J106,'Saisie des données + guide'!AG36=\"X\"),\"plafonné à \"&Plafond_uni_TNS&\" € pour \"&J106,IF(AND(X23=\"Abondement unilatéral\",G16=J105,'Saisie des données + guide'!AG36=\"X\"),\"plafonné à \"&Plafond_uni_TNS&\" € pour \"&J105)))))))))","v":""}]
[]
[]
[]
[null,null,"RÉPARTITION DE L'ÉPARGNE",null,null,null,null,null,null,null,null,null,null,null,null,"N'hésitez pas à consulter l'onglet \"Autres fonds\" pour ajouter d'autres supports de placement.",null,null,null,null,null,null,null,null,null,null,null,null,null,null,null,null,null,null,null,null,null,null,null,"VERSEMENT TOTAL DE L'ENTREPRISE",null,null,null,null,null,null,null,null,null,null,null,null,null,null,"(A' + B')",null,null,null,{"$f":"MAX($BG$26,0)+MAX($BG$35,0)","v":0}]
[null,null,null,"A. Gestion Libre",null,null,null,null,null,null,null,null,null,null,null,null,null,null,null,null,null,null,null,null,null,null,null,null,null,null,null,null,null,null,null,null,null,null,null,"Le versement de l'abondement s'effectue sur les mêmes fonds que le versement personnel."]
[]
[null,null,"CODE ET NOM DES FONDS",null,null,null,null,null,null,null,null,null,null,null,"PEE",null,null,null,null,null,null,null,null,null,null,"PERCOL"]
[null,null,null,null,null,null,null,null,null,null,null,null,null,null,{"$f":"+IF(SUM(R47:Y76)>E26,\"ERREUR SAISIE\",IF(R46=0,\"\",\"Reste à répartir sur les fonds suivants\"))","v":""},null,null,null,null,null,null,null,null,null,null,{"$f":"+IF(SUM(AC47:AJ79)>(N26+AG23),\"ERREUR SAISIE\",IF(AC46=0,\"\",\"Reste à répartir sur les fonds suivants\"))","v":""},null,null,null,null,null,null,null,null,null,null,null,null,null,"VERSEMENT TOTAL INVESTI",null,null,null,null,null,null,null,null,null,null,null,null,null,"(A + B) + (A' + B')",null,null,null,null,{"$f":"+$AB$26+$BG$40","v":0}]
[]
[null,null,null,null,null,null,null,null,null,null,null,null,null,null,{"$f":"IF(E26>0,100-(SUM(O47:P76)),\"\")","v":""},null,{"$f":"IF(O46<>0, \"%\", \"\")","v":"%"},{"$f":"E26-SUM(R47:Y76)","v":0},null,null,null,null,null,null,null,{"$f":"IF((N26+AG23)>0,100-(SUM(Z47:AA79)),\"\")","v":""},null,{"$f":"IF(Z46<>0, \"%\", \"\")","v":"%"},{"$f":"(N26+AG23)-SUM(AC47:AJ79)","v":0}]
[null,null,{"$f":"+IF('Saisie des données + guide'!U25=\"Gamme GER\",\"84289 - GER Monétaire\",IF('Saisie des données + guide'!U25=\"Gamme TESORUS\",\"82659 - TESORUS Monétaire\",IF('Saisie des données + guide'!U25=\"Gamme Fonds Directs\",\"15719 - Oblifonds\",IF('Saisie des données + guide'!U25=\"Gamme Finama\",\"\",\"\"))))","v":"84289 - GER Monétaire"},null,null,null,null,null,null,null,null,null,null,null,null,null,"%",{"$f":"IF(O47=\"\",\"--------------\",+E$26*O47/100)","v":"--------------"},null,null,null,null,null,null,null,null,null,"%",{"$f":"IF(Z47=\"\",\"--------------\",+(N$26+$AG$23)*Z47/100)","v":"--------------"}]
[null,null,null,null,null,null,null,null,null,null,null,null,null,null,null,null,null,null,null,null,null,null,null,null,null,null,null,null,null,null,null,null,null,null,null,null,null,null,"ATTENTION : Si plusieurs épargnants effectuent des versements au même moment, vous devrez de regrouper l’ensemble des abondements en un seul chèque. Pour cela, reportez vous à la fiche récapitulative jointe sur ce fichier.\n\nLes chèques sont à libeller à l’ordre de GROUPAMA ÉPARGNE SALARIALE et à envoyer à l'adresse suivante : \nGroupama Épargne Salariale - Service Clients\n46 rue Jules Méline - 53098 Laval Cedex 9"]
[null,null,{"$f":"+IF('Saisie des données + guide'!U25=\"Gamme GER\",\"84309 - GER Prudence\",IF('Saisie des données + guide'!U25=\"Gamme TESORUS\",\"82719 - TESORUS Prudence\",IF('Saisie des données + guide'!U25=\"Gamme Fonds Directs\",\"4939 - Diversifonds\",\"\")))","v":"84309 - GER Prudence"},null,null,null,null,null,null,null,null,null,null,null,null,null,"%",{"$f":"IF(O49=\"\",\"--------------\",+E$26*O49/100)","v":"--------------"},null,null,null,null,null,null,null,null,null,"%",{"$f":"IF(Z49=\"\",\"--------------\",+(N$26+$AG$23)*Z49/100)","v":"--------------"}]
[]
[null,null,{"$f":"+IF('Saisie des données + guide'!U25=\"Gamme GER\",\"84329 - GER Equilibre\",IF('Saisie des données + guide'!U25=\"Gamme TESORUS\",\"82669 - TESORUS Equilibre\",IF('Saisie des données + guide'!U25=\"Gamme Fonds Directs\",\"2459 - Foncival\",\"\")))","v":"84329 - GER Equilibre"},null,null,null,null,null,null,null,null,null,null,null,null,null,"%",{"$f":"IF(O51=\"\",\"--------------\",+E$26*O51/100)","v":"--------------"},null,null,null,null,null,null,null,null,null,"%",{"$f":"IF(Z51=\"\",\"--------------\",+(N$26+$AG$23)*Z51/100)","v":"--------------"}]
[]
[null,null,{"$f":"+IF('Saisie des données + guide'!U25=\"Gamme GER\",\"84349 - GER Dynamique\",IF('Saisie des données + guide'!U25=\"Gamme TESORUS\",\"82689 - TESORUS Dynamique\",\"\"))","v":"84349 - GER Dynamique"},null,null,null,null,null,null,null,null,null,null,null,null,null,"%",{"$f":"IF(O53=\"\",\"--------------\",+E$26*O53/100)","v":"--------------"},null,null,null,null,null,null,null,null,null,"%",{"$f":"IF(Z53=\"\",\"--------------\",+(N$26+$AG$23)*Z53/100)","v":"--------------"}]
[]
[null,null,{"$f":"+IF('Saisie des données + guide'!U25=\"Gamme GER\",\"84369 - GER Solidaire\",IF('Saisie des données + guide'!U25=\"Gamme TESORUS\",\"87649 - TESORUS Solidaire\",\"\"))","v":"84369 - GER Solidaire"},null,null,null,null,null,null,null,null,null,null,null,null,null,"%",{"$f":"IF(O55=\"\",\"--------------\",+E$26*O55/100)","v":"--------------"},null,null,null,null,null,null,null,null,null,"%",{"$f":"IF(Z55=\"\",\"--------------\",+(N$26+$AG$23)*Z55/100)","v":"--------------"}]
[]
[null,null,"110429 - Finama Épargne Court Terme",null,null,null,null,null,null,null,null,null,null,null,null,null,"%",{"$f":"IF(O57=\"\",\"--------------\",+E$26*O57/100)","v":"--------------"},null,null,null,null,null,null,null,null,null,"%",{"$f":"IF(Z57=\"\",\"--------------\",+(N$26+$AG$23)*Z57/100)","v":"--------------"}]
[]
[null,null,"79139 - Finama Actions Internationales",null,null,null,null,null,null,null,null,null,null,null,null,null,"%",{"$f":"IF(O59=\"\",\"--------------\",+E$26*O59/100)","v":"--------------"},null,null,null,null,null,null,null,null,null,"%",{"$f":"IF(Z59=\"\",\"--------------\",+(N$26+$AG$23)*Z59/100)","v":"--------------"}]
[]
[null,null,"116119 - Groupama Sélection PME-ETI",null,null,null,null,null,null,null,null,null,null,null,null,null,"%",{"$f":"IF(O61=\"\",\"--------------\",+E$26*O61/100)","v":"--------------"},null,null,null,null,null,null,null,null,null,"%",{"$f":"IF(Z61=\"\",\"--------------\",+(N$26+$AG$23)*Z61/100)","v":"--------------"}]
[]
[null,null,null,null,null,null,null,null,null,null,null,null,null,null,null,null,"%",{"$f":"IF(O63=\"\",\"--------------\",+E$26*O63/100)","v":"--------------"},null,null,null,null,null,null,null,null,null,"%",{"$f":"IF(Z63=\"\",\"--------------\",+(N$26+$AG$23)*Z63/100)","v":"--------------"}]
[]
[null,null,null,null,null,null,null,null,null,null,null,null,null,null,null,null,"%",{"$f":"IF(O65=\"\",\"--------------\",+E$26*O65/100)","v":"--------------"},null,null,null,null,null,null,null,null,null,"%",{"$f":"IF(Z65=\"\",\"--------------\",+(N$26+$AG$23)*Z65/100)","v":"--------------"}]
[]
[null,null,null,null,null,null,null,null,null,null,null,null,null,null,null,null,"%",{"$f":"IF(O67=\"\",\"--------------\",+E$26*O67/100)","v":"--------------"},null,null,null,null,null,null,null,null,null,"%",{"$f":"IF(Z67=\"\",\"--------------\",+(N$26+$AG$23)*Z67/100)","v":"--------------"}]
[]
[null,null,null,null,null,null,null,null,null,null,null,null,null,null,null,null,"%",{"$f":"IF(O69=\"\",\"--------------\",+E$26*O69/100)","v":"--------------"},null,null,null,null,null,null,null,null,null,"%",{"$f":"IF(Z69=\"\",\"--------------\",+(N$26+$AG$23)*Z69/100)","v":"--------------"}]
[]
[null,null,null,null,null,null,null,null,null,null,null,null,null,null,null,null,"%",{"$f":"IF(O71=\"\",\"--------------\",+E$26*O71/100)","v":"--------------"},null,null,null,null,null,null,null,null,null,"%",{"$f":"IF(Z71=\"\",\"--------------\",+(N$26+$AG$23)*Z71/100)","v":"--------------"}]
[]
[null,null,null,null,null,null,null,null,null,null,null,null,null,null,null,null,"%",{"$f":"IF(O73=\"\",\"--------------\",+E$26*O73/100)","v":"--------------"},null,null,null,null,null,null,null,null,null,"%",{"$f":"IF(Z73=\"\",\"--------------\",+(N$26+$AG$23)*Z73/100)","v":"--------------"}]
[]
[null,null,null,null,null,null,null,null,null,null,null,null,null,null,null,null,"%",{"$f":"IF(O75=\"\",\"--------------\",+E$26*O75/100)","v":"--------------"},null,null,null,null,null,null,null,null,null,"%",{"$f":"IF(Z75=\"\",\"--------------\",+(N$26+$AG$23)*Z75/100)","v":"--------------"}]
[]
[]
[null,null,null,"B. Gestion Pilotée",null,null,null,null,null,null,null,null,null,null,null,null,null,"Choisissez votre profil",null,null,null,null,null,null,null,null,null,"%",{"$f":"IF(Z78=\"\",\"--------------\",+(N26+AG23)*Z78/100)","v":"--------------"}]
[null,null,null,"valable uniquement sur le PERCOL",null,null,null,null,null,null,null,{"$f":"IF(L78=\"Oui\",\"Préciser la grille d'allocation\",\"\")","v":""}]
[]
[]
[null,null,"Je déclare avoir pris connaissance du règlement du plan, des documents d'information clés (DIC/KID) des fonds remis par mon entreprise et téléchargeables sur www.groupama-es.fr, ainsi que des modalités de fonctionnement des versements individuels jointes au présent bulletin. \nConformément au contrat d’épargne salariale mis en place par votre entreprise, des frais de versements d’un maximum de 4 % peuvent s’appliquer. Nous vous invitons à contacter votre employeur pour obtenir le montant de ces frais.\nEn l'absence de choix de fonds, les sommes seront investies sur le fonds par défaut dans le PEE ou selon le mode de gestion pilotée dans le PERCOL : soit le profil Équilibre Horizon Retraite s'il s'agit de votre premier versement ou si vous aviez opté pour la gestion libre lors de précédent versement, soit avec le même profil de gestion pilotée précédemment choisi.\nPour tout versement volontaire à partir de 8 000 €, une copie de votre pièce d'identité devra être fournie, accompagnée du dernier avis d'imposition pour un versement d’un montant de 15 000 € et plus. ",null,null,null,null,null,null,null,null,null,null,null,null,null,null,null,null,null,null,null,null,null,null,null,null,null,null,null,null,null,null,null,null,null,null,null,null,"Conformément au règlement général sur la protection des données n°2016/679 du 27 avril 2016, vos données personnelles sont traitées par Groupama Épargne Salariale à des fins de tenue des comptes d'épargne salariale. Elles sont destinées aux membres du personnel dûment habilités de Groupama Épargne Salariale ainsi qu’à ses sous-traitants. Elles sont conservées par Groupama Épargne Salariale pendant une durée maximale de trente ans à compter de la disponibilité des avoirs.Vous pouvez demander l’accès, la rectification, l'effacement et la portabilité de vos données personnelles ainsi que limiter ou vous opposer, pour motif légitime, au traitement en écrivant au Délégué Relais à la Protection des Données de Groupama Épargne Salariale – Service du Contrôle interne – 2 boulevard de Pesaro – 92000 Nanterre ou par email : controleinterne@groupama-es.fr. Réf. : BIV 01-01-2024"]
[]
[]
[null,null,null,"J’atteste sur l’honneur que mon versement est conforme à la réglementation, notamment qu'il provient bien de mon épargne personnelle et que l’ensemble de mes versements de l’année au PEE ne dépasse pas 25 % de ma rémunération annuelle brute.",null,null,null,null,null,null,null,null,null,null,null,null,null,null,null,null,null,null,null,null,null,"SIGNATURE DE L'ÉPARGNANT"]
[null,null,null,null,null,null,null,null,null,null,null,null,null,null,null,null,null,null,null,null,null,null,null,null,null,null,null,null,null,null,null,null,null,null,null,null,null,null,null,null,null,null,null,null,null,null,"Groupama Épargne Salariale - Entreprise d'investissement agréée par l'ACPR - Teneur de comptes - Conservateur de parts \nSA au capital de 8.709.015 € - Siège social : 2 boulevard de Pesaro 92000 Nanterre - 428 768 352 RCS Nanterre"]
[]
[null,null,"Fait à :",null,null,null,null,null,null,null,null,null,null,"Le :",null,null,null,null,null,null,{"$f":"'Saisie des données + guide'!BF2","v":2024}]
[]
[]
[]
[]
[]
[]
[]
[]
[]
[]
[null,null,null,null,"3 options dans ce BIV :"]
[]
[null,null,null,null,null,null,"Ouverture compte :"]
[null,null,null,null,null,null,null,null,null,null,null,null,"X"]
[]
[null,null,null,null,null,null,"Statut :"]
[null,null,null,null,null,null,null,null,null,"Salarié"]
[null,null,null,null,null,null,null,null,null,"Non salarié"]
[]
[null,null,null,null,null,null,"Gestion pilotée :"]
[null,null,null,null,null,null,null,null,null,null,"Choisissez votre profil"]
[null,null,null,null,null,null,null,null,null,null,"Profil Prudent Horizon Retraite"]
[null,null,null,null,null,null,null,null,null,null,"Profil Équilibre Horizon Retraite"]
[null,null,null,null,null,null,null,null,null,null,"Profil Dynamique Horizon Retraite"]
[]
[null,null,null,null,null,null,null,null,null,null,null,"Oui"]
[null,null,null,null,null,null,null,null,null,null,null,"Non"]

{"sheet":"Bulletin n°8","index":8,"n_rows":115,"n_cols":70,"rows_kept":115,"cut":false,"hidden":false,"merged":[[93,10,93,15],[93,16,93,22],[93,23,93,28],[9,22,9,35],[11,6,11,16],[11,22,11,35],[13,6,13,10],[13,11,13,12],[13,13,13,16],[74,2,75,13],[74,14,75,15],[74,16,75,16],[74,17,75,24],[74,25,75,26],[74,27,75,27],[74,28,75,35],[77,11,77,12],[77,17,78,23],[77,25,78,26],[77,27,78,27],[77,28,78,35],[78,3,79,10],[78,11,78,16],[68,2,69,13],[68,25,69,26],[68,27,69,27],[68,28,69,35],[70,2,71,13],[70,14,71,15],[70,16,71,16],[70,17,71,24],[70,25,71,26],[70,27,71,27],[70,28,71,35],[72,2,73,13],[72,14,73,15],[72,16,73,16],[72,17,73,24],[72,25,73,26],[72,27,73,27],[72,28,73,35],[64,2,65,13],[64,14,65,15],[64,16,65,16],[64,17,65,24],[64,25,65,26],[64,27,65,27],[64,28,65,35],[66,2,67,13],[66,14,67,15],[66,16,67,16],[66,17,67,24],[66,25,67,26],[66,27,67,27],[66,28,67,35],[68,14,69,15],[68,16,69,16],[68,17,69,24],[56,14,57,15],[56,16,57,16],[56,17,57,24],[56,25,57,26],[56,27,57,27],[56,28,57,35],[58,2,59,13],[58,14,59,15],[58,16,59,16],[58,17,59,24],[58,25,59,26],[58,27,59,27],[58,28,59,35],[56,2,57,13],[52,25,53,26],[52,27,53,27],[52,28,53,35],[54,2,55,13],[54,14,55,15],[54,16,55,16],[54,17,55,24],[54,25,55,26],[54,27,55,27],[54,28,55,35],[46,16,47,16],[46,17,47,24],[46,25,47,26],[46,27,47,27],[46,28,47,35],[47,38,53,71],[48,2,49,13],[48,14,49,15],[48,16,49,16],[48,17,49,24],[48,25,49,26],[48,27,49,27],[48,28,49,35],[50,2,51,13],[50,14,51,15],[50,16,51,16],[50,17,51,24],[50,25,51,26],[50,27,51,27],[50,28,51,35],[52,2,53,13],[52,14,53,15],[52,16,53,16],[52,17,53,24],[39,54,39,57],[39,58,39,68],[40,39,42,53],[42,2,45,13],[42,14,42,24],[42,25,42,35],[43,14,44,24],[43,25,44,35],[43,53,43,57],[43,58,43,68],[45,14,45,15],[45,17,45,24],[45,25,45,26],[45,28,45,35],[32,5,32,26],[32,39,32,48],[32,51,33,54],[32,55,32,69],[35,5,35,29],[35,30,35,35],[35,41,35,46],[35,51,35,54],[35,58,35,68],[24,4,24,5],[26,23,27,35],[26,41,26,46],[26,51,26,54],[26,58,26,68],[28,58,28,68],[29,3,31,35],[30,39,30,56],[30,58,30,68],[24,39,24,48],[25,2,25,3],[25,4,25,5],[25,11,25,12],[25,13,25,14],[25,17,25,18],[25,23,25,26],[25,27,25,35],[25,48,25,49],[9,45,9,69],[0,1,0,52],[2,1,3,36],[2,39,3,71],[5,45,5,50],[7,6,7,16],[7,22,7,35],[7,45,7,69],[0,59,0,68],[0,69,0,71],[5,22,5,35],[5,6,5,10],[5,13,5,16],[9,6,9,10],[9,15,9,16],[62,27,63,27],[62,28,63,35],[18,89,18,107],[11,45,11,69],[15,6,16,16],[15,22,15,35],[15,39,18,69],[25,41,25,46],[25,51,25,54],[25,58,25,68],[46,14,47,15],[24,13,24,14],[24,51,24,54],[34,41,34,46],[34,51,34,54],[34,58,34,68],[34,5,34,26],[34,48,34,49],[46,2,47,13],[22,23,22,29],[22,30,22,31],[22,32,22,35],[22,39,22,43],[24,23,24,35],[13,22,13,35],[80,17,80,24],[81,2,82,35],[81,39,83,71],[84,3,85,23],[84,25,84,35],[85,25,87,35],[85,46,88,71],[87,2,87,4],[87,5,87,11],[87,13,87,15],[87,20,87,22],[60,2,61,13],[60,14,61,15],[60,16,61,16],[60,17,61,24],[60,25,61,26],[60,27,61,27],[60,28,61,35],[62,2,63,13],[62,14,63,15],[62,16,63,16],[62,17,63,24],[62,25,63,26]]}
[null,"BULLETIN INDIVIDUEL DE VERSEMENTS SUR VOTRE PLAN D’ÉPARGNE SALARIALE",null,null,null,null,null,null,null,null,null,null,null,null,null,null,null,null,null,null,null,null,null,null,null,null,null,null,null,null,null,null,null,null,null,null,null,null,null,null,null,null,null,null,null,null,null,null,null,null,null,null,null,null,null,null,null,null,null," Version PERCOL",null,null,null,null,null,null,null,null,null,{"$f":"'Saisie des données + guide'!BF2","v":2024}]
[]
[null,"VERSEMENT DE L'ÉPARGNANT",null,null,null,null,null,null,null,null,null,null,null,null,null,null,null,null,null,null,null,null,null,null,null,null,null,null,null,null,null,null,null,null,null,null,null,null,null,"VERSEMENT COMPLÉMENTAIRE (ABONDEMENT) DE L'ENTREPRISE"]
[]
[]
[null,null,"Civilité ",null,null,null,null,null,null,null,null,null,"Nom",null,null,null,null,null,"Prénom",null,null,null,null,null,null,null,null,null,null,null,null,null,null,null,null,null,null,null,null,"Code entreprise",null,null,null,null,null,{"$f":"'Saisie des données + guide'!K12","v":0},null,null,null,null,null,null,null,null,null,null,null,null,null,null,null,null,null,null,null,null,null,null,"Exercice fiscal de référence :",{"$f":"'Saisie des données + guide'!V$48","v":0}]
[]
[null,null,"N° Sécurité sociale",null,null,null,null,null,null,null,null,null,null,null,null,null,null,null,"Nom de naissance",null,null,null,null,null,null,null,null,null,null,null,null,null,null,null,null,null,null,null,null,"Raison sociale",null,null,null,null,null,{"$f":"'Saisie des données + guide'!K14","v":0}]
[]
[null,null,"Date de naissance",null,null,null,null,null,null,null,null,"Département de naissance",null,null,null,null,null,null,"Ville de naissance",null,null,null,null,null,null,null,null,null,null,null,null,null,null,null,null,null,null,null,null,"Contact",null,null,null,null,null,{"$f":"'Saisie des données + guide'!K16","v":0}]
[]
[null,null,"Adresse ",null,null,null,null,null,null,null,null,null,null,null,null,null,null,null,"Pays de naissance",null,null,null,null,null,null,null,null,null,null,null,null,null,null,null,null,null,null,null,null,"Email",null,null,null,null,null,{"$f":"'Saisie des données + guide'!K18","v":0}]
[]
[null,null,"Code postal",null,null,null,null,null,null,null,null,"Ville",null,null,null,null,null,null,"E-mail",null,null,null,null,null,null,null,null,null,null,null,null,null,null,null,null,null,null,null,null,"Si CSG-CRDS non précomptées pour le salarié",null,null,null,null,null,null,null,null,null,null,null,null,null,null,null,null,{"$f":"+'Saisie des données + guide'!AG36","v":0},null,null,null,null,null,null,null,null,null,null,null,"Le PASS* pour l'année 2024 est de :",{"$f":"PASS","v":46368}]
[]
[null,null,"Statut",null,null,null,null,null,null,null,null,null,null,null,null,null,null,null,"Téléphone",null,null,null,null,null,null,null,null,null,null,null,null,null,null,null,null,null,null,null,null,{"$f":"+'Saisie des données + guide'!E38","v":"Le montant que Groupama Épargne Salariale doit investir est le montant net de CSG-CRDS (les prélèvements sociaux étant payés directement par vos soins).  Si vous cochez la case, cela signifie que vous souhaitez par dérogation nous adresser un montant brut de CSG-CRDS et que vous aurez prélevé sur la fiche de paie de chacun des salariés concernés la CSG-CRDS relative à l'opération réalisée. Cette dérogation n'est pas possible si l'abondement est à calculer par Groupama Épargne Salariale."}]
[]
[]
[]
[null,null,null,null,null,null,null,null,null,null,null,null,null,null,null,null,null,null,null,null,null,null,null,null,null,null,null,null,null,null,null,null,null,null,null,null,null,null,null,null,null,null,null,null,null,null,null,null,null,null,null,null,null,null,null,null,null,null,null,"* PASS : Plafond Annuel de la Sécurité Sociale"]
[]
[]
[null,null,"MONTANTS À INVESTIR",null,null,null,null,null,null,null,null,null,null,null,null,null,null,null,"Origine des versements ",null,null,null,null,{"$f":"'Saisie des données + guide'!U21","v":"Versements volontaires"},null,null,null,null,null,null,{"$f":"IF(X23=\"Abondement unilatéral\", \" C =\", \"\")","v":""},null,null,null,null,null,null,null,null,"PEE"]
[null,null,null,null,null,null,null,null,null,null,null,null,null,null,null,null,null,null,{"$f":"+IF($X$23=\"Abondement unilatéral\",\"Le versement de l'abondement unilatéral est limité à 2% du PASS 2024 (soit 927,36€)\",\"\")","v":""}]
[null,null,null,null,"PEE",null,null,null,null,null,null,null,null,"PERCOL",null,null,null,null,null,null,null,null,null,"MONTANT TOTAL",null,null,null,null,null,null,null,null,null,null,null,null,null,null,null,{"$f":"X23","v":"Versements volontaires"},null,null,null,null,null,null,null,null,null,null,null,"Taux",null,null,null,null,null,null,{"$f":"\"Abondement sur \"&X23&\"\"","v":"Abondement sur Versements volontaires"}]
[null,null,"A =",null,null,null,null,null,null,"+",null,"B =",null,null,null,null,null,null,null,"=",null,null,null,"A + B =",null,null,null,{"$f":"$E$26+$N$26","v":0},null,null,null,null,null,null,null,null,null,null,null,null,null,{"$f":"E$26","v":0},null,null,null,null,null,null,"x",null,null,{"$f":"+'Saisie des données + guide'!S$29","v":0},null,null,null,null,null,"A' =",{"$f":"IF(ISBLANK(E26),\"\",IF(AND(G16=J105,ISBLANK('Saisie des données + guide'!AG36)),MIN(Plafond_PEE_net,E26*AZ26*(1-CSG_CRDS)),IF(AND(G16=J106,ISBLANK('Saisie des données + guide'!AG36)),MIN(Plafond_PEE,E26*AZ26),IF(AND(G16=J105,'Saisie des données + guide'!AG36=\"X\"),MIN(Plafond_PEE,E26*AZ26),IF(AND(G16=J106,'Saisie des données + guide'!AG36=\"X\"),MIN(Plafond_PEE,E26*AZ26))))))","v":""}]
[null,null,null,null,null,null,null,null,null,null,null,null,null,null,null,null,null,null,null,null,null,null,null,null,null,null,null,null,null,null,null,null,null,null,null,null,null,null,null,null,null,"A",null,null,null,null,null,null,null,null,null,"T",null,null,null,null,null,null,{"$f":"IF(AND(G16=J105,ISBLANK('Saisie des données + guide'!AG$36)),\"plafonné à \" &Plafond_PEE_net&\" € pour \"&J$105,IF(AND(G16=J105,'Saisie des données + guide'!AG$36=\"X\"),\"plafonné à \" &Plafond_PEE&\" € pour \"&J$105,\"plafonné à \" &Plafond_PEE&\" € pour \"&J$106))","v":"plafonné à 3709,44 € pour Non salarié"}]
[]
[]
[null,null,null,"UNIQUEMENT PERCOL : Vous pouvez déduire de vos revenus imposables les versements volontaires effectués dans le PERCOL.  \nLes sommes seront alors fiscalisées au moment du retrait selon la réglementation en vigueur."]
[null,null,null,null,null,null,null,null,null,null,null,null,null,null,null,null,null,null,null,null,null,null,null,null,null,null,null,null,null,null,null,null,null,null,null,null,null,null,null,"PERCOL"]
[]
[null,null,null,null,null,"Je choisis de bénéficier des versements déductibles dans le PERCOL      ",null,null,null,null,null,null,null,null,null,null,null,null,null,null,null,null,null,null,null,null,null,null,null,null,null,null,null,null,null,null,null,null,null,{"$f":"X23","v":"Versements volontaires"},null,null,null,null,null,null,null,null,null,null,null,"Taux",null,null,null,{"$f":" IF($X$23=\"Versements volontaires\",\"Abondement sur Versements volontaires\",IF($X$23=\"Intéressement\",\"Abondement sur Intéressement\",IF($X$23=\"Participation\",\"Abondement sur Participation\",IF($X$23=\"Jours de repos non pris / CET\",\"Abondement sur Jours de repos non pris / CET\",IF($X$23=\"Prime de partage de la valeur\",\"Abondement sur Prime de partage de la valeur\",IF($X$23=\"Abondement unilatéral\",\" Montant total investi pour l'abondement unilatéral\"))))))","v":"Abondement sur Versements volontaires"}]
[]
[null,null,null,null,null,"Je renonce aux versements déductibles",null,null,null,null,null,null,null,null,null,null,null,null,null,null,null,null,null,null,null,null,null,null,null,null,null,null,null,null,null,null,null,null,null,null,null,{"$f":"$N$26","v":0},null,null,null,null,null,null,"x",null,null,{"$f":"+'Saisie des données + guide'!AK29","v":0},null,null,null,null,null,{"$f":"IF(X23=\"abondement unilatéral\",\"C'=\", \"B' =\")","v":"B' ="},{"$f":"IF(AND(ISBLANK(N26),ISBLANK(AG23)),\"\",IF(AND(X23=\"Abondement unilatéral\",G16=J105,ISBLANK('Saisie des données + guide'!AG36)),MIN(Plafond_uni_TS,AG23*0.903),IF(AND(X23=\"Abondement unilatéral\",G16=J106),MIN(Plafond_uni_TNS,AG23),IF(AND(X23<>\"Abondement unilatéral\",G16=J105,ISBLANK('Saisie des données + guide'!AG36)),MIN(Plafond_PERCO_net,(1-CSG_CRDS)*AZ35*N26),IF(AND(X23<>\"Abondement unilatéral\",G16=J106,ISBLANK('Saisie des données + guide'!AG36)),MIN(Plafond_PERCO,AZ35*N26),IF(AND(X23<>\"Abondement unilatéral\",G16=J105,'Saisie des données + guide'!AG36=\"X\"),MIN(Plafond_PERCO,AZ35*N26),IF(AND(X23<>\"Abondement unilatéral\",G16=J106,'Saisie des données + guide'!AG36=\"X\"),MIN(Plafond_PERCO,AZ35*N26),IF(AND(X23=\"Abondement unilatéral\",G16=J106,'Saisie des données + guide'!AG36=\"X\"),MIN(Plafond_uni_TNS,AG23),IF(AND(X23=\"Abondement unilatéral\",G16=J105,'Saisie des données + guide'!AG36=\"X\"),MIN(Plafond_uni_TNS,AG23))))))))))","v":""}]
[null,null,null,null,null,"Attention : Votre choix est irrévocable. En l'absence de choix, les versements volontaires dans le PERCOL seront déductibles.",null,null,null,null,null,null,null,null,null,null,null,null,null,null,null,null,null,null,null,null,null,null,null,null,"> Plus de détails",null,null,null,null,null,null,null,null,null,null,"B",null,null,null,null,null,null,null,null,null,"T",null,null,null,null,null,null,{"$f":"IF(AND(ISBLANK(N26),ISBLANK(AG23)),\"\",IF(AND(X23=\"Abondement unilatéral\",G16=J105,ISBLANK('Saisie des données + guide'!AG36)),\"plafonné à \"&Plafond_uni_TS&\" € pour \"&J105,IF(AND(X23=\"Abondement unilatéral\",G16=J106),\"plafonné à \"&Plafond_uni_TNS&\" € pour \"&J106,IF(AND(X23<>\"Abondement unilatéral\",G16=J105,ISBLANK('Saisie des données + guide'!AG36)),\"plafonné à \"&Plafond_PERCO_net&\" € pour \"&J105,IF(AND(X23<>\"Abondement unilatéral\",G16=J106,ISBLANK('Saisie des données + guide'!AG36)),\"plafonné à \"&Plafond_PERCO&\" € pour \"&J106,IF(AND(X23<>\"Abondement unilatéral\",G16=J105,'Saisie des données + guide'!AG36=\"X\"),\"plafonné à \"&Plafond_PERCO&\" € pour \"&J105,IF(AND(X23<>\"Abondement unilatéral\",G16=J106,'Saisie des données + guide'!AG36=\"X\"),\"plafonné à \"&Plafond_PERCO&\" € pour \"&J106,IF(AND(X23=\"Abondement unilatéral\",G16=J106,'Saisie des données + guide'!AG36=\"X\"),\"plafonné à \"&Plafond_uni_TNS&\" € pour \"&J106,IF(AND(X23=\"Abondement unilatéral\",G16=J105,'Saisie des données + guide'!AG36=\"X\"),\"plafonné à \"&Plafond_uni_TNS&\" € pour \"&J105)))))))))","v":""}]
[]
[]
[]
[null,null,"RÉPARTITION DE L'ÉPARGNE",null,null,null,null,null,null,null,null,null,null,null,null,"N'hésitez pas à consulter l'onglet \"Autres fonds\" pour ajouter d'autres supports de placement.",null,null,null,null,null,null,null,null,null,null,null,null,null,null,null,null,null,null,null,null,null,null,null,"VERSEMENT TOTAL DE L'ENTREPRISE",null,null,null,null,null,null,null,null,null,null,null,null,null,null,"(A' + B')",null,null,null,{"$f":"MAX($BG$26,0)+MAX($BG$35,0)","v":0}]
[null,null,null,"A. Gestion Libre",null,null,null,null,null,null,null,null,null,null,null,null,null,null,null,null,null,null,null,null,null,null,null,null,null,null,null,null,null,null,null,null,null,null,null,"Le versement de l'abondement s'effectue sur les mêmes fonds que le versement personnel."]
[]
[null,null,"CODE ET NOM DES FONDS",null,null,null,null,null,null,null,null,null,null,null,"PEE",null,null,null,null,null,null,null,null,null,null,"PERCOL"]
[null,null,null,null,null,null,null,null,null,null,null,null,null,null,{"$f":"+IF(SUM(R47:Y76)>E26,\"ERREUR SAISIE\",IF(R46=0,\"\",\"Reste à répartir sur les fonds suivants\"))","v":""},null,null,null,null,null,null,null,null,null,null,{"$f":"+IF(SUM(AC47:AJ79)>(N26+AG23),\"ERREUR SAISIE\",IF(AC46=0,\"\",\"Reste à répartir sur les fonds suivants\"))","v":""},null,null,null,null,null,null,null,null,null,null,null,null,null,"VERSEMENT TOTAL INVESTI",null,null,null,null,null,null,null,null,null,null,null,null,null,"(A + B) + (A' + B')",null,null,null,null,{"$f":"+$AB$26+$BG$40","v":0}]
[]
[null,null,null,null,null,null,null,null,null,null,null,null,null,null,{"$f":"IF(E26>0,100-(SUM(O47:P76)),\"\")","v":""},null,{"$f":"IF(O46<>0, \"%\", \"\")","v":"%"},{"$f":"E26-SUM(R47:Y76)","v":0},null,null,null,null,null,null,null,{"$f":"IF((N26+AG23)>0,100-(SUM(Z47:AA79)),\"\")","v":""},null,{"$f":"IF(Z46<>0, \"%\", \"\")","v":"%"},{"$f":"(N26+AG23)-SUM(AC47:AJ79)","v":0}]
[null,null,{"$f":"+IF('Saisie des données + guide'!U25=\"Gamme GER\",\"84289 - GER Monétaire\",IF('Saisie des données + guide'!U25=\"Gamme TESORUS\",\"82659 - TESORUS Monétaire\",IF('Saisie des données + guide'!U25=\"Gamme Fonds Directs\",\"15719 - Oblifonds\",IF('Saisie des données + guide'!U25=\"Gamme Finama\",\"\",\"\"))))","v":"84289 - GER Monétaire"},null,null,null,null,null,null,null,null,null,null,null,null,null,"%",{"$f":"IF(O47=\"\",\"--------------\",+E$26*O47/100)","v":"--------------"},null,null,null,null,null,null,null,null,null,"%",{"$f":"IF(Z47=\"\",\"--------------\",+(N$26+$AG$23)*Z47/100)","v":"--------------"}]
[null,null,null,null,null,null,null,null,null,null,null,null,null,null,null,null,null,null,null,null,null,null,null,null,null,null,null,null,null,null,null,null,null,null,null,null,null,null,"ATTENTION : Si plusieurs épargnants effectuent des versements au même moment, vous devrez de regrouper l’ensemble des abondements en un seul chèque. Pour cela, reportez vous à la fiche récapitulative jointe sur ce fichier.\n\nLes chèques sont à libeller à l’ordre de GROUPAMA ÉPARGNE SALARIALE et à envoyer à l'adresse suivante : \nGroupama Épargne Salariale - Service Clients\n46 rue Jules Méline - 53098 Laval Cedex 9"]
[null,null,{"$f":"+IF('Saisie des données + guide'!U25=\"Gamme GER\",\"84309 - GER Prudence\",IF('Saisie des données + guide'!U25=\"Gamme TESORUS\",\"82719 - TESORUS Prudence\",IF('Saisie des données + guide'!U25=\"Gamme Fonds Directs\",\"4939 - Diversifonds\",\"\")))","v":"84309 - GER Prudence"},null,null,null,null,null,null,null,null,null,null,null,null,null,"%",{"$f":"IF(O49=\"\",\"--------------\",+E$26*O49/100)","v":"--------------"},null,null,null,null,null,null,null,null,null,"%",{"$f":"IF(Z49=\"\",\"--------------\",+(N$26+$AG$23)*Z49/100)","v":"--------------"}]
[]
[null,null,{"$f":"+IF('Saisie des données + guide'!U25=\"Gamme GER\",\"84329 - GER Equilibre\",IF('Saisie des données + guide'!U25=\"Gamme TESORUS\",\"82669 - TESORUS Equilibre\",IF('Saisie des données + guide'!U25=\"Gamme Fonds Directs\",\"2459 - Foncival\",\"\")))","v":"84329 - GER Equilibre"},null,null,null,null,null,null,null,null,null,null,null,null,null,"%",{"$f":"IF(O51=\"\",\"--------------\",+E$26*O51/100)","v":"--------------"},null,null,null,null,null,null,null,null,null,"%",{"$f":"IF(Z51=\"\",\"--------------\",+(N$26+$AG$23)*Z51/100)","v":"--------------"}]
[]
[null,null,{"$f":"+IF('Saisie des données + guide'!U25=\"Gamme GER\",\"84349 - GER Dynamique\",IF('Saisie des données + guide'!U25=\"Gamme TESORUS\",\"82689 - TESORUS Dynamique\",\"\"))","v":"84349 - GER Dynamique"},null,null,null,null,null,null,null,null,null,null,null,null,null,"%",{"$f":"IF(O53=\"\",\"--------------\",+E$26*O53/100)","v":"--------------"},null,null,null,null,null,null,null,null,null,"%",{"$f":"IF(Z53=\"\",\"--------------\",+(N$26+$AG$23)*Z53/100)","v":"--------------"}]
[]
[null,null,{"$f":"+IF('Saisie des données + guide'!U25=\"Gamme GER\",\"84369 - GER Solidaire\",IF('Saisie des données + guide'!U25=\"Gamme TESORUS\",\"87649 - TESORUS Solidaire\",\"\"))","v":"84369 - GER Solidaire"},null,null,null,null,null,null,null,null,null,null,null,null,null,"%",{"$f":"IF(O55=\"\",\"--------------\",+E$26*O55/100)","v":"--------------"},null,null,null,null,null,null,null,null,null,"%",{"$f":"IF(Z55=\"\",\"--------------\",+(N$26+$AG$23)*Z55/100)","v":"--------------"}]
[]
[null,null,"110429 - Finama Épargne Court Terme",null,null,null,null,null,null,null,null,null,null,null,null,null,"%",{"$f":"IF(O57=\"\",\"--------------\",+E$26*O57/100)","v":"--------------"},null,null,null,null,null,null,null,null,null,"%",{"$f":"IF(Z57=\"\",\"--------------\",+(N$26+$AG$23)*Z57/100)","v":"--------------"}]
[]
[null,null,"79139 - Finama Actions Internationales",null,null,null,null,null,null,null,null,null,null,null,null,null,"%",{"$f":"IF(O59=\"\",\"--------------\",+E$26*O59/100)","v":"--------------"},null,null,null,null,null,null,null,null,null,"%",{"$f":"IF(Z59=\"\",\"--------------\",+(N$26+$AG$23)*Z59/100)","v":"--------------"}]
[]
[null,null,"116119 - Groupama Sélection PME-ETI",null,null,null,null,null,null,null,null,null,null,null,null,null,"%",{"$f":"IF(O61=\"\",\"--------------\",+E$26*O61/100)","v":"--------------"},null,null,null,null,null,null,null,null,null,"%",{"$f":"IF(Z61=\"\",\"--------------\",+(N$26+$AG$23)*Z61/100)","v":"--------------"}]
[]
[null,null,null,null,null,null,null,null,null,null,null,null,null,null,null,null,"%",{"$f":"IF(O63=\"\",\"--------------\",+E$26*O63/100)","v":"--------------"},null,null,null,null,null,null,null,null,null,"%",{"$f":"IF(Z63=\"\",\"--------------\",+(N$26+$AG$23)*Z63/100)","v":"--------------"}]
[]
[null,null,null,null,null,null,null,null,null,null,null,null,null,null,null,null,"%",{"$f":"IF(O65=\"\",\"--------------\",+E$26*O65/100)","v":"--------------"},null,null,null,null,null,null,null,null,null,"%",{"$f":"IF(Z65=\"\",\"--------------\",+(N$26+$AG$23)*Z65/100)","v":"--------------"}]
[]
[null,null,null,null,null,null,null,null,null,null,null,null,null,null,null,null,"%",{"$f":"IF(O67=\"\",\"--------------\",+E$26*O67/100)","v":"--------------"},null,null,null,null,null,null,null,null,null,"%",{"$f":"IF(Z67=\"\",\"--------------\",+(N$26+$AG$23)*Z67/100)","v":"--------------"}]
[]
[null,null,null,null,null,null,null,null,null,null,null,null,null,null,null,null,"%",{"$f":"IF(O69=\"\",\"--------------\",+E$26*O69/100)","v":"--------------"},null,null,null,null,null,null,null,null,null,"%",{"$f":"IF(Z69=\"\",\"--------------\",+(N$26+$AG$23)*Z69/100)","v":"--------------"}]
[]
[null,null,null,null,null,null,null,null,null,null,null,null,null,null,null,null,"%",{"$f":"IF(O71=\"\",\"--------------\",+E$26*O71/100)","v":"--------------"},null,null,null,null,null,null,null,null,null,"%",{"$f":"IF(Z71=\"\",\"--------------\",+(N$26+$AG$23)*Z71/100)","v":"--------------"}]
[]
[null,null,null,null,null,null,null,null,null,null,null,null,null,null,null,null,"%",{"$f":"IF(O73=\"\",\"--------------\",+E$26*O73/100)","v":"--------------"},null,null,null,null,null,null,null,null,null,"%",{"$f":"IF(Z73=\"\",\"--------------\",+(N$26+$AG$23)*Z73/100)","v":"--------------"}]
[]
[null,null,null,null,null,null,null,null,null,null,null,null,null,null,null,null,"%",{"$f":"IF(O75=\"\",\"--------------\",+E$26*O75/100)","v":"--------------"},null,null,null,null,null,null,null,null,null,"%",{"$f":"IF(Z75=\"\",\"--------------\",+(N$26+$AG$23)*Z75/100)","v":"--------------"}]
[]
[]
[null,null,null,"B. Gestion Pilotée",null,null,null,null,null,null,null,null,null,null,null,null,null,"Choisissez votre profil",null,null,null,null,null,null,null,null,null,"%",{"$f":"IF(Z78=\"\",\"--------------\",+(N26+AG23)*Z78/100)","v":"--------------"}]
[null,null,null,"valable uniquement sur le PERCOL",null,null,null,null,null,null,null,{"$f":"IF(L78=\"Oui\",\"Préciser la grille d'allocation\",\"\")","v":""}]
[]
[]
[null,null,"Je déclare avoir pris connaissance du règlement du plan, des documents d'information clés (DIC/KID) des fonds remis par mon entreprise et téléchargeables sur www.groupama-es.fr, ainsi que des modalités de fonctionnement des versements individuels jointes au présent bulletin. \nConformément au contrat d’épargne salariale mis en place par votre entreprise, des frais de versements d’un maximum de 4 % peuvent s’appliquer. Nous vous invitons à contacter votre employeur pour obtenir le montant de ces frais.\nEn l'absence de choix de fonds, les sommes seront investies sur le fonds par défaut dans le PEE ou selon le mode de gestion pilotée dans le PERCOL : soit le profil Équilibre Horizon Retraite s'il s'agit de votre premier versement ou si vous aviez opté pour la gestion libre lors de précédent versement, soit avec le même profil de gestion pilotée précédemment choisi.\nPour tout versement volontaire à partir de 8 000 €, une copie de votre pièce d'identité devra être fournie, accompagnée du dernier avis d'imposition pour un versement d’un montant de 15 000 € et plus. ",null,null,null,null,null,null,null,null,null,null,null,null,null,null,null,null,null,null,null,null,null,null,null,null,null,null,null,null,null,null,null,null,null,null,null,null,"Conformément au règlement général sur la protection des données n°2016/679 du 27 avril 2016, vos données personnelles sont traitées par Groupama Épargne Salariale à des fins de tenue des comptes d'épargne salariale. Elles sont destinées aux membres du personnel dûment habilités de Groupama Épargne Salariale ainsi qu’à ses sous-traitants. Elles sont conservées par Groupama Épargne Salariale pendant une durée maximale de trente ans à compter de la disponibilité des avoirs.Vous pouvez demander l’accès, la rectification, l'effacement et la portabilité de vos données personnelles ainsi que limiter ou vous opposer, pour motif légitime, au traitement en écrivant au Délégué Relais à la Protection des Données de Groupama Épargne Salariale – Service du Contrôle interne – 2 boulevard de Pesaro – 92000 Nanterre ou par email : controleinterne@groupama-es.fr. Réf. : BIV 01-01-2024"]
[]
[]
[null,null,null,"J’atteste sur l’honneur que mon versement est conforme à la réglementation, notamment qu'il provient bien de mon épargne personnelle et que l’ensemble de mes versements de l’année au PEE ne dépasse pas 25 % de ma rémunération annuelle brute.",null,null,null,null,null,null,null,null,null,null,null,null,null,null,null,null,null,null,null,null,null,"SIGNATURE DE L'ÉPARGNANT"]
[null,null,null,null,null,null,null,null,null,null,null,null,null,null,null,null,null,null,null,null,null,null,null,null,null,null,null,null,null,null,null,null,null,null,null,null,null,null,null,null,null,null,null,null,null,null,"Groupama Épargne Salariale - Entreprise d'investissement agréée par l'ACPR - Teneur de comptes - Conservateur de parts \nSA au capital de 8.709.015 € - Siège social : 2 boulevard de Pesaro 92000 Nanterre - 428 768 352 RCS Nanterre"]
[]
[null,null,"Fait à :",null,null,null,null,null,null,null,null,null,null,"Le :",null,null,null,null,null,null,{"$f":"'Saisie des données + guide'!BF2","v":2024}]
[]
[]
[]
[]
[]
[]
[]
[]
[]
[]
[null,null,null,null,"3 options dans ce BIV :"]
[]
[null,null,null,null,null,null,"Ouverture compte :"]
[null,null,null,null,null,null,null,null,null,null,null,null,"X"]
[]
[null,null,null,null,null,null,"Statut :"]
[null,null,null,null,null,null,null,null,null,"Salarié"]
[null,null,null,null,null,null,null,null,null,"Non salarié"]
[]
[null,null,null,null,null,null,"Gestion pilotée :"]
[null,null,null,null,null,null,null,null,null,null,"Choisissez votre profil"]
[null,null,null,null,null,null,null,null,null,null,"Profil Prudent Horizon Retraite"]
[null,null,null,null,null,null,null,null,null,null,"Profil Équilibre Horizon Retraite"]
[null,null,null,null,null,null,null,null,null,null,"Profil Dynamique Horizon Retraite"]
[]
[null,null,null,null,null,null,null,null,null,null,null,"Oui"]
[null,null,null,null,null,null,null,null,null,null,null,"Non"]

{"sheet":"Bulletin n°9","index":9,"n_rows":115,"n_cols":70,"rows_kept":115,"cut":false,"hidden":false,"merged":[[93,10,93,15],[93,16,93,22],[93,23,93,28],[9,22,9,35],[11,6,11,16],[11,22,11,35],[13,6,13,10],[13,11,13,12],[13,13,13,16],[74,2,75,13],[74,14,75,15],[74,16,75,16],[74,17,75,24],[74,25,75,26],[74,27,75,27],[74,28,75,35],[77,11,77,12],[77,17,78,23],[77,25,78,26],[77,27,78,27],[77,28,78,35],[78,3,79,10],[78,11,78,16],[68,2,69,13],[68,25,69,26],[68,27,69,27],[68,28,69,35],[70,2,71,13],[70,14,71,15],[70,16,71,16],[70,17,71,24],[70,25,71,26],[70,27,71,27],[70,28,71,35],[72,2,73,13],[72,14,73,15],[72,16,73,16],[72,17,73,24],[72,25,73,26],[72,27,73,27],[72,28,73,35],[64,2,65,13],[64,14,65,15],[64,16,65,16],[64,17,65,24],[64,25,65,26],[64,27,65,27],[64,28,65,35],[66,2,67,13],[66,14,67,15],[66,16,67,16],[66,17,67,24],[66,25,67,26],[66,27,67,27],[66,28,67,35],[68,14,69,15],[68,16,69,16],[68,17,69,24],[56,14,57,15],[56,16,57,16],[56,17,57,24],[56,25,57,26],[56,27,57,27],[56,28,57,35],[58,2,59,13],[58,14,59,15],[58,16,59,16],[58,17,59,24],[58,25,59,26],[58,27,59,27],[58,28,59,35],[56,2,57,13],[52,25,53,26],[52,27,53,27],[52,28,53,35],[54,2,55,13],[54,14,55,15],[54,16,55,16],[54,17,55,24],[54,25,55,26],[54,27,55,27],[54,28,55,35],[46,16,47,16],[46,17,47,24],[46,25,47,26],[46,27,47,27],[46,28,47,35],[47,38,53,71],[48,2,49,13],[48,14,49,15],[48,16,49,16],[48,17,49,24],[48,25,49,26],[48,27,49,27],[48,28,49,35],[50,2,51,13],[50,14,51,15],[50,16,51,16],[50,17,51,24],[50,25,51,26],[50,27,51,27],[50,28,51,35],[52,2,53,13],[52,14,53,15],[52,16,53,16],[52,17,53,24],[39,54,39,57],[39,58,39,68],[40,39,42,53],[42,2,45,13],[42,14,42,24],[42,25,42,35],[43,14,44,24],[43,25,44,35],[43,53,43,57],[43,58,43,68],[45,14,45,15],[45,17,45,24],[45,25,45,26],[45,28,45,35],[32,5,32,26],[32,39,32,48],[32,51,33,54],[32,55,32,69],[35,5,35,29],[35,30,35,35],[35,41,35,46],[35,51,35,54],[35,58,35,68],[24,4,24,5],[26,23,27,35],[26,41,26,46],[26,51,26,54],[26,58,26,68],[28,58,28,68],[29,3,31,35],[30,39,30,56],[30,58,30,68],[24,39,24,48],[25,2,25,3],[25,4,25,5],[25,11,25,12],[25,13,25,14],[25,17,25,18],[25,23,25,26],[25,27,25,35],[25,48,25,49],[9,45,9,69],[0,1,0,52],[2,1,3,36],[2,39,3,71],[5,45,5,50],[7,6,7,16],[7,22,7,35],[7,45,7,69],[0,59,0,68],[0,69,0,71],[5,22,5,35],[5,6,5,10],[5,13,5,16],[9,6,9,10],[9,15,9,16],[62,27,63,27],[62,28,63,35],[18,89,18,107],[11,45,11,69],[15,6,16,16],[15,22,15,35],[15,39,18,69],[25,41,25,46],[25,51,25,54],[25,58,25,68],[46,14,47,15],[24,13,24,14],[24,51,24,54],[34,41,34,46],[34,51,34,54],[34,58,34,68],[34,5,34,26],[34,48,34,49],[46,2,47,13],[22,23,22,29],[22,30,22,31],[22,32,22,35],[22,39,22,43],[24,23,24,35],[13,22,13,35],[80,17,80,24],[81,2,82,35],[81,39,83,71],[84,3,85,23],[84,25,84,35],[85,25,87,35],[85,46,88,71],[87,2,87,4],[87,5,87,11],[87,13,87,15],[87,20,87,22],[60,2,61,13],[60,14,61,15],[60,16,61,16],[60,17,61,24],[60,25,61,26],[60,27,61,27],[60,28,61,35],[62,2,63,13],[62,14,63,15],[62,16,63,16],[62,17,63,24],[62,25,63,26]]}
[null,"BULLETIN INDIVIDUEL DE VERSEMENTS SUR VOTRE PLAN D’ÉPARGNE SALARIALE",null,null,null,null,null,null,null,null,null,null,null,null,null,null,null,null,null,null,null,null,null,null,null,null,null,null,null,null,null,null,null,null,null,null,null,null,null,null,null,null,null,null,null,null,null,null,null,null,null,null,null,null,null,null,null,null,null," Version PERCOL",null,null,null,null,null,null,null,null,null,{"$f":"'Saisie des données + guide'!BF2","v":2024}]
[]
[null,"VERSEMENT DE L'ÉPARGNANT",null,null,null,null,null,null,null,null,null,null,null,null,null,null,null,null,null,null,null,null,null,null,null,null,null,null,null,null,null,null,null,null,null,null,null,null,null,"VERSEMENT COMPLÉMENTAIRE (ABONDEMENT) DE L'ENTREPRISE"]
[]
[]
[null,null,"Civilité ",null,null,null,null,null,null,null,null,null,"Nom",null,null,null,null,null,"Prénom",null,null,null,null,null,null,null,null,null,null,null,null,null,null,null,null,null,null,null,null,"Code entreprise",null,null,null,null,null,{"$f":"'Saisie des données + guide'!K12","v":0},null,null,null,null,null,null,null,null,null,null,null,null,null,null,null,null,null,null,null,null,null,null,"Exercice fiscal de référence :",{"$f":"'Saisie des données + guide'!V$48","v":0}]
[]
[null,null,"N° Sécurité sociale",null,null,null,null,null,null,null,null,null,null,null,null,null,null,null,"Nom de naissance",null,null,null,null,null,null,null,null,null,null,null,null,null,null,null,null,null,null,null,null,"Raison sociale",null,null,null,null,null,{"$f":"'Saisie des données + guide'!K14","v":0}]
[]
[null,null,"Date de naissance",null,null,null,null,null,null,null,null,"Département de naissance",null,null,null,null,null,null,"Ville de naissance",null,null,null,null,null,null,null,null,null,null,null,null,null,null,null,null,null,null,null,null,"Contact",null,null,null,null,null,{"$f":"'Saisie des données + guide'!K16","v":0}]
[]
[null,null,"Adresse ",null,null,null,null,null,null,null,null,null,null,null,null,null,null,null,"Pays de naissance",null,null,null,null,null,null,null,null,null,null,null,null,null,null,null,null,null,null,null,null,"Email",null,null,null,null,null,{"$f":"'Saisie des données + guide'!K18","v":0}]
[]
[null,null,"Code postal",null,null,null,null,null,null,null,null,"Ville",null,null,null,null,null,null,"E-mail",null,null,null,null,null,null,null,null,null,null,null,null,null,null,null,null,null,null,null,null,"Si CSG-CRDS non précomptées pour le salarié",null,null,null,null,null,null,null,null,null,null,null,null,null,null,null,null,{"$f":"+'Saisie des données + guide'!AG36","v":0},null,null,null,null,null,null,null,null,null,null,null,"Le PASS* pour l'année 2024 est de :",{"$f":"PASS","v":46368}]
[]
[null,null,"Statut",null,null,null,null,null,null,null,null,null,null,null,null,null,null,null,"Téléphone",null,null,null,null,null,null,null,null,null,null,null,null,null,null,null,null,null,null,null,null,{"$f":"+'Saisie des données + guide'!E38","v":"Le montant que Groupama Épargne Salariale doit investir est le montant net de CSG-CRDS (les prélèvements sociaux étant payés directement par vos soins).  Si vous cochez la case, cela signifie que vous souhaitez par dérogation nous adresser un montant brut de CSG-CRDS et que vous aurez prélevé sur la fiche de paie de chacun des salariés concernés la CSG-CRDS relative à l'opération réalisée. Cette dérogation n'est pas possible si l'abondement est à calculer par Groupama Épargne Salariale."}]
[]
[]
[]
[null,null,null,null,null,null,null,null,null,null,null,null,null,null,null,null,null,null,null,null,null,null,null,null,null,null,null,null,null,null,null,null,null,null,null,null,null,null,null,null,null,null,null,null,null,null,null,null,null,null,null,null,null,null,null,null,null,null,null,"* PASS : Plafond Annuel de la Sécurité Sociale"]
[]
[]
[null,null,"MONTANTS À INVESTIR",null,null,null,null,null,null,null,null,null,null,null,null,null,null,null,"Origine des versements ",null,null,null,null,{"$f":"'Saisie des données + guide'!U21","v":"Versements volontaires"},null,null,null,null,null,null,{"$f":"IF(X23=\"Abondement unilatéral\", \" C =\", \"\")","v":""},null,null,null,null,null,null,null,null,"PEE"]
[null,null,null,null,null,null,null,null,null,null,null,null,null,null,null,null,null,null,{"$f":"+IF($X$23=\"Abondement unilatéral\",\"Le versement de l'abondement unilatéral est limité à 2% du PASS 2024 (soit 927,36€)\",\"\")","v":""}]
[null,null,null,null,"PEE",null,null,null,null,null,null,null,null,"PERCOL",null,null,null,null,null,null,null,null,null,"MONTANT TOTAL",null,null,null,null,null,null,null,null,null,null,null,null,null,null,null,{"$f":"X23","v":"Versements volontaires"},null,null,null,null,null,null,null,null,null,null,null,"Taux",null,null,null,null,null,null,{"$f":"\"Abondement sur \"&X23&\"\"","v":"Abondement sur Versements volontaires"}]
[null,null,"A =",null,null,null,null,null,null,"+",null,"B =",null,null,null,null,null,null,null,"=",null,null,null,"A + B =",null,null,null,{"$f":"$E$26+$N$26","v":0},null,null,null,null,null,null,null,null,null,null,null,null,null,{"$f":"E$26","v":0},null,null,null,null,null,null,"x",null,null,{"$f":"+'Saisie des données + guide'!S$29","v":0},null,null,null,null,null,"A' =",{"$f":"IF(ISBLANK(E26),\"\",IF(AND(G16=J105,ISBLANK('Saisie des données + guide'!AG36)),MIN(Plafond_PEE_net,E26*AZ26*(1-CSG_CRDS)),IF(AND(G16=J106,ISBLANK('Saisie des données + guide'!AG36)),MIN(Plafond_PEE,E26*AZ26),IF(AND(G16=J105,'Saisie des données + guide'!AG36=\"X\"),MIN(Plafond_PEE,E26*AZ26),IF(AND(G16=J106,'Saisie des données + guide'!AG36=\"X\"),MIN(Plafond_PEE,E26*AZ26))))))","v":""}]
[null,null,null,null,null,null,null,null,null,null,null,null,null,null,null,null,null,null,null,null,null,null,null,null,null,null,null,null,null,null,null,null,null,null,null,null,null,null,null,null,null,"A",null,null,null,null,null,null,null,null,null,"T",null,null,null,null,null,null,{"$f":"IF(AND(G16=J105,ISBLANK('Saisie des données + guide'!AG$36)),\"plafonné à \" &Plafond_PEE_net&\" € pour \"&J$105,IF(AND(G16=J105,'Saisie des données + guide'!AG$36=\"X\"),\"plafonné à \" &Plafond_PEE&\" € pour \"&J$105,\"plafonné à \" &Plafond_PEE&\" € pour \"&J$106))","v":"plafonné à 3709,44 € pour Non salarié"}]
[]
[]
[null,null,null,"UNIQUEMENT PERCOL : Vous pouvez déduire de vos revenus imposables les versements volontaires effectués dans le PERCOL.  \nLes sommes seront alors fiscalisées au moment du retrait selon la réglementation en vigueur."]
[null,null,null,null,null,null,null,null,null,null,null,null,null,null,null,null,null,null,null,null,null,null,null,null,null,null,null,null,null,null,null,null,null,null,null,null,null,null,null,"PERCOL"]
[]
[null,null,null,null,null,"Je choisis de bénéficier des versements déductibles dans le PERCOL      ",null,null,null,null,null,null,null,null,null,null,null,null,null,null,null,null,null,null,null,null,null,null,null,null,null,null,null,null,null,null,null,null,null,{"$f":"X23","v":"Versements volontaires"},null,null,null,null,null,null,null,null,null,null,null,"Taux",null,null,null,{"$f":" IF($X$23=\"Versements volontaires\",\"Abondement sur Versements volontaires\",IF($X$23=\"Intéressement\",\"Abondement sur Intéressement\",IF($X$23=\"Participation\",\"Abondement sur Participation\",IF($X$23=\"Jours de repos non pris / CET\",\"Abondement sur Jours de repos non pris / CET\",IF($X$23=\"Prime de partage de la valeur\",\"Abondement sur Prime de partage de la valeur\",IF($X$23=\"Abondement unilatéral\",\" Montant total investi pour l'abondement unilatéral\"))))))","v":"Abondement sur Versements volontaires"}]
[]
[null,null,null,null,null,"Je renonce aux versements déductibles",null,null,null,null,null,null,null,null,null,null,null,null,null,null,null,null,null,null,null,null,null,null,null,null,null,null,null,null,null,null,null,null,null,null,null,{"$f":"$N$26","v":0},null,null,null,null,null,null,"x",null,null,{"$f":"+'Saisie des données + guide'!AK29","v":0},null,null,null,null,null,{"$f":"IF(X23=\"abondement unilatéral\",\"C'=\", \"B' =\")","v":"B' ="},{"$f":"IF(AND(ISBLANK(N26),ISBLANK(AG23)),\"\",IF(AND(X23=\"Abondement unilatéral\",G16=J105,ISBLANK('Saisie des données + guide'!AG36)),MIN(Plafond_uni_TS,AG23*0.903),IF(AND(X23=\"Abondement unilatéral\",G16=J106),MIN(Plafond_uni_TNS,AG23),IF(AND(X23<>\"Abondement unilatéral\",G16=J105,ISBLANK('Saisie des données + guide'!AG36)),MIN(Plafond_PERCO_net,(1-CSG_CRDS)*AZ35*N26),IF(AND(X23<>\"Abondement unilatéral\",G16=J106,ISBLANK('Saisie des données + guide'!AG36)),MIN(Plafond_PERCO,AZ35*N26),IF(AND(X23<>\"Abondement unilatéral\",G16=J105,'Saisie des données + guide'!AG36=\"X\"),MIN(Plafond_PERCO,AZ35*N26),IF(AND(X23<>\"Abondement unilatéral\",G16=J106,'Saisie des données + guide'!AG36=\"X\"),MIN(Plafond_PERCO,AZ35*N26),IF(AND(X23=\"Abondement unilatéral\",G16=J106,'Saisie des données + guide'!AG36=\"X\"),MIN(Plafond_uni_TNS,AG23),IF(AND(X23=\"Abondement unilatéral\",G16=J105,'Saisie des données + guide'!AG36=\"X\"),MIN(Plafond_uni_TNS,AG23))))))))))","v":""}]
[null,null,null,null,null,"Attention : Votre choix est irrévocable. En l'absence de choix, les versements volontaires dans le PERCOL seront déductibles.",null,null,null,null,null,null,null,null,null,null,null,null,null,null,null,null,null,null,null,null,null,null,null,null,"> Plus de détails",null,null,null,null,null,null,null,null,null,null,"B",null,null,null,null,null,null,null,null,null,"T",null,null,null,null,null,null,{"$f":"IF(AND(ISBLANK(N26),ISBLANK(AG23)),\"\",IF(AND(X23=\"Abondement unilatéral\",G16=J105,ISBLANK('Saisie des données + guide'!AG36)),\"plafonné à \"&Plafond_uni_TS&\" € pour \"&J105,IF(AND(X23=\"Abondement unilatéral\",G16=J106),\"plafonné à \"&Plafond_uni_TNS&\" € pour \"&J106,IF(AND(X23<>\"Abondement unilatéral\",G16=J105,ISBLANK('Saisie des données + guide'!AG36)),\"plafonné à \"&Plafond_PERCO_net&\" € pour \"&J105,IF(AND(X23<>\"Abondement unilatéral\",G16=J106,ISBLANK('Saisie des données + guide'!AG36)),\"plafonné à \"&Plafond_PERCO&\" € pour \"&J106,IF(AND(X23<>\"Abondement unilatéral\",G16=J105,'Saisie des données + guide'!AG36=\"X\"),\"plafonné à \"&Plafond_PERCO&\" € pour \"&J105,IF(AND(X23<>\"Abondement unilatéral\",G16=J106,'Saisie des données + guide'!AG36=\"X\"),\"plafonné à \"&Plafond_PERCO&\" € pour \"&J106,IF(AND(X23=\"Abondement unilatéral\",G16=J106,'Saisie des données + guide'!AG36=\"X\"),\"plafonné à \"&Plafond_uni_TNS&\" € pour \"&J106,IF(AND(X23=\"Abondement unilatéral\",G16=J105,'Saisie des données + guide'!AG36=\"X\"),\"plafonné à \"&Plafond_uni_TNS&\" € pour \"&J105)))))))))","v":""}]
[]
[]
[]
[null,null,"RÉPARTITION DE L'ÉPARGNE",null,null,null,null,null,null,null,null,null,null,null,null,"N'hésitez pas à consulter l'onglet \"Autres fonds\" pour ajouter d'autres supports de placement.",null,null,null,null,null,null,null,null,null,null,null,null,null,null,null,null,null,null,null,null,null,null,null,"VERSEMENT TOTAL DE L'ENTREPRISE",null,null,null,null,null,null,null,null,null,null,null,null,null,null,"(A' + B')",null,null,null,{"$f":"MAX($BG$26,0)+MAX($BG$35,0)","v":0}]
[null,null,null,"A. Gestion Libre",null,null,null,null,null,null,null,null,null,null,null,null,null,null,null,null,null,null,null,null,null,null,null,null,null,null,null,null,null,null,null,null,null,null,null,"Le versement de l'abondement s'effectue sur les mêmes fonds que le versement personnel."]
[]
[null,null,"CODE ET NOM DES FONDS",null,null,null,null,null,null,null,null,null,null,null,"PEE",null,null,null,null,null,null,null,null,null,null,"PERCOL"]
[null,null,null,null,null,null,null,null,null,null,null,null,null,null,{"$f":"+IF(SUM(R47:Y76)>E26,\"ERREUR SAISIE\",IF(R46=0,\"\",\"Reste à répartir sur les fonds suivants\"))","v":""},null,null,null,null,null,null,null,null,null,null,{"$f":"+IF(SUM(AC47:AJ79)>(N26+AG23),\"ERREUR SAISIE\",IF(AC46=0,\"\",\"Reste à répartir sur les fonds suivants\"))","v":""},null,null,null,null,null,null,null,null,null,null,null,null,null,"VERSEMENT TOTAL INVESTI",null,null,null,null,null,null,null,null,null,null,null,null,null,"(A + B) + (A' + B')",null,null,null,null,{"$f":"+$AB$26+$BG$40","v":0}]
[]
[null,null,null,null,null,null,null,null,null,null,null,null,null,null,{"$f":"IF(E26>0,100-(SUM(O47:P76)),\"\")","v":""},null,{"$f":"IF(O46<>0, \"%\", \"\")","v":"%"},{"$f":"E26-SUM(R47:Y76)","v":0},null,null,null,null,null,null,null,{"$f":"IF((N26+AG23)>0,100-(SUM(Z47:AA79)),\"\")","v":""},null,{"$f":"IF(Z46<>0, \"%\", \"\")","v":"%"},{"$f":"(N26+AG23)-SUM(AC47:AJ79)","v":0}]
[null,null,{"$f":"+IF('Saisie des données + guide'!U25=\"Gamme GER\",\"84289 - GER Monétaire\",IF('Saisie des données + guide'!U25=\"Gamme TESORUS\",\"82659 - TESORUS Monétaire\",IF('Saisie des données + guide'!U25=\"Gamme Fonds Directs\",\"15719 - Oblifonds\",IF('Saisie des données + guide'!U25=\"Gamme Finama\",\"\",\"\"))))","v":"84289 - GER Monétaire"},null,null,null,null,null,null,null,null,null,null,null,null,null,"%",{"$f":"IF(O47=\"\",\"--------------\",+E$26*O47/100)","v":"--------------"},null,null,null,null,null,null,null,null,null,"%",{"$f":"IF(Z47=\"\",\"--------------\",+(N$26+$AG$23)*Z47/100)","v":"--------------"}]
[null,null,null,null,null,null,null,null,null,null,null,null,null,null,null,null,null,null,null,null,null,null,null,null,null,null,null,null,null,null,null,null,null,null,null,null,null,null,"ATTENTION : Si plusieurs épargnants effectuent des versements au même moment, vous devrez de regrouper l’ensemble des abondements en un seul chèque. Pour cela, reportez vous à la fiche récapitulative jointe sur ce fichier.\n\nLes chèques sont à libeller à l’ordre de GROUPAMA ÉPARGNE SALARIALE et à envoyer à l'adresse suivante : \nGroupama Épargne Salariale - Service Clients\n46 rue Jules Méline - 53098 Laval Cedex 9"]
[null,null,{"$f":"+IF('Saisie des données + guide'!U25=\"Gamme GER\",\"84309 - GER Prudence\",IF('Saisie des données + guide'!U25=\"Gamme TESORUS\",\"82719 - TESORUS Prudence\",IF('Saisie des données + guide'!U25=\"Gamme Fonds Directs\",\"4939 - Diversifonds\",\"\")))","v":"84309 - GER Prudence"},null,null,null,null,null,null,null,null,null,null,null,null,null,"%",{"$f":"IF(O49=\"\",\"--------------\",+E$26*O49/100)","v":"--------------"},null,null,null,null,null,null,null,null,null,"%",{"$f":"IF(Z49=\"\",\"--------------\",+(N$26+$AG$23)*Z49/100)","v":"--------------"}]
[]
[null,null,{"$f":"+IF('Saisie des données + guide'!U25=\"Gamme GER\",\"84329 - GER Equilibre\",IF('Saisie des données + guide'!U25=\"Gamme TESORUS\",\"82669 - TESORUS Equilibre\",IF('Saisie des données + guide'!U25=\"Gamme Fonds Directs\",\"2459 - Foncival\",\"\")))","v":"84329 - GER Equilibre"},null,null,null,null,null,null,null,null,null,null,null,null,null,"%",{"$f":"IF(O51=\"\",\"--------------\",+E$26*O51/100)","v":"--------------"},null,null,null,null,null,null,null,null,null,"%",{"$f":"IF(Z51=\"\",\"--------------\",+(N$26+$AG$23)*Z51/100)","v":"--------------"}]
[]
[null,null,{"$f":"+IF('Saisie des données + guide'!U25=\"Gamme GER\",\"84349 - GER Dynamique\",IF('Saisie des données + guide'!U25=\"Gamme TESORUS\",\"82689 - TESORUS Dynamique\",\"\"))","v":"84349 - GER Dynamique"},null,null,null,null,null,null,null,null,null,null,null,null,null,"%",{"$f":"IF(O53=\"\",\"--------------\",+E$26*O53/100)","v":"--------------"},null,null,null,null,null,null,null,null,null,"%",{"$f":"IF(Z53=\"\",\"--------------\",+(N$26+$AG$23)*Z53/100)","v":"--------------"}]
[]
[null,null,{"$f":"+IF('Saisie des données + guide'!U25=\"Gamme GER\",\"84369 - GER Solidaire\",IF('Saisie des données + guide'!U25=\"Gamme TESORUS\",\"87649 - TESORUS Solidaire\",\"\"))","v":"84369 - GER Solidaire"},null,null,null,null,null,null,null,null,null,null,null,null,null,"%",{"$f":"IF(O55=\"\",\"--------------\",+E$26*O55/100)","v":"--------------"},null,null,null,null,null,null,null,null,null,"%",{"$f":"IF(Z55=\"\",\"--------------\",+(N$26+$AG$23)*Z55/100)","v":"--------------"}]
[]
[null,null,"110429 - Finama Épargne Court Terme",null,null,null,null,null,null,null,null,null,null,null,null,null,"%",{"$f":"IF(O57=\"\",\"--------------\",+E$26*O57/100)","v":"--------------"},null,null,null,null,null,null,null,null,null,"%",{"$f":"IF(Z57=\"\",\"--------------\",+(N$26+$AG$23)*Z57/100)","v":"--------------"}]
[]
[null,null,"79139 - Finama Actions Internationales",null,null,null,null,null,null,null,null,null,null,null,null,null,"%",{"$f":"IF(O59=\"\",\"--------------\",+E$26*O59/100)","v":"--------------"},null,null,null,null,null,null,null,null,null,"%",{"$f":"IF(Z59=\"\",\"--------------\",+(N$26+$AG$23)*Z59/100)","v":"--------------"}]
[]
[null,null,"116119 - Groupama Sélection PME-ETI",null,null,null,null,null,null,null,null,null,null,null,null,null,"%",{"$f":"IF(O61=\"\",\"--------------\",+E$26*O61/100)","v":"--------------"},null,null,null,null,null,null,null,null,null,"%",{"$f":"IF(Z61=\"\",\"--------------\",+(N$26+$AG$23)*Z61/100)","v":"--------------"}]
[]
[null,null,null,null,null,null,null,null,null,null,null,null,null,null,null,null,"%",{"$f":"IF(O63=\"\",\"--------------\",+E$26*O63/100)","v":"--------------"},null,null,null,null,null,null,null,null,null,"%",{"$f":"IF(Z63=\"\",\"--------------\",+(N$26+$AG$23)*Z63/100)","v":"--------------"}]
[]
[null,null,null,null,null,null,null,null,null,null,null,null,null,null,null,null,"%",{"$f":"IF(O65=\"\",\"--------------\",+E$26*O65/100)","v":"--------------"},null,null,null,null,null,null,null,null,null,"%",{"$f":"IF(Z65=\"\",\"--------------\",+(N$26+$AG$23)*Z65/100)","v":"--------------"}]
[]
[null,null,null,null,null,null,null,null,null,null,null,null,null,null,null,null,"%",{"$f":"IF(O67=\"\",\"--------------\",+E$26*O67/100)","v":"--------------"},null,null,null,null,null,null,null,null,null,"%",{"$f":"IF(Z67=\"\",\"--------------\",+(N$26+$AG$23)*Z67/100)","v":"--------------"}]
[]
[null,null,null,null,null,null,null,null,null,null,null,null,null,null,null,null,"%",{"$f":"IF(O69=\"\",\"--------------\",+E$26*O69/100)","v":"--------------"},null,null,null,null,null,null,null,null,null,"%",{"$f":"IF(Z69=\"\",\"--------------\",+(N$26+$AG$23)*Z69/100)","v":"--------------"}]
[]
[null,null,null,null,null,null,null,null,null,null,null,null,null,null,null,null,"%",{"$f":"IF(O71=\"\",\"--------------\",+E$26*O71/100)","v":"--------------"},null,null,null,null,null,null,null,null,null,"%",{"$f":"IF(Z71=\"\",\"--------------\",+(N$26+$AG$23)*Z71/100)","v":"--------------"}]
[]
[null,null,null,null,null,null,null,null,null,null,null,null,null,null,null,null,"%",{"$f":"IF(O73=\"\",\"--------------\",+E$26*O73/100)","v":"--------------"},null,null,null,null,null,null,null,null,null,"%",{"$f":"IF(Z73=\"\",\"--------------\",+(N$26+$AG$23)*Z73/100)","v":"--------------"}]
[]
[null,null,null,null,null,null,null,null,null,null,null,null,null,null,null,null,"%",{"$f":"IF(O75=\"\",\"--------------\",+E$26*O75/100)","v":"--------------"},null,null,null,null,null,null,null,null,null,"%",{"$f":"IF(Z75=\"\",\"--------------\",+(N$26+$AG$23)*Z75/100)","v":"--------------"}]
[]
[]
[null,null,null,"B. Gestion Pilotée",null,null,null,null,null,null,null,null,null,null,null,null,null,"Choisissez votre profil",null,null,null,null,null,null,null,null,null,"%",{"$f":"IF(Z78=\"\",\"--------------\",+(N26+AG23)*Z78/100)","v":"--------------"}]
[null,null,null,"valable uniquement sur le PERCOL",null,null,null,null,null,null,null,{"$f":"IF(L78=\"Oui\",\"Préciser la grille d'allocation\",\"\")","v":""}]
[]
[]
[null,null,"Je déclare avoir pris connaissance du règlement du plan, des documents d'information clés (DIC/KID) des fonds remis par mon entreprise et téléchargeables sur www.groupama-es.fr, ainsi que des modalités de fonctionnement des versements individuels jointes au présent bulletin. \nConformément au contrat d’épargne salariale mis en place par votre entreprise, des frais de versements d’un maximum de 4 % peuvent s’appliquer. Nous vous invitons à contacter votre employeur pour obtenir le montant de ces frais.\nEn l'absence de choix de fonds, les sommes seront investies sur le fonds par défaut dans le PEE ou selon le mode de gestion pilotée dans le PERCOL : soit le profil Équilibre Horizon Retraite s'il s'agit de votre premier versement ou si vous aviez opté pour la gestion libre lors de précédent versement, soit avec le même profil de gestion pilotée précédemment choisi.\nPour tout versement volontaire à partir de 8 000 €, une copie de votre pièce d'identité devra être fournie, accompagnée du dernier avis d'imposition pour un versement d’un montant de 15 000 € et plus. ",null,null,null,null,null,null,null,null,null,null,null,null,null,null,null,null,null,null,null,null,null,null,null,null,null,null,null,null,null,null,null,null,null,null,null,null,"Conformément au règlement général sur la protection des données n°2016/679 du 27 avril 2016, vos données personnelles sont traitées par Groupama Épargne Salariale à des fins de tenue des comptes d'épargne salariale. Elles sont destinées aux membres du personnel dûment habilités de Groupama Épargne Salariale ainsi qu’à ses sous-traitants. Elles sont conservées par Groupama Épargne Salariale pendant une durée maximale de trente ans à compter de la disponibilité des avoirs.Vous pouvez demander l’accès, la rectification, l'effacement et la portabilité de vos données personnelles ainsi que limiter ou vous opposer, pour motif légitime, au traitement en écrivant au Délégué Relais à la Protection des Données de Groupama Épargne Salariale – Service du Contrôle interne – 2 boulevard de Pesaro – 92000 Nanterre ou par email : controleinterne@groupama-es.fr. Réf. : BIV 01-01-2024"]
[]
[]
[null,null,null,"J’atteste sur l’honneur que mon versement est conforme à la réglementation, notamment qu'il provient bien de mon épargne personnelle et que l’ensemble de mes versements de l’année au PEE ne dépasse pas 25 % de ma rémunération annuelle brute.",null,null,null,null,null,null,null,null,null,null,null,null,null,null,null,null,null,null,null,null,null,"SIGNATURE DE L'ÉPARGNANT"]
[null,null,null,null,null,null,null,null,null,null,null,null,null,null,null,null,null,null,null,null,null,null,null,null,null,null,null,null,null,null,null,null,null,null,null,null,null,null,null,null,null,null,null,null,null,null,"Groupama Épargne Salariale - Entreprise d'investissement agréée par l'ACPR - Teneur de comptes - Conservateur de parts \nSA au capital de 8.709.015 € - Siège social : 2 boulevard de Pesaro 92000 Nanterre - 428 768 352 RCS Nanterre"]
[]
[null,null,"Fait à :",null,null,null,null,null,null,null,null,null,null,"Le :",null,null,null,null,null,null,{"$f":"'Saisie des données + guide'!BF2","v":2024}]
[]
[]
[]
[]
[]
[]
[]
[]
[]
[]
[null,null,null,null,"3 options dans ce BIV :"]
[]
[null,null,null,null,null,null,"Ouverture compte :"]
[null,null,null,null,null,null,null,null,null,null,null,null,"X"]
[]
[null,null,null,null,null,null,"Statut :"]
[null,null,null,null,null,null,null,null,null,"Salarié"]
[null,null,null,null,null,null,null,null,null,"Non salarié"]
[]
[null,null,null,null,null,null,"Gestion pilotée :"]
[null,null,null,null,null,null,null,null,null,null,"Choisissez votre profil"]
[null,null,null,null,null,null,null,null,null,null,"Profil Prudent Horizon Retraite"]
[null,null,null,null,null,null,null,null,null,null,"Profil Équilibre Horizon Retraite"]
[null,null,null,null,null,null,null,null,null,null,"Profil Dynamique Horizon Retraite"]
[]
[null,null,null,null,null,null,null,null,null,null,null,"Oui"]
[null,null,null,null,null,null,null,null,null,null,null,"Non"]

{"sheet":"Bulletin n°10","index":10,"n_rows":115,"n_cols":70,"rows_kept":115,"cut":false,"hidden":false,"merged":[[93,10,93,15],[93,16,93,22],[93,23,93,28],[9,22,9,35],[11,6,11,16],[11,22,11,35],[13,6,13,10],[13,11,13,12],[13,13,13,16],[74,2,75,13],[74,14,75,15],[74,16,75,16],[74,17,75,24],[74,25,75,26],[74,27,75,27],[74,28,75,35],[77,11,77,12],[77,17,78,23],[77,25,78,26],[77,27,78,27],[77,28,78,35],[78,3,79,10],[78,11,78,16],[68,2,69,13],[68,25,69,26],[68,27,69,27],[68,28,69,35],[70,2,71,13],[70,14,71,15],[70,16,71,16],[70,17,71,24],[70,25,71,26],[70,27,71,27],[70,28,71,35],[72,2,73,13],[72,14,73,15],[72,16,73,16],[72,17,73,24],[72,25,73,26],[72,27,73,27],[72,28,73,35],[64,2,65,13],[64,14,65,15],[64,16,65,16],[64,17,65,24],[64,25,65,26],[64,27,65,27],[64,28,65,35],[66,2,67,13],[66,14,67,15],[66,16,67,16],[66,17,67,24],[66,25,67,26],[66,27,67,27],[66,28,67,35],[68,14,69,15],[68,16,69,16],[68,17,69,24],[56,14,57,15],[56,16,57,16],[56,17,57,24],[56,25,57,26],[56,27,57,27],[56,28,57,35],[58,2,59,13],[58,14,59,15],[58,16,59,16],[58,17,59,24],[58,25,59,26],[58,27,59,27],[58,28,59,35],[56,2,57,13],[52,25,53,26],[52,27,53,27],[52,28,53,35],[54,2,55,13],[54,14,55,15],[54,16,55,16],[54,17,55,24],[54,25,55,26],[54,27,55,27],[54,28,55,35],[46,16,47,16],[46,17,47,24],[46,25,47,26],[46,27,47,27],[46,28,47,35],[47,38,53,71],[48,2,49,13],[48,14,49,15],[48,16,49,16],[48,17,49,24],[48,25,49,26],[48,27,49,27],[48,28,49,35],[50,2,51,13],[50,14,51,15],[50,16,51,16],[50,17,51,24],[50,25,51,26],[50,27,51,27],[50,28,51,35],[52,2,53,13],[52,14,53,15],[52,16,53,16],[52,17,53,24],[39,54,39,57],[39,58,39,68],[40,39,42,53],[42,2,45,13],[42,14,42,24],[42,25,42,35],[43,14,44,24],[43,25,44,35],[43,53,43,57],[43,58,43,68],[45,14,45,15],[45,17,45,24],[45,25,45,26],[45,28,45,35],[32,5,32,26],[32,39,32,48],[32,51,33,54],[32,55,32,69],[35,5,35,29],[35,30,35,35],[35,41,35,46],[35,51,35,54],[35,58,35,68],[24,4,24,5],[26,23,27,35],[26,41,26,46],[26,51,26,54],[26,58,26,68],[28,58,28,68],[29,3,31,35],[30,39,30,56],[30,58,30,68],[24,39,24,48],[25,2,25,3],[25,4,25,5],[25,11,25,12],[25,13,25,14],[25,17,25,18],[25,23,25,26],[25,27,25,35],[25,48,25,49],[9,45,9,69],[0,1,0,52],[2,1,3,36],[2,39,3,71],[5,45,5,50],[7,6,7,16],[7,22,7,35],[7,45,7,69],[0,59,0,68],[0,69,0,71],[5,22,5,35],[5,6,5,10],[5,13,5,16],[9,6,9,10],[9,15,9,16],[62,27,63,27],[62,28,63,35],[18,89,18,107],[11,45,11,69],[15,6,16,16],[15,22,15,35],[15,39,18,69],[25,41,25,46],[25,51,25,54],[25,58,25,68],[46,14,47,15],[24,13,24,14],[24,51,24,54],[34,41,34,46],[34,51,34,54],[34,58,34,68],[34,5,34,26],[34,48,34,49],[46,2,47,13],[22,23,22,29],[22,30,22,31],[22,32,22,35],[22,39,22,43],[24,23,24,35],[13,22,13,35],[80,17,80,24],[81,2,82,35],[81,39,83,71],[84,3,85,23],[84,25,84,35],[85,25,87,35],[85,46,88,71],[87,2,87,4],[87,5,87,11],[87,13,87,15],[87,20,87,22],[60,2,61,13],[60,14,61,15],[60,16,61,16],[60,17,61,24],[60,25,61,26],[60,27,61,27],[60,28,61,35],[62,2,63,13],[62,14,63,15],[62,16,63,16],[62,17,63,24],[62,25,63,26]]}
[null,"BULLETIN INDIVIDUEL DE VERSEMENTS SUR VOTRE PLAN D’ÉPARGNE SALARIALE",null,null,null,null,null,null,null,null,null,null,null,null,null,null,null,null,null,null,null,null,null,null,null,null,null,null,null,null,null,null,null,null,null,null,null,null,null,null,null,null,null,null,null,null,null,null,null,null,null,null,null,null,null,null,null,null,null," Version PERCOL",null,null,null,null,null,null,null,null,null,{"$f":"'Saisie des données + guide'!BF2","v":2024}]
[]
[null,"VERSEMENT DE L'ÉPARGNANT",null,null,null,null,null,null,null,null,null,null,null,null,null,null,null,null,null,null,null,null,null,null,null,null,null,null,null,null,null,null,null,null,null,null,null,null,null,"VERSEMENT COMPLÉMENTAIRE (ABONDEMENT) DE L'ENTREPRISE"]
[]
[]
[null,null,"Civilité ",null,null,null,null,null,null,null,null,null,"Nom",null,null,null,null,null,"Prénom",null,null,null,null,null,null,null,null,null,null,null,null,null,null,null,null,null,null,null,null,"Code entreprise",null,null,null,null,null,{"$f":"'Saisie des données + guide'!K12","v":0},null,null,null,null,null,null,null,null,null,null,null,null,null,null,null,null,null,null,null,null,null,null,"Exercice fiscal de référence :",{"$f":"'Saisie des données + guide'!V$48","v":0}]
[]
[null,null,"N° Sécurité sociale",null,null,null,null,null,null,null,null,null,null,null,null,null,null,null,"Nom de naissance",null,null,null,null,null,null,null,null,null,null,null,null,null,null,null,null,null,null,null,null,"Raison sociale",null,null,null,null,null,{"$f":"'Saisie des données + guide'!K14","v":0}]
[]
[null,null,"Date de naissance",null,null,null,null,null,null,null,null,"Département de naissance",null,null,null,null,null,null,"Ville de naissance",null,null,null,null,null,null,null,null,null,null,null,null,null,null,null,null,null,null,null,null,"Contact",null,null,null,null,null,{"$f":"'Saisie des données + guide'!K16","v":0}]
[]
[null,null,"Adresse ",null,null,null,null,null,null,null,null,null,null,null,null,null,null,null,"Pays de naissance",null,null,null,null,null,null,null,null,null,null,null,null,null,null,null,null,null,null,null,null,"Email",null,null,null,null,null,{"$f":"'Saisie des données + guide'!K18","v":0}]
[]
[null,null,"Code postal",null,null,null,null,null,null,null,null,"Ville",null,null,null,null,null,null,"E-mail",null,null,null,null,null,null,null,null,null,null,null,null,null,null,null,null,null,null,null,null,"Si CSG-CRDS non précomptées pour le salarié",null,null,null,null,null,null,null,null,null,null,null,null,null,null,null,null,{"$f":"+'Saisie des données + guide'!AG36","v":0},null,null,null,null,null,null,null,null,null,null,null,"Le PASS* pour l'année 2024 est de :",{"$f":"PASS","v":46368}]
[]
[null,null,"Statut",null,null,null,null,null,null,null,null,null,null,null,null,null,null,null,"Téléphone",null,null,null,null,null,null,null,null,null,null,null,null,null,null,null,null,null,null,null,null,{"$f":"+'Saisie des données + guide'!E38","v":"Le montant que Groupama Épargne Salariale doit investir est le montant net de CSG-CRDS (les prélèvements sociaux étant payés directement par vos soins).  Si vous cochez la case, cela signifie que vous souhaitez par dérogation nous adresser un montant brut de CSG-CRDS et que vous aurez prélevé sur la fiche de paie de chacun des salariés concernés la CSG-CRDS relative à l'opération réalisée. Cette dérogation n'est pas possible si l'abondement est à calculer par Groupama Épargne Salariale."}]
[]
[]
[]
[null,null,null,null,null,null,null,null,null,null,null,null,null,null,null,null,null,null,null,null,null,null,null,null,null,null,null,null,null,null,null,null,null,null,null,null,null,null,null,null,null,null,null,null,null,null,null,null,null,null,null,null,null,null,null,null,null,null,null,"* PASS : Plafond Annuel de la Sécurité Sociale"]
[]
[]
[null,null,"MONTANTS À INVESTIR",null,null,null,null,null,null,null,null,null,null,null,null,null,null,null,"Origine des versements ",null,null,null,null,{"$f":"'Saisie des données + guide'!U21","v":"Versements volontaires"},null,null,null,null,null,null,{"$f":"IF(X23=\"Abondement unilatéral\", \" C =\", \"\")","v":""},null,null,null,null,null,null,null,null,"PEE"]
[null,null,null,null,null,null,null,null,null,null,null,null,null,null,null,null,null,null,{"$f":"+IF($X$23=\"Abondement unilatéral\",\"Le versement de l'abondement unilatéral est limité à 2% du PASS 2024 (soit 927,36€)\",\"\")","v":""}]
[null,null,null,null,"PEE",null,null,null,null,null,null,null,null,"PERCOL",null,null,null,null,null,null,null,null,null,"MONTANT TOTAL",null,null,null,null,null,null,null,null,null,null,null,null,null,null,null,{"$f":"X23","v":"Versements volontaires"},null,null,null,null,null,null,null,null,null,null,null,"Taux",null,null,null,null,null,null,{"$f":"\"Abondement sur \"&X23&\"\"","v":"Abondement sur Versements volontaires"}]
[null,null,"A =",null,null,null,null,null,null,"+",null,"B =",null,null,null,null,null,null,null,"=",null,null,null,"A + B =",null,null,null,{"$f":"$E$26+$N$26","v":0},null,null,null,null,null,null,null,null,null,null,null,null,null,{"$f":"E$26","v":0},null,null,null,null,null,null,"x",null,null,{"$f":"+'Saisie des données + guide'!S$29","v":0},null,null,null,null,null,"A' =",{"$f":"IF(ISBLANK(E26),\"\",IF(AND(G16=J105,ISBLANK('Saisie des données + guide'!AG36)),MIN(Plafond_PEE_net,E26*AZ26*(1-CSG_CRDS)),IF(AND(G16=J106,ISBLANK('Saisie des données + guide'!AG36)),MIN(Plafond_PEE,E26*AZ26),IF(AND(G16=J105,'Saisie des données + guide'!AG36=\"X\"),MIN(Plafond_PEE,E26*AZ26),IF(AND(G16=J106,'Saisie des données + guide'!AG36=\"X\"),MIN(Plafond_PEE,E26*AZ26))))))","v":""}]
[null,null,null,null,null,null,null,null,null,null,null,null,null,null,null,null,null,null,null,null,null,null,null,null,null,null,null,null,null,null,null,null,null,null,null,null,null,null,null,null,null,"A",null,null,null,null,null,null,null,null,null,"T",null,null,null,null,null,null,{"$f":"IF(AND(G16=J105,ISBLANK('Saisie des données + guide'!AG$36)),\"plafonné à \" &Plafond_PEE_net&\" € pour \"&J$105,IF(AND(G16=J105,'Saisie des données + guide'!AG$36=\"X\"),\"plafonné à \" &Plafond_PEE&\" € pour \"&J$105,\"plafonné à \" &Plafond_PEE&\" € pour \"&J$106))","v":"plafonné à 3709,44 € pour Non salarié"}]
[]
[]
[null,null,null,"UNIQUEMENT PERCOL : Vous pouvez déduire de vos revenus imposables les versements volontaires effectués dans le PERCOL.  \nLes sommes seront alors fiscalisées au moment du retrait selon la réglementation en vigueur."]
[null,null,null,null,null,null,null,null,null,null,null,null,null,null,null,null,null,null,null,null,null,null,null,null,null,null,null,null,null,null,null,null,null,null,null,null,null,null,null,"PERCOL"]
[]
[null,null,null,null,null,"Je choisis de bénéficier des versements déductibles dans le PERCOL      ",null,null,null,null,null,null,null,null,null,null,null,null,null,null,null,null,null,null,null,null,null,null,null,null,null,null,null,null,null,null,null,null,null,{"$f":"X23","v":"Versements volontaires"},null,null,null,null,null,null,null,null,null,null,null,"Taux",null,null,null,{"$f":" IF($X$23=\"Versements volontaires\",\"Abondement sur Versements volontaires\",IF($X$23=\"Intéressement\",\"Abondement sur Intéressement\",IF($X$23=\"Participation\",\"Abondement sur Participation\",IF($X$23=\"Jours de repos non pris / CET\",\"Abondement sur Jours de repos non pris / CET\",IF($X$23=\"Prime de partage de la valeur\",\"Abondement sur Prime de partage de la valeur\",IF($X$23=\"Abondement unilatéral\",\" Montant total investi pour l'abondement unilatéral\"))))))","v":"Abondement sur Versements volontaires"}]
[]
[null,null,null,null,null,"Je renonce aux versements déductibles",null,null,null,null,null,null,null,null,null,null,null,null,null,null,null,null,null,null,null,null,null,null,null,null,null,null,null,null,null,null,null,null,null,null,null,{"$f":"$N$26","v":0},null,null,null,null,null,null,"x",null,null,{"$f":"+'Saisie des données + guide'!AK29","v":0},null,null,null,null,null,{"$f":"IF(X23=\"abondement unilatéral\",\"C'=\", \"B' =\")","v":"B' ="},{"$f":"IF(AND(ISBLANK(N26),ISBLANK(AG23)),\"\",IF(AND(X23=\"Abondement unilatéral\",G16=J105,ISBLANK('Saisie des données + guide'!AG36)),MIN(Plafond_uni_TS,AG23*0.903),IF(AND(X23=\"Abondement unilatéral\",G16=J106),MIN(Plafond_uni_TNS,AG23),IF(AND(X23<>\"Abondement unilatéral\",G16=J105,ISBLANK('Saisie des données + guide'!AG36)),MIN(Plafond_PERCO_net,(1-CSG_CRDS)*AZ35*N26),IF(AND(X23<>\"Abondement unilatéral\",G16=J106,ISBLANK('Saisie des données + guide'!AG36)),MIN(Plafond_PERCO,AZ35*N26),IF(AND(X23<>\"Abondement unilatéral\",G16=J105,'Saisie des données + guide'!AG36=\"X\"),MIN(Plafond_PERCO,AZ35*N26),IF(AND(X23<>\"Abondement unilatéral\",G16=J106,'Saisie des données + guide'!AG36=\"X\"),MIN(Plafond_PERCO,AZ35*N26),IF(AND(X23=\"Abondement unilatéral\",G16=J106,'Saisie des données + guide'!AG36=\"X\"),MIN(Plafond_uni_TNS,AG23),IF(AND(X23=\"Abondement unilatéral\",G16=J105,'Saisie des données + guide'!AG36=\"X\"),MIN(Plafond_uni_TNS,AG23))))))))))","v":""}]
[null,null,null,null,null,"Attention : Votre choix est irrévocable. En l'absence de choix, les versements volontaires dans le PERCOL seront déductibles.",null,null,null,null,null,null,null,null,null,null,null,null,null,null,null,null,null,null,null,null,null,null,null,null,"> Plus de détails",null,null,null,null,null,null,null,null,null,null,"B",null,null,null,null,null,null,null,null,null,"T",null,null,null,null,null,null,{"$f":"IF(AND(ISBLANK(N26),ISBLANK(AG23)),\"\",IF(AND(X23=\"Abondement unilatéral\",G16=J105,ISBLANK('Saisie des données + guide'!AG36)),\"plafonné à \"&Plafond_uni_TS&\" € pour \"&J105,IF(AND(X23=\"Abondement unilatéral\",G16=J106),\"plafonné à \"&Plafond_uni_TNS&\" € pour \"&J106,IF(AND(X23<>\"Abondement unilatéral\",G16=J105,ISBLANK('Saisie des données + guide'!AG36)),\"plafonné à \"&Plafond_PERCO_net&\" € pour \"&J105,IF(AND(X23<>\"Abondement unilatéral\",G16=J106,ISBLANK('Saisie des données + guide'!AG36)),\"plafonné à \"&Plafond_PERCO&\" € pour \"&J106,IF(AND(X23<>\"Abondement unilatéral\",G16=J105,'Saisie des données + guide'!AG36=\"X\"),\"plafonné à \"&Plafond_PERCO&\" € pour \"&J105,IF(AND(X23<>\"Abondement unilatéral\",G16=J106,'Saisie des données + guide'!AG36=\"X\"),\"plafonné à \"&Plafond_PERCO&\" € pour \"&J106,IF(AND(X23=\"Abondement unilatéral\",G16=J106,'Saisie des données + guide'!AG36=\"X\"),\"plafonné à \"&Plafond_uni_TNS&\" € pour \"&J106,IF(AND(X23=\"Abondement unilatéral\",G16=J105,'Saisie des données + guide'!AG36=\"X\"),\"plafonné à \"&Plafond_uni_TNS&\" € pour \"&J105)))))))))","v":""}]
[]
[]
[]
[null,null,"RÉPARTITION DE L'ÉPARGNE",null,null,null,null,null,null,null,null,null,null,null,null,"N'hésitez pas à consulter l'onglet \"Autres fonds\" pour ajouter d'autres supports de placement.",null,null,null,null,null,null,null,null,null,null,null,null,null,null,null,null,null,null,null,null,null,null,null,"VERSEMENT TOTAL DE L'ENTREPRISE",null,null,null,null,null,null,null,null,null,null,null,null,null,null,"(A' + B')",null,null,null,{"$f":"MAX($BG$26,0)+MAX($BG$35,0)","v":0}]
[null,null,null,"A. Gestion Libre",null,null,null,null,null,null,null,null,null,null,null,null,null,null,null,null,null,null,null,null,null,null,null,null,null,null,null,null,null,null,null,null,null,null,null,"Le versement de l'abondement s'effectue sur les mêmes fonds que le versement personnel."]
[]
[null,null,"CODE ET NOM DES FONDS",null,null,null,null,null,null,null,null,null,null,null,"PEE",null,null,null,null,null,null,null,null,null,null,"PERCOL"]
[null,null,null,null,null,null,null,null,null,null,null,null,null,null,{"$f":"+IF(SUM(R47:Y76)>E26,\"ERREUR SAISIE\",IF(R46=0,\"\",\"Reste à répartir sur les fonds suivants\"))","v":""},null,null,null,null,null,null,null,null,null,null,{"$f":"+IF(SUM(AC47:AJ79)>(N26+AG23),\"ERREUR SAISIE\",IF(AC46=0,\"\",\"Reste à répartir sur les fonds suivants\"))","v":""},null,null,null,null,null,null,null,null,null,null,null,null,null,"VERSEMENT TOTAL INVESTI",null,null,null,null,null,null,null,null,null,null,null,null,null,"(A + B) + (A' + B')",null,null,null,null,{"$f":"+$AB$26+$BG$40","v":0}]
[]
[null,null,null,null,null,null,null,null,null,null,null,null,null,null,{"$f":"IF(E26>0,100-(SUM(O47:P76)),\"\")","v":""},null,{"$f":"IF(O46<>0, \"%\", \"\")","v":"%"},{"$f":"E26-SUM(R47:Y76)","v":0},null,null,null,null,null,null,null,{"$f":"IF((N26+AG23)>0,100-(SUM(Z47:AA79)),\"\")","v":""},null,{"$f":"IF(Z46<>0, \"%\", \"\")","v":"%"},{"$f":"(N26+AG23)-SUM(AC47:AJ79)","v":0}]
[null,null,{"$f":"+IF('Saisie des données + guide'!U25=\"Gamme GER\",\"84289 - GER Monétaire\",IF('Saisie des données + guide'!U25=\"Gamme TESORUS\",\"82659 - TESORUS Monétaire\",IF('Saisie des données + guide'!U25=\"Gamme Fonds Directs\",\"15719 - Oblifonds\",IF('Saisie des données + guide'!U25=\"Gamme Finama\",\"\",\"\"))))","v":"84289 - GER Monétaire"},null,null,null,null,null,null,null,null,null,null,null,null,null,"%",{"$f":"IF(O47=\"\",\"--------------\",+E$26*O47/100)","v":"--------------"},null,null,null,null,null,null,null,null,null,"%",{"$f":"IF(Z47=\"\",\"--------------\",+(N$26+$AG$23)*Z47/100)","v":"--------------"}]
[null,null,null,null,null,null,null,null,null,null,null,null,null,null,null,null,null,null,null,null,null,null,null,null,null,null,null,null,null,null,null,null,null,null,null,null,null,null,"ATTENTION : Si plusieurs épargnants effectuent des versements au même moment, vous devrez de regrouper l’ensemble des abondements en un seul chèque. Pour cela, reportez vous à la fiche récapitulative jointe sur ce fichier.\n\nLes chèques sont à libeller à l’ordre de GROUPAMA ÉPARGNE SALARIALE et à envoyer à l'adresse suivante : \nGroupama Épargne Salariale - Service Clients\n46 rue Jules Méline - 53098 Laval Cedex 9"]
[null,null,{"$f":"+IF('Saisie des données + guide'!U25=\"Gamme GER\",\"84309 - GER Prudence\",IF('Saisie des données + guide'!U25=\"Gamme TESORUS\",\"82719 - TESORUS Prudence\",IF('Saisie des données + guide'!U25=\"Gamme Fonds Directs\",\"4939 - Diversifonds\",\"\")))","v":"84309 - GER Prudence"},null,null,null,null,null,null,null,null,null,null,null,null,null,"%",{"$f":"IF(O49=\"\",\"--------------\",+E$26*O49/100)","v":"--------------"},null,null,null,null,null,null,null,null,null,"%",{"$f":"IF(Z49=\"\",\"--------------\",+(N$26+$AG$23)*Z49/100)","v":"--------------"}]
[]
[null,null,{"$f":"+IF('Saisie des données + guide'!U25=\"Gamme GER\",\"84329 - GER Equilibre\",IF('Saisie des données + guide'!U25=\"Gamme TESORUS\",\"82669 - TESORUS Equilibre\",IF('Saisie des données + guide'!U25=\"Gamme Fonds Directs\",\"2459 - Foncival\",\"\")))","v":"84329 - GER Equilibre"},null,null,null,null,null,null,null,null,null,null,null,null,null,"%",{"$f":"IF(O51=\"\",\"--------------\",+E$26*O51/100)","v":"--------------"},null,null,null,null,null,null,null,null,null,"%",{"$f":"IF(Z51=\"\",\"--------------\",+(N$26+$AG$23)*Z51/100)","v":"--------------"}]
[]
[null,null,{"$f":"+IF('Saisie des données + guide'!U25=\"Gamme GER\",\"84349 - GER Dynamique\",IF('Saisie des données + guide'!U25=\"Gamme TESORUS\",\"82689 - TESORUS Dynamique\",\"\"))","v":"84349 - GER Dynamique"},null,null,null,null,null,null,null,null,null,null,null,null,null,"%",{"$f":"IF(O53=\"\",\"--------------\",+E$26*O53/100)","v":"--------------"},null,null,null,null,null,null,null,null,null,"%",{"$f":"IF(Z53=\"\",\"--------------\",+(N$26+$AG$23)*Z53/100)","v":"--------------"}]
[]
[null,null,{"$f":"+IF('Saisie des données + guide'!U25=\"Gamme GER\",\"84369 - GER Solidaire\",IF('Saisie des données + guide'!U25=\"Gamme TESORUS\",\"87649 - TESORUS Solidaire\",\"\"))","v":"84369 - GER Solidaire"},null,null,null,null,null,null,null,null,null,null,null,null,null,"%",{"$f":"IF(O55=\"\",\"--------------\",+E$26*O55/100)","v":"--------------"},null,null,null,null,null,null,null,null,null,"%",{"$f":"IF(Z55=\"\",\"--------------\",+(N$26+$AG$23)*Z55/100)","v":"--------------"}]
[]
[null,null,"110429 - Finama Épargne Court Terme",null,null,null,null,null,null,null,null,null,null,null,null,null,"%",{"$f":"IF(O57=\"\",\"--------------\",+E$26*O57/100)","v":"--------------"},null,null,null,null,null,null,null,null,null,"%",{"$f":"IF(Z57=\"\",\"--------------\",+(N$26+$AG$23)*Z57/100)","v":"--------------"}]
[]
[null,null,"79139 - Finama Actions Internationales",null,null,null,null,null,null,null,null,null,null,null,null,null,"%",{"$f":"IF(O59=\"\",\"--------------\",+E$26*O59/100)","v":"--------------"},null,null,null,null,null,null,null,null,null,"%",{"$f":"IF(Z59=\"\",\"--------------\",+(N$26+$AG$23)*Z59/100)","v":"--------------"}]
[]
[null,null,"116119 - Groupama Sélection PME-ETI",null,null,null,null,null,null,null,null,null,null,null,null,null,"%",{"$f":"IF(O61=\"\",\"--------------\",+E$26*O61/100)","v":"--------------"},null,null,null,null,null,null,null,null,null,"%",{"$f":"IF(Z61=\"\",\"--------------\",+(N$26+$AG$23)*Z61/100)","v":"--------------"}]
[]
[null,null,null,null,null,null,null,null,null,null,null,null,null,null,null,null,"%",{"$f":"IF(O63=\"\",\"--------------\",+E$26*O63/100)","v":"--------------"},null,null,null,null,null,null,null,null,null,"%",{"$f":"IF(Z63=\"\",\"--------------\",+(N$26+$AG$23)*Z63/100)","v":"--------------"}]
[]
[null,null,null,null,null,null,null,null,null,null,null,null,null,null,null,null,"%",{"$f":"IF(O65=\"\",\"--------------\",+E$26*O65/100)","v":"--------------"},null,null,null,null,null,null,null,null,null,"%",{"$f":"IF(Z65=\"\",\"--------------\",+(N$26+$AG$23)*Z65/100)","v":"--------------"}]
[]
[null,null,null,null,null,null,null,null,null,null,null,null,null,null,null,null,"%",{"$f":"IF(O67=\"\",\"--------------\",+E$26*O67/100)","v":"--------------"},null,null,null,null,null,null,null,null,null,"%",{"$f":"IF(Z67=\"\",\"--------------\",+(N$26+$AG$23)*Z67/100)","v":"--------------"}]
[]
[null,null,null,null,null,null,null,null,null,null,null,null,null,null,null,null,"%",{"$f":"IF(O69=\"\",\"--------------\",+E$26*O69/100)","v":"--------------"},null,null,null,null,null,null,null,null,null,"%",{"$f":"IF(Z69=\"\",\"--------------\",+(N$26+$AG$23)*Z69/100)","v":"--------------"}]
[]
[null,null,null,null,null,null,null,null,null,null,null,null,null,null,null,null,"%",{"$f":"IF(O71=\"\",\"--------------\",+E$26*O71/100)","v":"--------------"},null,null,null,null,null,null,null,null,null,"%",{"$f":"IF(Z71=\"\",\"--------------\",+(N$26+$AG$23)*Z71/100)","v":"--------------"}]
[]
[null,null,null,null,null,null,null,null,null,null,null,null,null,null,null,null,"%",{"$f":"IF(O73=\"\",\"--------------\",+E$26*O73/100)","v":"--------------"},null,null,null,null,null,null,null,null,null,"%",{"$f":"IF(Z73=\"\",\"--------------\",+(N$26+$AG$23)*Z73/100)","v":"--------------"}]
[]
[null,null,null,null,null,null,null,null,null,null,null,null,null,null,null,null,"%",{"$f":"IF(O75=\"\",\"--------------\",+E$26*O75/100)","v":"--------------"},null,null,null,null,null,null,null,null,null,"%",{"$f":"IF(Z75=\"\",\"--------------\",+(N$26+$AG$23)*Z75/100)","v":"--------------"}]
[]
[]
[null,null,null,"B. Gestion Pilotée",null,null,null,null,null,null,null,null,null,null,null,null,null,"Choisissez votre profil",null,null,null,null,null,null,null,null,null,"%",{"$f":"IF(Z78=\"\",\"--------------\",+(N26+AG23)*Z78/100)","v":"--------------"}]
[null,null,null,"valable uniquement sur le PERCOL",null,null,null,null,null,null,null,{"$f":"IF(L78=\"Oui\",\"Préciser la grille d'allocation\",\"\")","v":""}]
[]
[]
[null,null,"Je déclare avoir pris connaissance du règlement du plan, des documents d'information clés (DIC/KID) des fonds remis par mon entreprise et téléchargeables sur www.groupama-es.fr, ainsi que des modalités de fonctionnement des versements individuels jointes au présent bulletin. \nConformément au contrat d’épargne salariale mis en place par votre entreprise, des frais de versements d’un maximum de 4 % peuvent s’appliquer. Nous vous invitons à contacter votre employeur pour obtenir le montant de ces frais.\nEn l'absence de choix de fonds, les sommes seront investies sur le fonds par défaut dans le PEE ou selon le mode de gestion pilotée dans le PERCOL : soit le profil Équilibre Horizon Retraite s'il s'agit de votre premier versement ou si vous aviez opté pour la gestion libre lors de précédent versement, soit avec le même profil de gestion pilotée précédemment choisi.\nPour tout versement volontaire à partir de 8 000 €, une copie de votre pièce d'identité devra être fournie, accompagnée du dernier avis d'imposition pour un versement d’un montant de 15 000 € et plus. ",null,null,null,null,null,null,null,null,null,null,null,null,null,null,null,null,null,null,null,null,null,null,null,null,null,null,null,null,null,null,null,null,null,null,null,null,"Conformément au règlement général sur la protection des données n°2016/679 du 27 avril 2016, vos données personnelles sont traitées par Groupama Épargne Salariale à des fins de tenue des comptes d'épargne salariale. Elles sont destinées aux membres du personnel dûment habilités de Groupama Épargne Salariale ainsi qu’à ses sous-traitants. Elles sont conservées par Groupama Épargne Salariale pendant une durée maximale de trente ans à compter de la disponibilité des avoirs.Vous pouvez demander l’accès, la rectification, l'effacement et la portabilité de vos données personnelles ainsi que limiter ou vous opposer, pour motif légitime, au traitement en écrivant au Délégué Relais à la Protection des Données de Groupama Épargne Salariale – Service du Contrôle interne – 2 boulevard de Pesaro – 92000 Nanterre ou par email : controleinterne@groupama-es.fr. Réf. : BIV 01-01-2024"]
[]
[]
[null,null,null,"J’atteste sur l’honneur que mon versement est conforme à la réglementation, notamment qu'il provient bien de mon épargne personnelle et que l’ensemble de mes versements de l’année au PEE ne dépasse pas 25 % de ma rémunération annuelle brute.",null,null,null,null,null,null,null,null,null,null,null,null,null,null,null,null,null,null,null,null,null,"SIGNATURE DE L'ÉPARGNANT"]
[null,null,null,null,null,null,null,null,null,null,null,null,null,null,null,null,null,null,null,null,null,null,null,null,null,null,null,null,null,null,null,null,null,null,null,null,null,null,null,null,null,null,null,null,null,null,"Groupama Épargne Salariale - Entreprise d'investissement agréée par l'ACPR - Teneur de comptes - Conservateur de parts \nSA au capital de 8.709.015 € - Siège social : 2 boulevard de Pesaro 92000 Nanterre - 428 768 352 RCS Nanterre"]
[]
[null,null,"Fait à :",null,null,null,null,null,null,null,null,null,null,"Le :",null,null,null,null,null,null,{"$f":"'Saisie des données + guide'!BF2","v":2024}]
[]
[]
[]
[]
[]
[]
[]
[]
[]
[]
[null,null,null,null,"3 options dans ce BIV :"]
[]
[null,null,null,null,null,null,"Ouverture compte :"]
[null,null,null,null,null,null,null,null,null,null,null,null,"X"]
[]
[null,null,null,null,null,null,"Statut :"]
[null,null,null,null,null,null,null,null,null,"Salarié"]
[null,null,null,null,null,null,null,null,null,"Non salarié"]
[]
[null,null,null,null,null,null,"Gestion pilotée :"]
[null,null,null,null,null,null,null,null,null,null,"Choisissez votre profil"]
[null,null,null,null,null,null,null,null,null,null,"Profil Prudent Horizon Retraite"]
[null,null,null,null,null,null,null,null,null,null,"Profil Équilibre Horizon Retraite"]
[null,null,null,null,null,null,null,null,null,null,"Profil Dynamique Horizon Retraite"]
[]
[null,null,null,null,null,null,null,null,null,null,null,"Oui"]
[null,null,null,null,null,null,null,null,null,null,null,"Non"]

{"sheet":"Fiche récapitulative","index":11,"n_rows":84,"n_cols":15,"rows_kept":84,"cut":false,"hidden":false,"merged":[[35,1,35,4],[35,5,35,8],[35,9,35,10],[33,1,33,4],[33,5,33,8],[33,9,33,10],[34,1,34,4],[34,5,34,8],[34,9,34,10],[31,5,31,8],[31,9,31,10],[32,1,32,4],[32,5,32,8],[32,9,32,10],[0,0,3,14],[26,5,26,8],[27,5,27,8],[30,9,30,10],[30,1,30,4],[25,1,25,4],[24,13,25,13],[24,14,25,14],[13,4,13,13],[15,4,15,13],[17,4,17,13],[29,9,29,10],[25,5,25,8],[26,9,26,10],[24,12,25,12],[81,6,81,8],[25,9,25,10],[28,9,28,10],[4,1,4,14],[24,1,24,10],[27,9,27,10],[26,1,26,4],[27,1,27,4],[30,5,30,8],[31,1,31,4],[6,1,6,14],[28,5,28,8],[29,5,29,8],[28,1,28,4],[29,1,29,4],[24,11,25,11],[36,9,36,10],[61,9,61,10],[73,9,73,10],[55,1,55,14],[80,6,80,8],[79,10,79,11],[73,2,73,7],[40,1,40,14],[64,1,64,14],[73,12,75,13],[65,6,66,12],[72,12,72,13]]}
["Fiche récapitulative \ndes versements individuels et des abondements 2024"]
[]
[]
[]
[null,"Document exclusivement réservé à l’entreprise"]
[]
[null,"À RETOURNER À GROUPAMA ÉPARGNE SALARIALE"]
[]
[]
[null,"ENTREPRISE"]
[]
[null,"Code entreprise",null,null,{"$f":"'Saisie des données + guide'!K12","v":0}]
[]
[null,"Raison sociale",null,null,{"$f":"'Saisie des données + guide'!K14","v":0}]
[]
[null,"Contact",null,null,{"$f":"'Saisie des données + guide'!K16","v":0}]
[]
[null,"E-mail",null,null,{"$f":"'Saisie des données + guide'!K18","v":0}]
[]
[]
[]
[]
[null,"Récapitulatif des versements et des abondements correspondants"]
[]
[null,"Liste des épargnants",null,null,null,null,null,null,null,null,null,{"$f":"IF('Saisie des données + guide'!U21=\"Abondement unilatéral\", \"Montant de l'abondement unilatéral sur le PERCOL\",\" Montant de l’épargnant\")","v":" Montant de l’épargnant"},"Rappel du montant d’abondement\nPEE","Rappel du montant d’abondement\nPERCOL","Montant total investi sauf si la répartition sur le bulletin n'est pas conforme "]
[null,"Identifiant - N°Sécurité Sociale",null,null,null,"Nom",null,null,null,"Prénom"]
[null,{"$f":"+'Bulletin n°1'!$G$8","v":0},null,null,null,{"$f":"'Bulletin n°1'!$N$6","v":0},null,null,null,{"$f":"'Bulletin n°1'!$W$6","v":0},null,{"$f":"IF('Saisie des données + guide'!$U$21=\"Abondement unilatéral\",'Bulletin n°1'!$BG$35,'Bulletin n°1'!$AB$26)","v":0},{"$f":"'Bulletin n°1'!BG$26","v":""},{"$f":"'Bulletin n°1'!$BG$35","v":""},{"$f":"IF(ABS('Bulletin n°1'!$R$46)+ABS('Bulletin n°1'!$AC$46)>0,\"Erreur de répartition\ndans le bulletin n°1\",+SUM(L27:N27))","v":0}]
[null,{"$f":"+'Bulletin n°2'!$G$8","v":0},null,null,null,{"$f":"'Bulletin n°2'!$N$6","v":0},null,null,null,{"$f":"'Bulletin n°2'!$W$6","v":0},null,{"$f":"IF('Saisie des données + guide'!$U$21=\"Abondement unilatéral\",'Bulletin n°2'!$BG$35,'Bulletin n°2'!$AB$26)","v":0},{"$f":"'Bulletin n°2'!BG$26","v":""},{"$f":"'Bulletin n°2'!$BG$35","v":""},{"$f":"IF(ABS('Bulletin n°2'!$R$46)+ABS('Bulletin n°2'!$AC$46)>0,\"Erreur de répartition\ndans le bulletin n°2\",+SUM(L28:N28))","v":0}]
[null,{"$f":"+'Bulletin n°3'!$G$8","v":0},null,null,null,{"$f":"'Bulletin n°3'!$N$6","v":0},null,null,null,{"$f":"'Bulletin n°3'!$W$6","v":0},null,{"$f":"IF('Saisie des données + guide'!$U$21=\"Abondement unilatéral\",'Bulletin n°3'!$BG$35,'Bulletin n°3'!$AB$26)","v":0},{"$f":"'Bulletin n°3'!BG$26","v":""},{"$f":"'Bulletin n°3'!$BG$35","v":""},{"$f":"IF(ABS('Bulletin n°3'!$R$46)+ABS('Bulletin n°3'!$AC$46)>0,\"Erreur de répartition\ndans le bulletin n°3\",+SUM(L29:N29))","v":0}]
[null,{"$f":"+'Bulletin n°4'!$G$8","v":0},null,null,null,{"$f":"'Bulletin n°4'!$N$6","v":0},null,null,null,{"$f":"'Bulletin n°4'!$W$6","v":0},null,{"$f":"IF('Saisie des données + guide'!$U$21=\"Abondement unilatéral\",'Bulletin n°4'!$BG$35,'Bulletin n°4'!$AB$26)","v":0},{"$f":"'Bulletin n°4'!BG$26","v":""},{"$f":"'Bulletin n°4'!$BG$35","v":""},{"$f":"IF(ABS('Bulletin n°4'!$R$46)+ABS('Bulletin n°4'!$AC$46)>0,\"Erreur de répartition\ndans le bulletin n°4\",+SUM(L30:N30))","v":0}]
[null,{"$f":"+'Bulletin n°5'!$G$8","v":0},null,null,null,{"$f":"'Bulletin n°5'!$N$6","v":0},null,null,null,{"$f":"'Bulletin n°5'!$W$6","v":0},null,{"$f":"IF('Saisie des données + guide'!$U$21=\"Abondement unilatéral\",'Bulletin n°5'!$BG$35,'Bulletin n°5'!$AB$26)","v":0},{"$f":"'Bulletin n°5'!BG$26","v":""},{"$f":"'Bulletin n°5'!$BG$35","v":""},{"$f":"IF(ABS('Bulletin n°5'!$R$46)+ABS('Bulletin n°5'!$AC$46)>0,\"Erreur de répartition\ndans le bulletin n°5\",+SUM(L31:N31))","v":0}]
[null,{"$f":"+'Bulletin n°6'!$G$8","v":0},null,null,null,{"$f":"'Bulletin n°6'!$N$6","v":0},null,null,null,{"$f":"'Bulletin n°6'!$W$6","v":0},null,{"$f":"IF('Saisie des données + guide'!$U$21=\"Abondement unilatéral\",'Bulletin n°6'!$BG$35,'Bulletin n°6'!$AB$26)","v":0},{"$f":"'Bulletin n°6'!BG$26","v":""},{"$f":"'Bulletin n°6'!$BG$35","v":""},{"$f":"IF(ABS('Bulletin n°6'!$R$46)+ABS('Bulletin n°6'!$AC$46)>0,\"Erreur de répartition\ndans le bulletin n°6\",+SUM(L32:N32))","v":0}]
[null,{"$f":"+'Bulletin n°7'!$G$8","v":0},null,null,null,{"$f":"'Bulletin n°7'!$N$6","v":0},null,null,null,{"$f":"'Bulletin n°7'!$W$6","v":0},null,{"$f":"IF('Saisie des données + guide'!$U$21=\"Abondement unilatéral\",'Bulletin n°7'!$BG$35,'Bulletin n°7'!$AB$26)","v":0},{"$f":"'Bulletin n°7'!BG$26","v":""},{"$f":"'Bulletin n°7'!$BG$35","v":""},{"$f":"IF(ABS('Bulletin n°7'!$R$46)+ABS('Bulletin n°7'!$AC$46)>0,\"Erreur de répartition\ndans le bulletin n°7\",+SUM(L33:N33))","v":0}]
[null,{"$f":"+'Bulletin n°8'!$G$8","v":0},null,null,null,{"$f":"'Bulletin n°8'!$N$6","v":0},null,null,null,{"$f":"'Bulletin n°8'!$W$6","v":0},null,{"$f":"IF('Saisie des données + guide'!$U$21=\"Abondement unilatéral\",'Bulletin n°8'!$BG$35,'Bulletin n°8'!$AB$26)","v":0},{"$f":"'Bulletin n°8'!BG$26","v":""},{"$f":"'Bulletin n°8'!$BG$35","v":""},{"$f":"IF(ABS('Bulletin n°8'!$R$46)+ABS('Bulletin n°8'!$AC$46)>0,\"Erreur de répartition\ndans le bulletin n°8\",+SUM(L34:N34))","v":0}]
[null,{"$f":"+'Bulletin n°9'!$G$8","v":0},null,null,null,{"$f":"'Bulletin n°9'!$N$6","v":0},null,null,null,{"$f":"'Bulletin n°9'!$W$6","v":0},null,{"$f":"IF('Saisie des données + guide'!$U$21=\"Abondement unilatéral\",'Bulletin n°9'!$BG$35,'Bulletin n°9'!$AB$26)","v":0},{"$f":"'Bulletin n°9'!BG$26","v":""},{"$f":"'Bulletin n°9'!$BG$35","v":""},{"$f":"IF(ABS('Bulletin n°9'!$R$46)+ABS('Bulletin n°9'!$AC$46)>0,\"Erreur de répartition\ndans le bulletin n°9\",+SUM(L35:N35))","v":0}]
[null,{"$f":"+'Bulletin n°10'!$G$8","v":0},null,null,null,{"$f":"'Bulletin n°10'!$N$6","v":0},null,null,null,{"$f":"'Bulletin n°10'!$W$6","v":0},null,{"$f":"IF('Saisie des données + guide'!$U$21=\"Abondement unilatéral\",'Bulletin n°10'!$BG$35,'Bulletin n°10'!$AB$26)","v":0},{"$f":"'Bulletin n°10'!BG$26","v":""},{"$f":"'Bulletin n°10'!$BG$35","v":""},{"$f":"IF(ABS('Bulletin n°10'!$R$46)+ABS('Bulletin n°10'!$AC$46)>0,\"Erreur de répartition\ndans le bulletin n°10\",+SUM(L36:N36))","v":0}]
[null,null,null,null,null,null,null,null,null,"TOTAUX",null,{"$f":"+SUM(L27:L36)","v":0},{"$f":"+SUM(M27:M36)","v":0},{"$f":"+SUM(N27:N36)","v":0}]
[]
[]
[null,"Si CSG-CRDS non précomptées pour le salarié",null,null,null,null,{"$f":"+'Saisie des données + guide'!AG36","v":0}]
[null,{"$f":"+'Saisie des données + guide'!D37","v":0}]
[]
[null,"DOCUMENTS À FOURNIR"]
[]
[]
[null," - Pour les versements des épargnants : "]
[null,null,"SOIT"]
[]
[null,null,{"$f":"+IF($L$27>0,1,0)+IF($L$28>0,1,0)+IF($L$29>0,1,0)+IF($L$30>0,1,0)+IF($L$31>0,1,0)+IF($L$32>0,1,0)+IF($L$33>0,1,0)+IF($L$34>0,1,0)+IF($L$35>0,1,0)+IF($L$36>0,1,0)","v":0}," chèque(s) établis par chaque épargnant pour leurs versements personnels (titulaire du chèque = personne figurant sur le bulletin de versements)."]
[]
[null,null,"OU"]
[]
[null,null,1,{"$f":"\" chèque global de l'entreprise de \"&SUM(L27:L36)&\" € pour tous les versements personnels des épargnants (la régularisation auprès des salariés est à la charge de l'entreprise).\"","v":" chèque global de l'entreprise de 0 € pour tous les versements personnels des épargnants (la régularisation auprès des salariés est à la charge de l'entreprise)."}]
[]
[null,"  - Ainsi que les bulletins de versements datés et signés de chaque épargnant."]
[]
[]
[null,{"$f":"IF(L25=\"montant de l'abondement unilatéral sur le PERCOL\", \"  - Les bulletins de versements datés et signés de chaque épargnant\",\"\")","v":""}]
[]
[null,"  - Pour le versement de l'entreprise : "]
[]
[null,null,1," chèque global d’abondement, d’un montant de : ",null,null,null,null,null,{"$f":"IF('Saisie des données + guide'!U21=\"Abondement unilatéral\",L37,M37+N37)","v":0}]
[]
[]
[null,"Tous les chèques sont à libeller à l'ordre de Groupama Épargne Salariale et à envoyer à l'adresse suivante :"]
[null,null,null,null,null,null,"Groupama Épargne Salariale - Service Clients\n46 rue Jules Méline - 53098 Laval Cedex 9"]
[]
[]
[]
[null,"DATE ET SIGNATURE DU CHEF D'ENTREPRISE"]
[]
[]
[null,null,null,null,null,null,null,null,null,null,null,null,"SIGNATURE DU CHEF D'ENTREPRISE"]
[null,"Fait à :",null,null,null,null,null,null,"Le : "]
[]
[]
[]
[]
[null,"Estimation des prélèvements sociaux sur l'abondement de l'entreprise :"]
[null,"Pour information, la CSG-CRDS liée à l'abondement est de :",null,null,null,null,null,null,{"$f":"SUM(#REF!)","v":{"$error":"#REF!"}},"sur une base de :",{"$f":"SUM(#REF!)","v":{"$error":"#REF!"}}]
[null,"et le forfait social de 20% lié à l'abondement du PEI est de :",null,null,null,null,{"$f":"20%*M37","v":0}]
[null,"et le forfait social de 16% lié à l'abondement du PERCOI est de :",null,null,null,null,{"$f":"16%*N37","v":0}]
[]
[null,null,null,null,null,null,null,null,null,null,null,null,null,null," "]

{"sheet":"Modalités de versement","index":12,"n_rows":0,"n_cols":0,"rows_kept":0,"cut":false,"hidden":false,"merged":[]}

{"sheet":"Autres fonds","index":13,"n_rows":44,"n_cols":4,"rows_kept":44,"cut":false,"hidden":false,"merged":[[3,3,11,7]]}
["Code et nom du fonds"]
["004939 - Diversifonds"]
["002459 - Fonvical"]
["015719 - Oblifonds",null,null,"Avant de sélectionner un fonds, nous vous invitons à vérifier que celui-ci est bien disponible dans votre contrat, en vous connectant à votre Espace Entreprise sur groupama-es.fr, rubrique \"Supports\"."]
["556517  - G Fund World R Evolutions"]
["288332 - Groupama Credit Euro CT"]
["450764 - G Fund Global Green Bonds"]
["450251 - G Fund Future for Generations"]
["29902 - Groupama Selection ISR Convictions"]
["397882 - Groupama Selection Protect 85"]
["383734 - Groupama Selection Multistratégies"]
["953497 - Ameri-Gan"]
["271528 - G Fund Equity Convictions ISR"]
["413972 - G Fund Global Bonds"]
["959612 - G Fund Total Return All Cap Europe"]
["722348 - G Fund World Vision (R)"]
["450723 - G Fund Credit Euro ISR"]
["349192 - PICTET - Multi Asset Global Opportunities P EUR"]
["630153 - PICTET - Global Sustainable Credit HP EUR"]
["978776 - PICTET - Health P EUR"]
["554913 - PICTET - Digital P EUR"]
["559557 - PICTET - Timber P EUR"]
["435388 - PICTET - Clean Energy P EUR"]
["631714 - PICTET - Global Environmental Opportunities P EUR"]
["884860 - PICTET - Water P EUR"]
["882277 - PICTET - Global Megatrend Selection P EUR"]
["982283 - M&G (Lux) Conservative Allocation Fund A EUR Acc"]
["724373 - M&G (Lux) Optimal Income Fund A EUR Acc"]
["799617 - M&G (Lux) Sustainable Allocation Fund Euro A Acc"]
["988058 - M&G (Lux) Dynamic Allocation Fund Euro A Acc"]
["107221 - M&G (Lux) Positive Impact A Eur Acc"]
["395634 - BSF Sustainable Euro Bond A2 Eur"]
["383399 - BGF Global Multi-Asset Income Fund A2"]
["795278 - BGF ESG Emerging Markets Bond"]
["283533 - BGF Global Allocation E2"]
["795781 - BGF ESG Emerging Markets Blended Bond Fund A2 Eur H"]
["289902 - BGF Sustainable Energy A2"]
["502762 - BGF Euro-Markets A2"]
["594748 - DNCA Invest Beyond Alterosa A"]
["394235 - DNCA Invest - Eurose A"]
["595398 - DNCA Invest - Beyond Semperosa A"]
["842267 - ODDO BHF Artificial Intelligence CR-EUR"]
["292278 - Magellan (Part C)"]
["129669 - Finama Sofidy Immobilier"]